Department Family,Entity,Date,Expense Type,Expense Area,Supplier,Transaction Number,Amount,Description
Ministry of Justice,HMCTS,12/12/2014,311200-Criminal Legal Aid,BZ999-London Region,5 ST ANDREWS HILL#GB37173394,3068782,"29,385.01",Legal fees to solicitors for the repayment of costs to parties after gaining legal aid and representation order
Ministry of Justice,HMCTS,17/12/2014,311200-Criminal Legal Aid,BZ999-London Region,5 ST ANDREWS HILL#GB37173401,3074687,"27,204.00",Legal fees to solicitors for the repayment of costs to parties after gaining legal aid and representation order
Ministry of Justice,HMCTS,09/12/2014,610400-Debtors <1 year - Prepayments & Accrued Income,CZ999-South East Region,AFFINITY COMMERCIAL LLP,3063125,"338,770.09",Rent payment
Ministry of Justice,HMCTS,09/12/2014,610400-Debtors <1 year - Prepayments & Accrued Income,CZ999-South East Region,AFFINITY COMMERCIAL LLP,3063125,"67,754.02",Rent payment
Ministry of Justice,HMCTS,29/12/2014,610400-Debtors <1 year - Prepayments & Accrued Income,CZ999-South East Region,ARROWCROFT SERVICES LTD,3084445,"95,646.00",Rent payment
Ministry of Justice,HMCTS,29/12/2014,610400-Debtors <1 year - Prepayments & Accrued Income,CZ999-South East Region,ARROWCROFT SERVICES LTD,3084445,"46,748.70",Rent payment
Ministry of Justice,HMCTS,30/12/2014,221000-Property Rent and Rates,BZ999-London Region,ASHWELL ROGERS LLP,3084978,"278,250.00",Rent payment
Ministry of Justice,HMCTS,29/12/2014,265000-IT & Telecommunications,AL999-HQ - CEO,ATOS IT SERVICES UK LTD,3084449,25.78,New IPT Mobility account with voicemail account 11-20 Accounts
Ministry of Justice,HMCTS,29/12/2014,265000-IT & Telecommunications,AL999-HQ - CEO,ATOS IT SERVICES UK LTD,3084449,25.78,Deletion of a Mobility user account 1-10 Accounts
Ministry of Justice,HMCTS,29/12/2014,265000-IT & Telecommunications,"AM999-HQ - Civil, Family & Tribunals",ATOS IT SERVICES UK LTD,3084449,25.78,New IPT Mobility account with voicemail account 1-10 Accounts
Ministry of Justice,HMCTS,29/12/2014,265000-IT & Telecommunications,"AM999-HQ - Civil, Family & Tribunals",ATOS IT SERVICES UK LTD,3084449,111.45,Replace faulty or non-faulty out-of-contract BlackBerry device
Ministry of Justice,HMCTS,29/12/2014,265000-IT & Telecommunications,"AM999-HQ - Civil, Family & Tribunals",ATOS IT SERVICES UK LTD,3084449,111.45,Replace faulty or non-faulty out-of-contract BlackBerry device
Ministry of Justice,HMCTS,29/12/2014,265000-IT & Telecommunications,"AM999-HQ - Civil, Family & Tribunals",ATOS IT SERVICES UK LTD,3084449,46,Provision and support of Secure Remote Access (RWSII) Capability
Ministry of Justice,HMCTS,29/12/2014,265000-IT & Telecommunications,"AM999-HQ - Civil, Family & Tribunals",ATOS IT SERVICES UK LTD,3084449,164,"Standard Form Laptop - HP EliteBook 8470p (14"" screen)"
Ministry of Justice,HMCTS,29/12/2014,265000-IT & Telecommunications,AN999-HQ - Crime,ATOS IT SERVICES UK LTD,3084449,25.78,New IPT Mobility account with voicemail account 11-20 Accounts
Ministry of Justice,HMCTS,29/12/2014,265000-IT & Telecommunications,AN999-HQ - Crime,ATOS IT SERVICES UK LTD,3084449,25.78,Voicemail - New Voicemail Account 1-10 Accounts
Ministry of Justice,HMCTS,29/12/2014,265000-IT & Telecommunications,AN999-HQ - Crime,ATOS IT SERVICES UK LTD,3084449,165.56,BlackBerry (Vodafone)
Ministry of Justice,HMCTS,29/12/2014,265000-IT & Telecommunications,AP999-HQ - Strategy & Change,ATOS IT SERVICES UK LTD,3084449,25.78,New IPT Handset 12 - 30 devices
Ministry of Justice,HMCTS,29/12/2014,265000-IT & Telecommunications,AP999-HQ - Strategy & Change,ATOS IT SERVICES UK LTD,3084449,25.78,New IPT Mobility account with voicemail account 1-10 Accounts
Ministry of Justice,HMCTS,29/12/2014,265000-IT & Telecommunications,AP999-HQ - Strategy & Change,ATOS IT SERVICES UK LTD,3084449,58.47,Keep your mobile phone number when upgrading to BlackBerry
Ministry of Justice,HMCTS,29/12/2014,265000-IT & Telecommunications,AP999-HQ - Strategy & Change,ATOS IT SERVICES UK LTD,3084449,46,Provision and support of Secure Remote Access (RWSII) Capability
Ministry of Justice,HMCTS,29/12/2014,265000-IT & Telecommunications,AP999-HQ - Strategy & Change,ATOS IT SERVICES UK LTD,3084449,164,"Large Form Laptop - HP EliteBook 8570p (15.6"" screen)"
Ministry of Justice,HMCTS,29/12/2014,265000-IT & Telecommunications,AP999-HQ - Strategy & Change,ATOS IT SERVICES UK LTD,3084449,46,Provision and support of Secure Remote Access (RWSII) Capability
Ministry of Justice,HMCTS,29/12/2014,265000-IT & Telecommunications,AP999-HQ - Strategy & Change,ATOS IT SERVICES UK LTD,3084449,11.62,MS Project Standard
Ministry of Justice,HMCTS,29/12/2014,265000-IT & Telecommunications,AP999-HQ - Strategy & Change,ATOS IT SERVICES UK LTD,3084449,11.62,MS Visio Std
Ministry of Justice,HMCTS,29/12/2014,265000-IT & Telecommunications,AP999-HQ - Strategy & Change,ATOS IT SERVICES UK LTD,3084449,39.36,"Plantronics ""BlackWire C310-M"" headset with microphone"
Ministry of Justice,HMCTS,29/12/2014,265000-IT & Telecommunications,AP999-HQ - Strategy & Change,ATOS IT SERVICES UK LTD,3084449,11.62,MS Visio Professional
Ministry of Justice,HMCTS,29/12/2014,265000-IT & Telecommunications,AP999-HQ - Strategy & Change,ATOS IT SERVICES UK LTD,3084449,242.09,Adobe Acrobat Writer Professional
Ministry of Justice,HMCTS,29/12/2014,265000-IT & Telecommunications,AP999-HQ - Strategy & Change,ATOS IT SERVICES UK LTD,3084449,190.55,Plantronics CS510 Wireless Headset 1-11 devices
Ministry of Justice,HMCTS,29/12/2014,265000-IT & Telecommunications,AP999-HQ - Strategy & Change,ATOS IT SERVICES UK LTD,3084449,11.62,MS Project Professional
Ministry of Justice,HMCTS,29/12/2014,265000-IT & Telecommunications,AP999-HQ - Strategy & Change,ATOS IT SERVICES UK LTD,3084449,11.62,MS Project Standard
Ministry of Justice,HMCTS,29/12/2014,265000-IT & Telecommunications,AP999-HQ - Strategy & Change,ATOS IT SERVICES UK LTD,3084449,11.62,MS Visio Std
Ministry of Justice,HMCTS,29/12/2014,265000-IT & Telecommunications,AP999-HQ - Strategy & Change,ATOS IT SERVICES UK LTD,3084449,11.62,MS Project Standard
Ministry of Justice,HMCTS,29/12/2014,265000-IT & Telecommunications,AP999-HQ - Strategy & Change,ATOS IT SERVICES UK LTD,3084449,19.68,"Plantronics ""BlackWire C310-M"" headset with microphone"
Ministry of Justice,HMCTS,29/12/2014,265000-IT & Telecommunications,AP999-HQ - Strategy & Change,ATOS IT SERVICES UK LTD,3084449,8.51,HP Basic Notebook Carrying Case
Ministry of Justice,HMCTS,29/12/2014,265000-IT & Telecommunications,AP999-HQ - Strategy & Change,ATOS IT SERVICES UK LTD,3084449,46,Provision and support of Secure Remote Access (RWSII) Capability
Ministry of Justice,HMCTS,29/12/2014,265000-IT & Telecommunications,AP999-HQ - Strategy & Change,ATOS IT SERVICES UK LTD,3084449,5,Power cable
Ministry of Justice,HMCTS,29/12/2014,265000-IT & Telecommunications,AP999-HQ - Strategy & Change,ATOS IT SERVICES UK LTD,3084449,11.62,MS Visio Std
Ministry of Justice,HMCTS,29/12/2014,265000-IT & Telecommunications,AP999-HQ - Strategy & Change,ATOS IT SERVICES UK LTD,3084449,11.62,MS Project Standard
Ministry of Justice,HMCTS,29/12/2014,265000-IT & Telecommunications,AQ999-HQ - Finance & Governance,ATOS IT SERVICES UK LTD,3084449,137.95,TechSmith Camtasia Studio
Ministry of Justice,HMCTS,29/12/2014,265000-IT & Telecommunications,AQ999-HQ - Finance & Governance,ATOS IT SERVICES UK LTD,3084449,46,Provision and support of Secure Remote Access (RWSII) Capability
Ministry of Justice,HMCTS,29/12/2014,265000-IT & Telecommunications,AQ999-HQ - Finance & Governance,ATOS IT SERVICES UK LTD,3084449,103.12,New IPT Handset 1 - 11 devices
Ministry of Justice,HMCTS,29/12/2014,265000-IT & Telecommunications,AQ999-HQ - Finance & Governance,ATOS IT SERVICES UK LTD,3084449,25.78,Mobility Handset Conversion to Fixed Handset with new user details 1- 11 devices
Ministry of Justice,HMCTS,29/12/2014,265000-IT & Telecommunications,AQ999-HQ - Finance & Governance,ATOS IT SERVICES UK LTD,3084449,25.78,New IPT Mobility account with voicemail account 1-10 Accounts
Ministry of Justice,HMCTS,29/12/2014,265000-IT & Telecommunications,AQ999-HQ - Finance & Governance,ATOS IT SERVICES UK LTD,3084449,25.78,Fixed IPT Phone Transfer to a new user 1-10 Devices
Ministry of Justice,HMCTS,29/12/2014,265000-IT & Telecommunications,AQ999-HQ - Finance & Governance,ATOS IT SERVICES UK LTD,3084449,25.78,Pick Up Groups 1-10 Instances
Ministry of Justice,HMCTS,29/12/2014,265000-IT & Telecommunications,AQ999-HQ - Finance & Governance,ATOS IT SERVICES UK LTD,3084449,82.78,BlackBerry (Vodafone)
Ministry of Justice,HMCTS,29/12/2014,265000-IT & Telecommunications,AS999-HQ - Human Resources,ATOS IT SERVICES UK LTD,3084449,58.47,Keep your mobile phone number when upgrading to BlackBerry
Ministry of Justice,HMCTS,29/12/2014,265000-IT & Telecommunications,AS999-HQ - Human Resources,ATOS IT SERVICES UK LTD,3084449,113.16,"HP 230W Docking Station for 8440p, 8540p, 8460p, 8560p, 8470p and 8570p laptops"
Ministry of Justice,HMCTS,29/12/2014,265000-IT & Telecommunications,AS999-HQ - Human Resources,ATOS IT SERVICES UK LTD,3084449,58.47,Keep your mobile phone number when upgrading to BlackBerry
Ministry of Justice,HMCTS,09/12/2014,265000-IT & Telecommunications,AT899-HQ - ICT,ATOS IT SERVICES UK LTD,3063152,"61,806.00","A-R-04247-01 CCN Packaging for Xhibit Web Logic and TR Changes (HMCTS 254)						"
Ministry of Justice,HMCTS,29/12/2014,265000-IT & Telecommunications,AT899-HQ - ICT,ATOS IT SERVICES UK LTD,3084449,111.45,Replace faulty or non-faulty out-of-contract BlackBerry device
Ministry of Justice,HMCTS,29/12/2014,265000-IT & Telecommunications,AT899-HQ - ICT,ATOS IT SERVICES UK LTD,3084449,11.62,MS Visio Professional
Ministry of Justice,HMCTS,29/12/2014,265000-IT & Telecommunications,AT899-HQ - ICT,ATOS IT SERVICES UK LTD,3084449,11.62,MS Project Professional
Ministry of Justice,HMCTS,29/12/2014,265000-IT & Telecommunications,BZ999-London Region,ATOS IT SERVICES UK LTD,3084449,51.56,"Analogue Extension Port For use with fax machine, MFD, franking machine or an analogue handset 1-11 devices"
Ministry of Justice,HMCTS,29/12/2014,265000-IT & Telecommunications,BZ999-London Region,ATOS IT SERVICES UK LTD,3084449,216,Relocation of 3 desktop client devices to a different building.
Ministry of Justice,HMCTS,29/12/2014,265000-IT & Telecommunications,BZ999-London Region,ATOS IT SERVICES UK LTD,3084449,116,Relocation of a single desktop client device to a different building.
Ministry of Justice,HMCTS,29/12/2014,265000-IT & Telecommunications,BZ999-London Region,ATOS IT SERVICES UK LTD,3084449,25.78,New IPT Mobility account with voicemail account 11-20 Accounts
Ministry of Justice,HMCTS,29/12/2014,265000-IT & Telecommunications,BZ999-London Region,ATOS IT SERVICES UK LTD,3084449,780.3,AVM Ad-Hoc Labour and Materials
Ministry of Justice,HMCTS,29/12/2014,265000-IT & Telecommunications,BZ999-London Region,ATOS IT SERVICES UK LTD,3084449,82.78,BlackBerry (Vodafone)
Ministry of Justice,HMCTS,29/12/2014,265000-IT & Telecommunications,BZ999-London Region,ATOS IT SERVICES UK LTD,3084449,25.78,"Analogue Extension Port For use with fax machine, MFD, franking machine or an analogue handset 12-30 devices"
Ministry of Justice,HMCTS,29/12/2014,265000-IT & Telecommunications,BZ999-London Region,ATOS IT SERVICES UK LTD,3084449,22.32,HP Standard USB Keyboard
Ministry of Justice,HMCTS,29/12/2014,265000-IT & Telecommunications,BZ999-London Region,ATOS IT SERVICES UK LTD,3084449,859.37,Standard Power Down Request for DISC connected site with no site engineer assistance required
Ministry of Justice,HMCTS,29/12/2014,265000-IT & Telecommunications,BZ999-London Region,ATOS IT SERVICES UK LTD,3084449,82.78,BlackBerry (Vodafone)
Ministry of Justice,HMCTS,29/12/2014,265000-IT & Telecommunications,BZ999-London Region,ATOS IT SERVICES UK LTD,3084449,"1,040.40",AVM Ad-Hoc Labour and Materials
Ministry of Justice,HMCTS,29/12/2014,265000-IT & Telecommunications,BZ999-London Region,ATOS IT SERVICES UK LTD,3084449,25.78,New IPT Mobility account with voicemail account 11-20 Accounts
Ministry of Justice,HMCTS,29/12/2014,265000-IT & Telecommunications,BZ999-London Region,ATOS IT SERVICES UK LTD,3084449,80.68,Provision of FHINS access
Ministry of Justice,HMCTS,29/12/2014,265000-IT & Telecommunications,BZ999-London Region,ATOS IT SERVICES UK LTD,3084449,780.3,AVM Ad-Hoc Labour and Materials
Ministry of Justice,HMCTS,29/12/2014,265000-IT & Telecommunications,BZ999-London Region,ATOS IT SERVICES UK LTD,3084449,5.25,3m Cat6 network cable (purple)
Ministry of Justice,HMCTS,29/12/2014,265000-IT & Telecommunications,BZ999-London Region,ATOS IT SERVICES UK LTD,3084449,11.16,HP Standard USB Keyboard
Ministry of Justice,HMCTS,29/12/2014,265000-IT & Telecommunications,BZ999-London Region,ATOS IT SERVICES UK LTD,3084449,6.38,HP USB/PS2 Optical Scroll Mouse
Ministry of Justice,HMCTS,29/12/2014,265000-IT & Telecommunications,BZ999-London Region,ATOS IT SERVICES UK LTD,3084449,8.07,VGA Monitor Extension Cable
Ministry of Justice,HMCTS,29/12/2014,265000-IT & Telecommunications,BZ999-London Region,ATOS IT SERVICES UK LTD,3084449,265.63,Dragon Naturally Speaking Professional v10
Ministry of Justice,HMCTS,29/12/2014,265000-IT & Telecommunications,BZ999-London Region,ATOS IT SERVICES UK LTD,3084449,5,USB Extender cable
Ministry of Justice,HMCTS,29/12/2014,265000-IT & Telecommunications,BZ999-London Region,ATOS IT SERVICES UK LTD,3084449,8.07,VGA Monitor Extension Cable
Ministry of Justice,HMCTS,29/12/2014,265000-IT & Telecommunications,BZ999-London Region,ATOS IT SERVICES UK LTD,3084449,22.25,Andrea NC-181 headset
Ministry of Justice,HMCTS,29/12/2014,265000-IT & Telecommunications,BZ999-London Region,ATOS IT SERVICES UK LTD,3084449,18.33,Low-noise / soft touch keyboard
Ministry of Justice,HMCTS,29/12/2014,265000-IT & Telecommunications,BZ999-London Region,ATOS IT SERVICES UK LTD,3084449,25.78,New IPT Mobility account without voicemail 1-10 Accounts
Ministry of Justice,HMCTS,29/12/2014,265000-IT & Telecommunications,BZ999-London Region,ATOS IT SERVICES UK LTD,3084449,"1,820.70",AVM Ad-Hoc Labour and Materials
Ministry of Justice,HMCTS,29/12/2014,265000-IT & Telecommunications,BZ999-London Region,ATOS IT SERVICES UK LTD,3084449,11.16,HP Standard USB Keyboard
Ministry of Justice,HMCTS,29/12/2014,265000-IT & Telecommunications,BZ999-London Region,ATOS IT SERVICES UK LTD,3084449,11.17,MS Access
Ministry of Justice,HMCTS,29/12/2014,265000-IT & Telecommunications,BZ999-London Region,ATOS IT SERVICES UK LTD,3084449,11.17,MS Access
Ministry of Justice,HMCTS,29/12/2014,265000-IT & Telecommunications,BZ999-London Region,ATOS IT SERVICES UK LTD,3084449,309,Polycom Soundstation 2 Conference Phone 1-11 devices
Ministry of Justice,HMCTS,29/12/2014,265000-IT & Telecommunications,BZ999-London Region,ATOS IT SERVICES UK LTD,3084449,120.69,Relocation of a single desktop client device to a different building
Ministry of Justice,HMCTS,29/12/2014,265000-IT & Telecommunications,BZ999-London Region,ATOS IT SERVICES UK LTD,3084449,25.78,Fixed IPT Phone Change 1-10 Devices
Ministry of Justice,HMCTS,29/12/2014,265000-IT & Telecommunications,BZ999-London Region,ATOS IT SERVICES UK LTD,3084449,25.78,New IPT Mobility account with voicemail account 11-20 Accounts
Ministry of Justice,HMCTS,29/12/2014,265000-IT & Telecommunications,BZ999-London Region,ATOS IT SERVICES UK LTD,3084449,51.56,New IPT Handset 1 - 11 devices
Ministry of Justice,HMCTS,29/12/2014,265000-IT & Telecommunications,BZ999-London Region,ATOS IT SERVICES UK LTD,3084449,25.78,New IPT Handset 12 - 30 devices
Ministry of Justice,HMCTS,29/12/2014,265000-IT & Telecommunications,BZ999-London Region,ATOS IT SERVICES UK LTD,3084449,25.78,Pick Up Groups 1-10 Instances
Ministry of Justice,HMCTS,29/12/2014,265000-IT & Telecommunications,BZ999-London Region,ATOS IT SERVICES UK LTD,3084449,46,Provision and support of Secure Remote Access (RWSII) Capability
Ministry of Justice,HMCTS,29/12/2014,265000-IT & Telecommunications,BZ999-London Region,ATOS IT SERVICES UK LTD,3084449,250.38,Plantronics HW251 N Mono Headset 1-11 devices
Ministry of Justice,HMCTS,29/12/2014,265000-IT & Telecommunications,BZ999-London Region,ATOS IT SERVICES UK LTD,3084449,25.78,Fixed IPT Phone Transfer to a new user 1-10 Devices
Ministry of Justice,HMCTS,29/12/2014,265000-IT & Telecommunications,BZ999-London Region,ATOS IT SERVICES UK LTD,3084449,25.78,Analogue Extension Decommission 1 - 10
Ministry of Justice,HMCTS,29/12/2014,265000-IT & Telecommunications,BZ999-London Region,ATOS IT SERVICES UK LTD,3084449,164,"Standard Form Laptop - HP EliteBook 8470p (14"" screen)"
Ministry of Justice,HMCTS,29/12/2014,265000-IT & Telecommunications,BZ999-London Region,ATOS IT SERVICES UK LTD,3084449,113.16,"HP 230W Docking Station for 8440p, 8540p, 8460p, 8560p, 8470p and 8570p laptops"
Ministry of Justice,HMCTS,29/12/2014,265000-IT & Telecommunications,BZ999-London Region,ATOS IT SERVICES UK LTD,3084449,60.34,Desktop PC - HP DC8300
Ministry of Justice,HMCTS,29/12/2014,265000-IT & Telecommunications,BZ999-London Region,ATOS IT SERVICES UK LTD,3084449,25.78,Provision of voicemail 1 - 10 Devices
Ministry of Justice,HMCTS,29/12/2014,265000-IT & Telecommunications,BZ999-London Region,ATOS IT SERVICES UK LTD,3084449,25.78,Hunt Group 1-10 Instances
Ministry of Justice,HMCTS,29/12/2014,265000-IT & Telecommunications,BZ999-London Region,ATOS IT SERVICES UK LTD,3084449,25.78,Fixed IPT Phone Transfer to a new user 1-10 Devices
Ministry of Justice,HMCTS,29/12/2014,265000-IT & Telecommunications,BZ999-London Region,ATOS IT SERVICES UK LTD,3084449,120.69,Relocation of a single desktop client device to a different building
Ministry of Justice,HMCTS,29/12/2014,265000-IT & Telecommunications,BZ999-London Region,ATOS IT SERVICES UK LTD,3084449,82.78,BlackBerry (Vodafone)
Ministry of Justice,HMCTS,29/12/2014,265000-IT & Telecommunications,BZ999-London Region,ATOS IT SERVICES UK LTD,3084449,82.78,BlackBerry (Vodafone)
Ministry of Justice,HMCTS,29/12/2014,265000-IT & Telecommunications,BZ999-London Region,ATOS IT SERVICES UK LTD,3084449,817,1 to 5 Devices Xerox A4Colour Printer Phaser 6500DN WorkCentre
Ministry of Justice,HMCTS,29/12/2014,265000-IT & Telecommunications,BZ999-London Region,ATOS IT SERVICES UK LTD,3084449,78.26,Reassign BlackBerry device within Business Unit
Ministry of Justice,HMCTS,29/12/2014,265000-IT & Telecommunications,BZ999-London Region,ATOS IT SERVICES UK LTD,3084449,25.78,Transfer Mobility Account to new user 1-10 accounts
Ministry of Justice,HMCTS,29/12/2014,265000-IT & Telecommunications,BZ999-London Region,ATOS IT SERVICES UK LTD,3084449,25.78,New IPT Handset 1 - 11 devices
Ministry of Justice,HMCTS,29/12/2014,265000-IT & Telecommunications,BZ999-London Region,ATOS IT SERVICES UK LTD,3084449,25.78,Mobility Account Changes 1-10 Accounts
Ministry of Justice,HMCTS,29/12/2014,265000-IT & Telecommunications,BZ999-London Region,ATOS IT SERVICES UK LTD,3084449,46,Provision and support of Secure Remote Access (RWSII) Capability
Ministry of Justice,HMCTS,29/12/2014,265000-IT & Telecommunications,BZ999-London Region,ATOS IT SERVICES UK LTD,3084449,25.78,Pick Up Groups 1-10 Instances
Ministry of Justice,HMCTS,29/12/2014,265000-IT & Telecommunications,BZ999-London Region,ATOS IT SERVICES UK LTD,3084449,25.78,Hunt Group 1-10 Instances
Ministry of Justice,HMCTS,29/12/2014,265000-IT & Telecommunications,BZ999-London Region,ATOS IT SERVICES UK LTD,3084449,25.78,External Calls 1-10 Devices
Ministry of Justice,HMCTS,29/12/2014,265000-IT & Telecommunications,BZ999-London Region,ATOS IT SERVICES UK LTD,3084449,25.78,Fixed IPT Phone Transfer to a new user 1-10 Devices
Ministry of Justice,HMCTS,29/12/2014,265000-IT & Telecommunications,BZ999-London Region,ATOS IT SERVICES UK LTD,3084449,25.78,Deletion of a Mobility user account 1-10 Accounts
Ministry of Justice,HMCTS,29/12/2014,265000-IT & Telecommunications,BZ999-London Region,ATOS IT SERVICES UK LTD,3084449,25.78,New IPT Mobility account with voicemail account 11-20 Accounts
Ministry of Justice,HMCTS,29/12/2014,265000-IT & Telecommunications,BZ999-London Region,ATOS IT SERVICES UK LTD,3084449,103.12,Fixed IPT Phone Change 1-10 Devices
Ministry of Justice,HMCTS,29/12/2014,265000-IT & Telecommunications,BZ999-London Region,ATOS IT SERVICES UK LTD,3084449,25.78,New IPT Handset 12 - 30 devices
Ministry of Justice,HMCTS,29/12/2014,265000-IT & Telecommunications,BZ999-London Region,ATOS IT SERVICES UK LTD,3084449,68.66,Installation of 6-10 desktop client devices
Ministry of Justice,HMCTS,29/12/2014,265000-IT & Telecommunications,BZ999-London Region,ATOS IT SERVICES UK LTD,3084449,37.45,Installation of 2-5 desktop client devices
Ministry of Justice,HMCTS,29/12/2014,265000-IT & Telecommunications,BZ999-London Region,ATOS IT SERVICES UK LTD,3084449,11.17,MS Access
Ministry of Justice,HMCTS,29/12/2014,265000-IT & Telecommunications,BZ999-London Region,ATOS IT SERVICES UK LTD,3084449,25.78,Fixed IPT Phone Change 1-10 Devices
Ministry of Justice,HMCTS,29/12/2014,265000-IT & Telecommunications,BZ999-London Region,ATOS IT SERVICES UK LTD,3084449,25.78,Fixed IPT Phone Change 1-10 Devices
Ministry of Justice,HMCTS,29/12/2014,265000-IT & Telecommunications,BZ999-London Region,ATOS IT SERVICES UK LTD,3084449,762.61,E-mail restore for selected user / month on DOM1 (Aramis) and Libra exchange domain
Ministry of Justice,HMCTS,29/12/2014,265000-IT & Telecommunications,BZ999-London Region,ATOS IT SERVICES UK LTD,3084449,46,Provision and support of Secure Remote Access (RWSII) Capability
Ministry of Justice,HMCTS,29/12/2014,265000-IT & Telecommunications,BZ999-London Region,ATOS IT SERVICES UK LTD,3084449,860,6 - 20 Devices Xerox A4 Black & White Laser Printer 3600EDN
Ministry of Justice,HMCTS,29/12/2014,265000-IT & Telecommunications,BZ999-London Region,ATOS IT SERVICES UK LTD,3084449,25.78,Provision of voicemail 1 - 10 Devices
Ministry of Justice,HMCTS,29/12/2014,265000-IT & Telecommunications,BZ999-London Region,ATOS IT SERVICES UK LTD,3084449,46,Provision and support of Secure Remote Access (RWSII) Capability
Ministry of Justice,HMCTS,29/12/2014,265000-IT & Telecommunications,BZ999-London Region,ATOS IT SERVICES UK LTD,3084449,265.63,Dragon Naturally Speaking Professional v10
Ministry of Justice,HMCTS,29/12/2014,265000-IT & Telecommunications,BZ999-London Region,ATOS IT SERVICES UK LTD,3084449,43.22,Andrea NC181VM USB headset
Ministry of Justice,HMCTS,29/12/2014,265000-IT & Telecommunications,BZ999-London Region,ATOS IT SERVICES UK LTD,3084449,46,Provision and support of Secure Remote Access (RWSII) Capability
Ministry of Justice,HMCTS,29/12/2014,265000-IT & Telecommunications,BZ999-London Region,ATOS IT SERVICES UK LTD,3084449,25.78,Hunt Group 1-10 Instances
Ministry of Justice,HMCTS,29/12/2014,265000-IT & Telecommunications,BZ999-London Region,ATOS IT SERVICES UK LTD,3084449,67.31,Plantronics HW251 A Mono Headset 1-11 devices
Ministry of Justice,HMCTS,29/12/2014,265000-IT & Telecommunications,BZ999-London Region,ATOS IT SERVICES UK LTD,3084449,77.34,New IPT Handset 1 - 11 devices
Ministry of Justice,HMCTS,29/12/2014,265000-IT & Telecommunications,BZ999-London Region,ATOS IT SERVICES UK LTD,3084449,25.78,Fixed IPT Phone Change 1-10 Devices
Ministry of Justice,HMCTS,29/12/2014,265000-IT & Telecommunications,BZ999-London Region,ATOS IT SERVICES UK LTD,3084449,21.38,Return unwanted device or broken/faulty device
Ministry of Justice,HMCTS,29/12/2014,265000-IT & Telecommunications,BZ999-London Region,ATOS IT SERVICES UK LTD,3084449,133.3,Request a headset - Olympus E62 - for use with Olympus transcription software (play back of Olympus Digital Voice Recorder recordings)
Ministry of Justice,HMCTS,29/12/2014,265000-IT & Telecommunications,BZ999-London Region,ATOS IT SERVICES UK LTD,3084449,110.3,Request a foot pedal - Olympus RS31 -  for use with Olympus transcription software (play back of Olympus Digital Voice Recorder recordings)
Ministry of Justice,HMCTS,29/12/2014,265000-IT & Telecommunications,BZ999-London Region,ATOS IT SERVICES UK LTD,3084449,56.55,Auto Attendant - Message Prompt Menu - Amend Static Message Prompt Menu
Ministry of Justice,HMCTS,29/12/2014,265000-IT & Telecommunications,BZ999-London Region,ATOS IT SERVICES UK LTD,3084449,25.78,Deletion of a Mobility user account 1-10 Accounts
Ministry of Justice,HMCTS,29/12/2014,265000-IT & Telecommunications,BZ999-London Region,ATOS IT SERVICES UK LTD,3084449,25.78,New IPT Mobility account with voicemail account 11-20 Accounts
Ministry of Justice,HMCTS,29/12/2014,265000-IT & Telecommunications,BZ999-London Region,ATOS IT SERVICES UK LTD,3084449,25.78,Pick Up Groups 1-10 Instances
Ministry of Justice,HMCTS,29/12/2014,265000-IT & Telecommunications,BZ999-London Region,ATOS IT SERVICES UK LTD,3084449,25.78,Change Dialing Permissions 1-10 Devices
Ministry of Justice,HMCTS,29/12/2014,265000-IT & Telecommunications,BZ999-London Region,ATOS IT SERVICES UK LTD,3084449,25.78,Provision of voicemail 1 - 10 Devices
Ministry of Justice,HMCTS,29/12/2014,265000-IT & Telecommunications,BZ999-London Region,ATOS IT SERVICES UK LTD,3084449,51.56,Voicemail - New Voicemail Account 1-10 Accounts
Ministry of Justice,HMCTS,29/12/2014,265000-IT & Telecommunications,CZ999-South East Region,ATOS IT SERVICES UK LTD,3084449,25.78,"Analogue Extension Port For use with fax machine, MFD, franking machine or an analogue handset 12-30 devices"
Ministry of Justice,HMCTS,29/12/2014,265000-IT & Telecommunications,CZ999-South East Region,ATOS IT SERVICES UK LTD,3084449,10.92,Compact Keyboard
Ministry of Justice,HMCTS,29/12/2014,265000-IT & Telecommunications,CZ999-South East Region,ATOS IT SERVICES UK LTD,3084449,83.96,Evoluent Vertical Mouse
Ministry of Justice,HMCTS,29/12/2014,265000-IT & Telecommunications,CZ999-South East Region,ATOS IT SERVICES UK LTD,3084449,85.87,X-Kryptor Client software installation
Ministry of Justice,HMCTS,29/12/2014,265000-IT & Telecommunications,CZ999-South East Region,ATOS IT SERVICES UK LTD,3084449,83.46,Plantronics HW251 N Mono Headset 1-11 devices
Ministry of Justice,HMCTS,29/12/2014,265000-IT & Telecommunications,CZ999-South East Region,ATOS IT SERVICES UK LTD,3084449,83.96,Evoluent Vertical Mouse
Ministry of Justice,HMCTS,29/12/2014,265000-IT & Telecommunications,CZ999-South East Region,ATOS IT SERVICES UK LTD,3084449,33.33,Space Saving Mini Keyboard
Ministry of Justice,HMCTS,29/12/2014,265000-IT & Telecommunications,CZ999-South East Region,ATOS IT SERVICES UK LTD,3084449,25.78,Hunt Group 1-10 Instances
Ministry of Justice,HMCTS,29/12/2014,265000-IT & Telecommunications,CZ999-South East Region,ATOS IT SERVICES UK LTD,3084449,51.52,HP 90W Smart AC Adapter
Ministry of Justice,HMCTS,29/12/2014,265000-IT & Telecommunications,CZ999-South East Region,ATOS IT SERVICES UK LTD,3084449,36.66,Low-noise / soft touch keyboard
Ministry of Justice,HMCTS,29/12/2014,265000-IT & Telecommunications,CZ999-South East Region,ATOS IT SERVICES UK LTD,3084449,156.44,External DVD reader-writer With Nero CD/DVD Burning application
Ministry of Justice,HMCTS,29/12/2014,265000-IT & Telecommunications,CZ999-South East Region,ATOS IT SERVICES UK LTD,3084449,85.87,X-Kryptor Client software installation
Ministry of Justice,HMCTS,29/12/2014,265000-IT & Telecommunications,CZ999-South East Region,ATOS IT SERVICES UK LTD,3084449,46,Provision and support of Secure Remote Access (RWSII) Capability
Ministry of Justice,HMCTS,29/12/2014,265000-IT & Telecommunications,CZ999-South East Region,ATOS IT SERVICES UK LTD,3084449,37.45,Installation of 2-5 desktop client devices
Ministry of Justice,HMCTS,29/12/2014,265000-IT & Telecommunications,CZ999-South East Region,ATOS IT SERVICES UK LTD,3084449,25.78,Ex-Directory 1 - 11 Accounts
Ministry of Justice,HMCTS,29/12/2014,265000-IT & Telecommunications,CZ999-South East Region,ATOS IT SERVICES UK LTD,3084449,5,USB Extender cable
Ministry of Justice,HMCTS,29/12/2014,265000-IT & Telecommunications,CZ999-South East Region,ATOS IT SERVICES UK LTD,3084449,25.78,Hunt Group 1-10 Instances
Ministry of Justice,HMCTS,29/12/2014,265000-IT & Telecommunications,CZ999-South East Region,ATOS IT SERVICES UK LTD,3084449,25.78,New IPT Handset 1 - 11 devices
Ministry of Justice,HMCTS,29/12/2014,265000-IT & Telecommunications,CZ999-South East Region,ATOS IT SERVICES UK LTD,3084449,5,USB Extender cable
Ministry of Justice,HMCTS,29/12/2014,265000-IT & Telecommunications,CZ999-South East Region,ATOS IT SERVICES UK LTD,3084449,193.68,VGA Monitor Extension Cable
Ministry of Justice,HMCTS,29/12/2014,265000-IT & Telecommunications,CZ999-South East Region,ATOS IT SERVICES UK LTD,3084449,215,USB Extender cable
Ministry of Justice,HMCTS,29/12/2014,265000-IT & Telecommunications,CZ999-South East Region,ATOS IT SERVICES UK LTD,3084449,5.25,3m Cat6 network cable (purple)
Ministry of Justice,HMCTS,29/12/2014,265000-IT & Telecommunications,CZ999-South East Region,ATOS IT SERVICES UK LTD,3084449,25.78,New IPT Mobility account with voicemail account 11-20 Accounts
Ministry of Justice,HMCTS,29/12/2014,265000-IT & Telecommunications,CZ999-South East Region,ATOS IT SERVICES UK LTD,3084449,25.78,Deletion of a Mobility user account 1-10 Accounts
Ministry of Justice,HMCTS,29/12/2014,265000-IT & Telecommunications,CZ999-South East Region,ATOS IT SERVICES UK LTD,3084449,25.78,New IPT Mobility account with voicemail account 11-20 Accounts
Ministry of Justice,HMCTS,29/12/2014,265000-IT & Telecommunications,CZ999-South East Region,ATOS IT SERVICES UK LTD,3084449,51.56,Hunt Group 1-10 Instances
Ministry of Justice,HMCTS,29/12/2014,265000-IT & Telecommunications,CZ999-South East Region,ATOS IT SERVICES UK LTD,3084449,77.34,Mobility Handset Conversion to Fixed Handset & Import existing Mobility profile 1- 11 devices
Ministry of Justice,HMCTS,29/12/2014,265000-IT & Telecommunications,CZ999-South East Region,ATOS IT SERVICES UK LTD,3084449,73.32,Low-noise / soft touch keyboard
Ministry of Justice,HMCTS,29/12/2014,265000-IT & Telecommunications,CZ999-South East Region,ATOS IT SERVICES UK LTD,3084449,"3,317.00",1 to 5 Devices Multi Function device                  Xerox Workcenter 5745 - A3 Black and White printer with Colour scanner
Ministry of Justice,HMCTS,29/12/2014,265000-IT & Telecommunications,CZ999-South East Region,ATOS IT SERVICES UK LTD,3084449,416.16,1 to 5 Devices Local Relocation (same Authority Premises) -  Printer or MFD
Ministry of Justice,HMCTS,29/12/2014,265000-IT & Telecommunications,CZ999-South East Region,ATOS IT SERVICES UK LTD,3084449,416.16,1 to 5 Devices Local Relocation (same Authority Premises) -  Printer or MFD
Ministry of Justice,HMCTS,29/12/2014,265000-IT & Telecommunications,CZ999-South East Region,ATOS IT SERVICES UK LTD,3084449,"1,699.00",Auto Attendant - Create NEW Auto Attendant Call Flow
Ministry of Justice,HMCTS,29/12/2014,265000-IT & Telecommunications,CZ999-South East Region,ATOS IT SERVICES UK LTD,3084449,46,Provision and support of Secure Remote Access (RWSII) Capability
Ministry of Justice,HMCTS,29/12/2014,265000-IT & Telecommunications,CZ999-South East Region,ATOS IT SERVICES UK LTD,3084449,31.31,Ergonomic Keyboard [Microsoft Natural MultiMedia]
Ministry of Justice,HMCTS,29/12/2014,265000-IT & Telecommunications,CZ999-South East Region,ATOS IT SERVICES UK LTD,3084449,15.14,Mini Keypad
Ministry of Justice,HMCTS,29/12/2014,265000-IT & Telecommunications,CZ999-South East Region,ATOS IT SERVICES UK LTD,3084449,14.13,Kensington Orbit Optical Trackball
Ministry of Justice,HMCTS,29/12/2014,265000-IT & Telecommunications,CZ999-South East Region,ATOS IT SERVICES UK LTD,3084449,66.61,Humanscale Switch Mouse
Ministry of Justice,HMCTS,29/12/2014,265000-IT & Telecommunications,CZ999-South East Region,ATOS IT SERVICES UK LTD,3084449,25.78,Mobility Handset Conversion to Fixed Handset & Import existing Mobility profile 1- 11 devices
Ministry of Justice,HMCTS,29/12/2014,265000-IT & Telecommunications,CZ999-South East Region,ATOS IT SERVICES UK LTD,3084449,138,Provision and support of Secure Remote Access (RWSII) Capability
Ministry of Justice,HMCTS,29/12/2014,265000-IT & Telecommunications,DZ999-South West Region,ATOS IT SERVICES UK LTD,3084449,20,10m Network Cable
Ministry of Justice,HMCTS,29/12/2014,265000-IT & Telecommunications,DZ999-South West Region,ATOS IT SERVICES UK LTD,3084449,20,3m Network Cable
Ministry of Justice,HMCTS,29/12/2014,265000-IT & Telecommunications,DZ999-South West Region,ATOS IT SERVICES UK LTD,3084449,25.78,Mobility Handset Conversion to Fixed Handset & Import existing Mobility profile 1- 11 devices
Ministry of Justice,HMCTS,29/12/2014,265000-IT & Telecommunications,DZ999-South West Region,ATOS IT SERVICES UK LTD,3084449,"3,677.00",1 to 5 Devices Multi Function device                  Xerox Workcenter 5775 - Black and White printer / Colour scanner
Ministry of Justice,HMCTS,29/12/2014,265000-IT & Telecommunications,DZ999-South West Region,ATOS IT SERVICES UK LTD,3084449,92.44,Humanscale M2 Monitor Arm
Ministry of Justice,HMCTS,29/12/2014,265000-IT & Telecommunications,DZ999-South West Region,ATOS IT SERVICES UK LTD,3084449,25.78,Mobility Account Changes 1-10 Accounts
Ministry of Justice,HMCTS,29/12/2014,265000-IT & Telecommunications,DZ999-South West Region,ATOS IT SERVICES UK LTD,3084449,206.24,Analogue Extension Configuration Changes 1 - 10
Ministry of Justice,HMCTS,29/12/2014,265000-IT & Telecommunications,DZ999-South West Region,ATOS IT SERVICES UK LTD,3084449,416.16,1 to 5 Devices Local Relocation (same Authority Premises) -  Printer or MFD
Ministry of Justice,HMCTS,29/12/2014,265000-IT & Telecommunications,DZ999-South West Region,ATOS IT SERVICES UK LTD,3084449,56.55,Auto Attendant - Message Announcement - Convert an existing Static message annoucement `to a Flexible message annoucement
Ministry of Justice,HMCTS,29/12/2014,265000-IT & Telecommunications,DZ999-South West Region,ATOS IT SERVICES UK LTD,3084449,120.69,Relocation of a single desktop client device to a different building
Ministry of Justice,HMCTS,29/12/2014,265000-IT & Telecommunications,DZ999-South West Region,ATOS IT SERVICES UK LTD,3084449,25.78,New IPT Handset 1 - 11 devices
Ministry of Justice,HMCTS,29/12/2014,265000-IT & Telecommunications,DZ999-South West Region,ATOS IT SERVICES UK LTD,3084449,134.62,Plantronics HW251 A Mono Headset 12-30 devices
Ministry of Justice,HMCTS,29/12/2014,265000-IT & Telecommunications,DZ999-South West Region,ATOS IT SERVICES UK LTD,3084449,51.56,Hunt Group 1-10 Instances
Ministry of Justice,HMCTS,29/12/2014,265000-IT & Telecommunications,DZ999-South West Region,ATOS IT SERVICES UK LTD,3084449,25.78,Analogue Extension Decommission 1 - 10
Ministry of Justice,HMCTS,29/12/2014,265000-IT & Telecommunications,DZ999-South West Region,ATOS IT SERVICES UK LTD,3084449,25.78,New IPT Handset 1 - 11 devices
Ministry of Justice,HMCTS,29/12/2014,265000-IT & Telecommunications,DZ999-South West Region,ATOS IT SERVICES UK LTD,3084449,5,10m Network Cable
Ministry of Justice,HMCTS,29/12/2014,265000-IT & Telecommunications,DZ999-South West Region,ATOS IT SERVICES UK LTD,3084449,25.78,Fixed IPT Phone Transfer to a new user 1-10 Devices
Ministry of Justice,HMCTS,29/12/2014,265000-IT & Telecommunications,DZ999-South West Region,ATOS IT SERVICES UK LTD,3084449,25.78,Fixed IPT Phone Transfer to a new user 1-10 Devices
Ministry of Justice,HMCTS,29/12/2014,265000-IT & Telecommunications,DZ999-South West Region,ATOS IT SERVICES UK LTD,3084449,60.34,Installation of a single desktop device
Ministry of Justice,HMCTS,29/12/2014,265000-IT & Telecommunications,DZ999-South West Region,ATOS IT SERVICES UK LTD,3084449,25.78,Fixed IPT Phone Transfer to a new user 1-10 Devices
Ministry of Justice,HMCTS,29/12/2014,265000-IT & Telecommunications,DZ999-South West Region,ATOS IT SERVICES UK LTD,3084449,56.55,Auto Attendant - Message Annoucement - Convert an existing Flexible message announcement to a Static message announcement
Ministry of Justice,HMCTS,29/12/2014,265000-IT & Telecommunications,DZ999-South West Region,ATOS IT SERVICES UK LTD,3084449,25.78,Analogue Extension Configuration Changes 1 - 10
Ministry of Justice,HMCTS,29/12/2014,265000-IT & Telecommunications,DZ999-South West Region,ATOS IT SERVICES UK LTD,3084449,25.78,Hunt Group 1-10 Instances
Ministry of Justice,HMCTS,29/12/2014,265000-IT & Telecommunications,DZ999-South West Region,ATOS IT SERVICES UK LTD,3084449,25.78,Fixed IPT Phone Change 1-10 Devices
Ministry of Justice,HMCTS,29/12/2014,265000-IT & Telecommunications,EZ999-Wales Region,ATOS IT SERVICES UK LTD,3084449,116,Relocation of a single desktop client device to a different building.
Ministry of Justice,HMCTS,29/12/2014,265000-IT & Telecommunications,EZ999-Wales Region,ATOS IT SERVICES UK LTD,3084449,309,Polycom Soundstation 2 Conference Phone 1-11 devices
Ministry of Justice,HMCTS,29/12/2014,265000-IT & Telecommunications,EZ999-Wales Region,ATOS IT SERVICES UK LTD,3084449,25.78,"Analogue Extension Port For use with fax machine, MFD, franking machine or an analogue handset 1-11 devices"
Ministry of Justice,HMCTS,29/12/2014,265000-IT & Telecommunications,EZ999-Wales Region,ATOS IT SERVICES UK LTD,3084449,360,Relocation of 5 desktop client devices to a different building.
Ministry of Justice,HMCTS,29/12/2014,265000-IT & Telecommunications,EZ999-Wales Region,ATOS IT SERVICES UK LTD,3084449,25.78,Hunt Group 1-10 Instances
Ministry of Justice,HMCTS,29/12/2014,265000-IT & Telecommunications,EZ999-Wales Region,ATOS IT SERVICES UK LTD,3084449,25.78,External Calls 1-10 Devices
Ministry of Justice,HMCTS,29/12/2014,265000-IT & Telecommunications,EZ999-Wales Region,ATOS IT SERVICES UK LTD,3084449,25.78,Hunt Group 1-10 Instances
Ministry of Justice,HMCTS,29/12/2014,265000-IT & Telecommunications,EZ999-Wales Region,ATOS IT SERVICES UK LTD,3084449,25.78,Pick Up Groups 1-10 Instances
Ministry of Justice,HMCTS,29/12/2014,265000-IT & Telecommunications,EZ999-Wales Region,ATOS IT SERVICES UK LTD,3084449,144,Relocation of 2 desktop client devices to a different building.
Ministry of Justice,HMCTS,29/12/2014,265000-IT & Telecommunications,EZ999-Wales Region,ATOS IT SERVICES UK LTD,3084449,11.17,MS Access
Ministry of Justice,HMCTS,29/12/2014,265000-IT & Telecommunications,EZ999-Wales Region,ATOS IT SERVICES UK LTD,3084449,230.7,6930p Docking Station
Ministry of Justice,HMCTS,29/12/2014,265000-IT & Telecommunications,EZ999-Wales Region,ATOS IT SERVICES UK LTD,3084449,24.72,Wall Bracket
Ministry of Justice,HMCTS,29/12/2014,265000-IT & Telecommunications,EZ999-Wales Region,ATOS IT SERVICES UK LTD,3084449,25.78,Pick Up Groups 1-10 Instances
Ministry of Justice,HMCTS,29/12/2014,265000-IT & Telecommunications,EZ999-Wales Region,ATOS IT SERVICES UK LTD,3084449,24.72,Wall Bracket
Ministry of Justice,HMCTS,29/12/2014,265000-IT & Telecommunications,EZ999-Wales Region,ATOS IT SERVICES UK LTD,3084449,360,Auto Attendant - Amend existing Auto Attendant Call Flow
Ministry of Justice,HMCTS,29/12/2014,265000-IT & Telecommunications,EZ999-Wales Region,ATOS IT SERVICES UK LTD,3084449,297.12,Crystal Reports 2011
Ministry of Justice,HMCTS,29/12/2014,265000-IT & Telecommunications,EZ999-Wales Region,ATOS IT SERVICES UK LTD,3084449,91.65,Low-noise / soft touch keyboard
Ministry of Justice,HMCTS,29/12/2014,265000-IT & Telecommunications,EZ999-Wales Region,ATOS IT SERVICES UK LTD,3084449,488.39,"Cysgliad, comprising Cysill 3 (Welsh spellchecker) and Cysgeir (including CysGair 2, Welsh-English and English-Welsh dictionary)"
Ministry of Justice,HMCTS,29/12/2014,265000-IT & Telecommunications,EZ999-Wales Region,ATOS IT SERVICES UK LTD,3084449,257.8,Hunt Group 1-10 Instances
Ministry of Justice,HMCTS,09/12/2014,265000-IT & Telecommunications,FZ999-Midlands Region,ATOS IT SERVICES UK LTD,3063152,"17,214.00","Nottingham Magistrates' Court - ATOS IT SERVICES UK LTD - A-R-04147-03-v01 - ATOS Labour charge 					 						"
Ministry of Justice,HMCTS,09/12/2014,265000-IT & Telecommunications,FZ999-Midlands Region,ATOS IT SERVICES UK LTD,3063152,"8,537.00",Nottingham Magistrates' Court - ATOS IT SERVICES UK LTD - A-R-04147-03-v01 -Third Party Services
Ministry of Justice,HMCTS,09/12/2014,265000-IT & Telecommunications,FZ999-Midlands Region,ATOS IT SERVICES UK LTD,3063152,"3,440.00",Nottingham Magistrates' Court - ATOS IT SERVICES UK LTD - A-R-04147-03-v01 - Procurement
Ministry of Justice,HMCTS,29/12/2014,265000-IT & Telecommunications,FZ999-Midlands Region,ATOS IT SERVICES UK LTD,3084449,"1,398.30",Standard Power Down Request for DISC connected site with on site engineer assistance required
Ministry of Justice,HMCTS,29/12/2014,265000-IT & Telecommunications,FZ999-Midlands Region,ATOS IT SERVICES UK LTD,3084449,31.31,Ergonomic Keyboard [Microsoft Natural MultiMedia]
Ministry of Justice,HMCTS,29/12/2014,265000-IT & Telecommunications,FZ999-Midlands Region,ATOS IT SERVICES UK LTD,3084449,330,Relocation of 10 desktop client devices within the same building.
Ministry of Justice,HMCTS,29/12/2014,265000-IT & Telecommunications,FZ999-Midlands Region,ATOS IT SERVICES UK LTD,3084449,25.78,Pick Up Groups 1-10 Devices
Ministry of Justice,HMCTS,29/12/2014,265000-IT & Telecommunications,FZ999-Midlands Region,ATOS IT SERVICES UK LTD,3084449,115.36,New PSTN Line
Ministry of Justice,HMCTS,29/12/2014,265000-IT & Telecommunications,FZ999-Midlands Region,ATOS IT SERVICES UK LTD,3084449,25.78,Hunt Group 1-10 Instances
Ministry of Justice,HMCTS,29/12/2014,265000-IT & Telecommunications,FZ999-Midlands Region,ATOS IT SERVICES UK LTD,3084449,103.12,"Analogue Extension Port For use with fax machine, MFD, franking machine or an analogue handset 12-30 devices"
Ministry of Justice,HMCTS,29/12/2014,265000-IT & Telecommunications,FZ999-Midlands Region,ATOS IT SERVICES UK LTD,3084449,25.78,Fixed Handset Conversion to Mobility Handset & Mobility Account 1 - 11 devices
Ministry of Justice,HMCTS,29/12/2014,265000-IT & Telecommunications,FZ999-Midlands Region,ATOS IT SERVICES UK LTD,3084449,"2,580.00",1 to 5 Devices Xerox A4 Black & White Laser Printer 3600EDN
Ministry of Justice,HMCTS,29/12/2014,265000-IT & Telecommunications,FZ999-Midlands Region,ATOS IT SERVICES UK LTD,3084449,116,Relocation of a single desktop client device to a different building.
Ministry of Justice,HMCTS,29/12/2014,265000-IT & Telecommunications,FZ999-Midlands Region,ATOS IT SERVICES UK LTD,3084449,56.55,Auto Attendant - Message Prompt Option - Delete existing prompt Option
Ministry of Justice,HMCTS,29/12/2014,265000-IT & Telecommunications,FZ999-Midlands Region,ATOS IT SERVICES UK LTD,3084449,25.78,New IPT Handset 12 - 30 devices
Ministry of Justice,HMCTS,29/12/2014,265000-IT & Telecommunications,FZ999-Midlands Region,ATOS IT SERVICES UK LTD,3084449,181.02,Desktop PC - HP DC8300
Ministry of Justice,HMCTS,29/12/2014,265000-IT & Telecommunications,FZ999-Midlands Region,ATOS IT SERVICES UK LTD,3084449,111.45,Replace faulty or non-faulty out-of-contract BlackBerry device
Ministry of Justice,HMCTS,29/12/2014,265000-IT & Telecommunications,FZ999-Midlands Region,ATOS IT SERVICES UK LTD,3084449,25.78,New IPT Mobility account with voicemail account 11-20 Accounts
Ministry of Justice,HMCTS,29/12/2014,265000-IT & Telecommunications,FZ999-Midlands Region,ATOS IT SERVICES UK LTD,3084449,164,"Large Form Laptop - HP EliteBook 8570p (15.6"" screen)"
Ministry of Justice,HMCTS,29/12/2014,265000-IT & Telecommunications,FZ999-Midlands Region,ATOS IT SERVICES UK LTD,3084449,51.52,HP 90W Smart AC Adapter
Ministry of Justice,HMCTS,29/12/2014,265000-IT & Telecommunications,FZ999-Midlands Region,ATOS IT SERVICES UK LTD,3084449,25.78,Fixed IPT Phone Change 1-10 Devices
Ministry of Justice,HMCTS,29/12/2014,265000-IT & Telecommunications,FZ999-Midlands Region,ATOS IT SERVICES UK LTD,3084449,46,Provision and support of Secure Remote Access (RWSII) Capability
Ministry of Justice,HMCTS,29/12/2014,265000-IT & Telecommunications,FZ999-Midlands Region,ATOS IT SERVICES UK LTD,3084449,25.78,External Calls 1-10 Devices
Ministry of Justice,HMCTS,29/12/2014,265000-IT & Telecommunications,FZ999-Midlands Region,ATOS IT SERVICES UK LTD,3084449,25.78,New IPT Mobility account with voicemail account 11-20 Accounts
Ministry of Justice,HMCTS,29/12/2014,265000-IT & Telecommunications,FZ999-Midlands Region,ATOS IT SERVICES UK LTD,3084449,25.78,Fixed IPT Phone Change 1-10 Devices
Ministry of Justice,HMCTS,29/12/2014,265000-IT & Telecommunications,FZ999-Midlands Region,ATOS IT SERVICES UK LTD,3084449,25.78,New IPT Mobility account with voicemail account 1-10 Accounts
Ministry of Justice,HMCTS,29/12/2014,265000-IT & Telecommunications,FZ999-Midlands Region,ATOS IT SERVICES UK LTD,3084449,25.78,Fixed IPT Phone Change 1-10 Devices
Ministry of Justice,HMCTS,29/12/2014,265000-IT & Telecommunications,FZ999-Midlands Region,ATOS IT SERVICES UK LTD,3084449,"7,354.00",1 to 5 Devices Multi Function device                  Xerox Workcenter 5775 - Black and White printer / Colour scanner
Ministry of Justice,HMCTS,29/12/2014,265000-IT & Telecommunications,FZ999-Midlands Region,ATOS IT SERVICES UK LTD,3084449,25.78,Analogue Extension Configuration Changes 1 - 10
Ministry of Justice,HMCTS,29/12/2014,265000-IT & Telecommunications,FZ999-Midlands Region,ATOS IT SERVICES UK LTD,3084449,25.78,Hunt Group 1-10 Instances
Ministry of Justice,HMCTS,29/12/2014,265000-IT & Telecommunications,FZ999-Midlands Region,ATOS IT SERVICES UK LTD,3084449,46,Provision and support of Secure Remote Access (RWSII) Capability
Ministry of Justice,HMCTS,29/12/2014,265000-IT & Telecommunications,FZ999-Midlands Region,ATOS IT SERVICES UK LTD,3084449,25.78,New IPT Handset 1 - 11 devices
Ministry of Justice,HMCTS,29/12/2014,265000-IT & Telecommunications,FZ999-Midlands Region,ATOS IT SERVICES UK LTD,3084449,25.78,Voicemail - New Voicemail Account 1-10 Accounts
Ministry of Justice,HMCTS,29/12/2014,265000-IT & Telecommunications,FZ999-Midlands Region,ATOS IT SERVICES UK LTD,3084449,25.78,Voicemail - New Voicemail Account 1-10 Accounts
Ministry of Justice,HMCTS,29/12/2014,265000-IT & Telecommunications,FZ999-Midlands Region,ATOS IT SERVICES UK LTD,3084449,25.78,Transfer Mobility Account to new user 1-10 accounts
Ministry of Justice,HMCTS,29/12/2014,265000-IT & Telecommunications,FZ999-Midlands Region,ATOS IT SERVICES UK LTD,3084449,51.56,Hunt Group 1-10 Instances
Ministry of Justice,HMCTS,29/12/2014,265000-IT & Telecommunications,FZ999-Midlands Region,ATOS IT SERVICES UK LTD,3084449,77.34,Pick Up Groups 1-10 Instances
Ministry of Justice,HMCTS,29/12/2014,265000-IT & Telecommunications,FZ999-Midlands Region,ATOS IT SERVICES UK LTD,3084449,24.25,Laptop Security Device with Key lock
Ministry of Justice,HMCTS,29/12/2014,265000-IT & Telecommunications,FZ999-Midlands Region,ATOS IT SERVICES UK LTD,3084449,488.99,1 to 5 Devices National Relocation -Printer or MFD (Multi Function Device)
Ministry of Justice,HMCTS,29/12/2014,265000-IT & Telecommunications,FZ999-Midlands Region,ATOS IT SERVICES UK LTD,3084449,860,1 to 5 Devices Xerox A4 Black & White Laser Printer 3600EDN
Ministry of Justice,HMCTS,29/12/2014,265000-IT & Telecommunications,FZ999-Midlands Region,ATOS IT SERVICES UK LTD,3084449,25.78,Pick Up Groups 1-10 Instances
Ministry of Justice,HMCTS,29/12/2014,265000-IT & Telecommunications,FZ999-Midlands Region,ATOS IT SERVICES UK LTD,3084449,60.34,Desktop PC - HP DC8300
Ministry of Justice,HMCTS,29/12/2014,265000-IT & Telecommunications,FZ999-Midlands Region,ATOS IT SERVICES UK LTD,3084449,25.78,Analogue Extension Decommission 1 - 10
Ministry of Justice,HMCTS,29/12/2014,265000-IT & Telecommunications,FZ999-Midlands Region,ATOS IT SERVICES UK LTD,3084449,120.69,Relocation of a single desktop client device to a different building
Ministry of Justice,HMCTS,29/12/2014,265000-IT & Telecommunications,FZ999-Midlands Region,ATOS IT SERVICES UK LTD,3084449,46,Provision and support of Secure Remote Access (RWSII) Capability
Ministry of Justice,HMCTS,29/12/2014,265000-IT & Telecommunications,FZ999-Midlands Region,ATOS IT SERVICES UK LTD,3084449,301.7,Desktop PC - HP DC8300
Ministry of Justice,HMCTS,29/12/2014,265000-IT & Telecommunications,FZ999-Midlands Region,ATOS IT SERVICES UK LTD,3084449,543.06,Desktop PC - HP DC8300
Ministry of Justice,HMCTS,29/12/2014,265000-IT & Telecommunications,FZ999-Midlands Region,ATOS IT SERVICES UK LTD,3084449,282.62,"24"" LCD Display"
Ministry of Justice,HMCTS,29/12/2014,265000-IT & Telecommunications,FZ999-Midlands Region,ATOS IT SERVICES UK LTD,3084449,360,Auto Attendant - Amend existing Auto Attendant Call Flow
Ministry of Justice,HMCTS,29/12/2014,265000-IT & Telecommunications,FZ999-Midlands Region,ATOS IT SERVICES UK LTD,3084449,269.24,Plantronics HW251 A Mono Headset 1-11 devices
Ministry of Justice,HMCTS,29/12/2014,265000-IT & Telecommunications,FZ999-Midlands Region,ATOS IT SERVICES UK LTD,3084449,134.62,Plantronics HW251 A Mono Headset 1-11 devices
Ministry of Justice,HMCTS,29/12/2014,265000-IT & Telecommunications,FZ999-Midlands Region,ATOS IT SERVICES UK LTD,3084449,56.55,Auto Attendant - Message Announcement - Convert an existing Static message annoucement `to a Flexible message annoucement
Ministry of Justice,HMCTS,29/12/2014,265000-IT & Telecommunications,GZ999-North West Region,ATOS IT SERVICES UK LTD,3084449,25.78,"Analogue Extension Port For use with fax machine, MFD, franking machine or an analogue handset 12-30 devices"
Ministry of Justice,HMCTS,29/12/2014,265000-IT & Telecommunications,GZ999-North West Region,ATOS IT SERVICES UK LTD,3084449,25.78,External Calls 1-10 Devices
Ministry of Justice,HMCTS,29/12/2014,265000-IT & Telecommunications,GZ999-North West Region,ATOS IT SERVICES UK LTD,3084449,25.78,Hunt Group 1-10 Instances
Ministry of Justice,HMCTS,29/12/2014,265000-IT & Telecommunications,GZ999-North West Region,ATOS IT SERVICES UK LTD,3084449,25.78,"Analogue Extension Port For use with fax machine, MFD, franking machine or an analogue handset 12-30 devices"
Ministry of Justice,HMCTS,29/12/2014,265000-IT & Telecommunications,GZ999-North West Region,ATOS IT SERVICES UK LTD,3084449,25.78,Voicemail - New Voicemail Account 1-10 Accounts
Ministry of Justice,HMCTS,29/12/2014,265000-IT & Telecommunications,GZ999-North West Region,ATOS IT SERVICES UK LTD,3084449,25.78,Mobility Handset Conversion to Fixed Handset with new user details 1- 11 devices
Ministry of Justice,HMCTS,29/12/2014,265000-IT & Telecommunications,GZ999-North West Region,ATOS IT SERVICES UK LTD,3084449,257.8,New IPT Handset 1 - 11 devices
Ministry of Justice,HMCTS,29/12/2014,265000-IT & Telecommunications,GZ999-North West Region,ATOS IT SERVICES UK LTD,3084449,416.16,1 to 5 Devices Local Relocation (same Authority Premises) -  Printer or MFD
Ministry of Justice,HMCTS,29/12/2014,265000-IT & Telecommunications,GZ999-North West Region,ATOS IT SERVICES UK LTD,3084449,25.78,Voicemail - New Voicemail Account 1-10 Accounts
Ministry of Justice,HMCTS,29/12/2014,265000-IT & Telecommunications,GZ999-North West Region,ATOS IT SERVICES UK LTD,3084449,25.78,Pick Up Groups 1-10 Instances
Ministry of Justice,HMCTS,29/12/2014,265000-IT & Telecommunications,GZ999-North West Region,ATOS IT SERVICES UK LTD,3084449,25.78,Pick Up Groups 1-10 Instances
Ministry of Justice,HMCTS,29/12/2014,265000-IT & Telecommunications,GZ999-North West Region,ATOS IT SERVICES UK LTD,3084449,25.78,Fixed IPT Phone Transfer to a new user 1-10 Devices
Ministry of Justice,HMCTS,29/12/2014,265000-IT & Telecommunications,GZ999-North West Region,ATOS IT SERVICES UK LTD,3084449,25.78,Voicemail - New Voicemail Account 1-10 Accounts
Ministry of Justice,HMCTS,29/12/2014,265000-IT & Telecommunications,GZ999-North West Region,ATOS IT SERVICES UK LTD,3084449,60.34,Desktop PC - HP DC8300
Ministry of Justice,HMCTS,29/12/2014,265000-IT & Telecommunications,GZ999-North West Region,ATOS IT SERVICES UK LTD,3084449,11.62,MS Visio Std
Ministry of Justice,HMCTS,29/12/2014,265000-IT & Telecommunications,GZ999-North West Region,ATOS IT SERVICES UK LTD,3084449,25.78,Hunt Group 1-10 Instances
Ministry of Justice,HMCTS,29/12/2014,265000-IT & Telecommunications,GZ999-North West Region,ATOS IT SERVICES UK LTD,3084449,25.78,Hunt Group 1-10 Instances
Ministry of Justice,HMCTS,29/12/2014,265000-IT & Telecommunications,GZ999-North West Region,ATOS IT SERVICES UK LTD,3084449,25.78,Hunt Group 1-10 Instances
Ministry of Justice,HMCTS,29/12/2014,265000-IT & Telecommunications,GZ999-North West Region,ATOS IT SERVICES UK LTD,3084449,257.8,Fixed IPT Phone Change 1-10 Devices
Ministry of Justice,HMCTS,29/12/2014,265000-IT & Telecommunications,GZ999-North West Region,ATOS IT SERVICES UK LTD,3084449,25.78,Hunt Group 1-10 Instances
Ministry of Justice,HMCTS,29/12/2014,265000-IT & Telecommunications,GZ999-North West Region,ATOS IT SERVICES UK LTD,3084449,25.78,Pick Up Groups 1-10 Instances
Ministry of Justice,HMCTS,29/12/2014,265000-IT & Telecommunications,GZ999-North West Region,ATOS IT SERVICES UK LTD,3084449,25.78,Pick Up Groups 1-10 Instances
Ministry of Justice,HMCTS,29/12/2014,265000-IT & Telecommunications,GZ999-North West Region,ATOS IT SERVICES UK LTD,3084449,25.78,Hunt Group 1-10 Instances
Ministry of Justice,HMCTS,29/12/2014,265000-IT & Telecommunications,GZ999-North West Region,ATOS IT SERVICES UK LTD,3084449,25.78,Pick Up Groups 1-10 Instances
Ministry of Justice,HMCTS,29/12/2014,265000-IT & Telecommunications,GZ999-North West Region,ATOS IT SERVICES UK LTD,3084449,25.78,Hunt Group 1-10 Instances
Ministry of Justice,HMCTS,29/12/2014,265000-IT & Telecommunications,GZ999-North West Region,ATOS IT SERVICES UK LTD,3084449,25.78,"Analogue Extension Port For use with fax machine, MFD, franking machine or an analogue handset"
Ministry of Justice,HMCTS,29/12/2014,265000-IT & Telecommunications,GZ999-North West Region,ATOS IT SERVICES UK LTD,3084449,257.8,Fixed IPT Phone Change 1-10 Devices
Ministry of Justice,HMCTS,29/12/2014,265000-IT & Telecommunications,GZ999-North West Region,ATOS IT SERVICES UK LTD,3084449,25.78,Hunt Group 1-10 Instances
Ministry of Justice,HMCTS,29/12/2014,265000-IT & Telecommunications,GZ999-North West Region,ATOS IT SERVICES UK LTD,3084449,25.78,Pick Up Groups 1-10 Instances
Ministry of Justice,HMCTS,29/12/2014,265000-IT & Telecommunications,GZ999-North West Region,ATOS IT SERVICES UK LTD,3084449,128.9,Fixed IPT Phone Change 1-10 Devices
Ministry of Justice,HMCTS,29/12/2014,265000-IT & Telecommunications,GZ999-North West Region,ATOS IT SERVICES UK LTD,3084449,24.72,Wall Bracket
Ministry of Justice,HMCTS,29/12/2014,265000-IT & Telecommunications,GZ999-North West Region,ATOS IT SERVICES UK LTD,3084449,56.55,Auto Attendant - Message Announcement - Convert an existing Static message annoucement `to a Flexible message annoucement
Ministry of Justice,HMCTS,29/12/2014,265000-IT & Telecommunications,GZ999-North West Region,ATOS IT SERVICES UK LTD,3084449,43.22,NC181VM USB headset
Ministry of Justice,HMCTS,29/12/2014,265000-IT & Telecommunications,GZ999-North West Region,ATOS IT SERVICES UK LTD,3084449,78.26,Plantronics HW261 A Duo Headset 12-30 devices
Ministry of Justice,HMCTS,29/12/2014,265000-IT & Telecommunications,GZ999-North West Region,ATOS IT SERVICES UK LTD,3084449,37.45,Installation of 2-5 desktop client devices
Ministry of Justice,HMCTS,29/12/2014,265000-IT & Telecommunications,GZ999-North West Region,ATOS IT SERVICES UK LTD,3084449,25.78,International Calls 1-10 Accounts
Ministry of Justice,HMCTS,29/12/2014,265000-IT & Telecommunications,GZ999-North West Region,ATOS IT SERVICES UK LTD,3084449,5,3m Network Cable
Ministry of Justice,HMCTS,29/12/2014,265000-IT & Telecommunications,GZ999-North West Region,ATOS IT SERVICES UK LTD,3084449,25.78,Pick Up Groups 1-10 Instances
Ministry of Justice,HMCTS,29/12/2014,265000-IT & Telecommunications,GZ999-North West Region,ATOS IT SERVICES UK LTD,3084449,386.7,Fixed IPT Phone Change 11-20 Devices
Ministry of Justice,HMCTS,29/12/2014,265000-IT & Telecommunications,GZ999-North West Region,ATOS IT SERVICES UK LTD,3084449,24.72,Wall Bracket
Ministry of Justice,HMCTS,29/12/2014,265000-IT & Telecommunications,GZ999-North West Region,ATOS IT SERVICES UK LTD,3084449,360,Auto Attendant - Amend existing Auto Attendant Call Flow
Ministry of Justice,HMCTS,29/12/2014,265000-IT & Telecommunications,GZ999-North West Region,ATOS IT SERVICES UK LTD,3084449,25.78,Hunt Group - Extension
Ministry of Justice,HMCTS,29/12/2014,265000-IT & Telecommunications,GZ999-North West Region,ATOS IT SERVICES UK LTD,3084449,25.78,Pick Up Group - Amend
Ministry of Justice,HMCTS,10/12/2014,265000-IT & Telecommunications,HZ999-North East Region,ATOS IT SERVICES UK LTD,3066299,"56,991.00","A-R-04187-01 HMCTS NE RSU Relocation						"
Ministry of Justice,HMCTS,29/12/2014,265000-IT & Telecommunications,HZ999-North East Region,ATOS IT SERVICES UK LTD,3084449,25.78,Hunt Group 1-10 Instances
Ministry of Justice,HMCTS,29/12/2014,265000-IT & Telecommunications,HZ999-North East Region,ATOS IT SERVICES UK LTD,3084449,25.78,Pick Up Groups 1-10 Instances
Ministry of Justice,HMCTS,29/12/2014,265000-IT & Telecommunications,HZ999-North East Region,ATOS IT SERVICES UK LTD,3084449,"4,161.60",AVM Ad-Hoc Labour and Materials
Ministry of Justice,HMCTS,29/12/2014,265000-IT & Telecommunications,HZ999-North East Region,ATOS IT SERVICES UK LTD,3084449,416.16,1 to 5 Devices Local Relocation (same Authority Premises) -  Printer or MFD
Ministry of Justice,HMCTS,29/12/2014,265000-IT & Telecommunications,HZ999-North East Region,ATOS IT SERVICES UK LTD,3084449,58.1,Converse 2300 1-11 devices
Ministry of Justice,HMCTS,29/12/2014,265000-IT & Telecommunications,HZ999-North East Region,ATOS IT SERVICES UK LTD,3084449,111.45,Replace faulty or non-faulty out-of-contract BlackBerry device
Ministry of Justice,HMCTS,29/12/2014,265000-IT & Telecommunications,HZ999-North East Region,ATOS IT SERVICES UK LTD,3084449,11.17,MS Access
Ministry of Justice,HMCTS,29/12/2014,265000-IT & Telecommunications,HZ999-North East Region,ATOS IT SERVICES UK LTD,3084449,111.45,Replace faulty or non-faulty out-of-contract BlackBerry device
Ministry of Justice,HMCTS,29/12/2014,265000-IT & Telecommunications,HZ999-North East Region,ATOS IT SERVICES UK LTD,3084449,11.17,MS Access
Ministry of Justice,HMCTS,29/12/2014,265000-IT & Telecommunications,HZ999-North East Region,ATOS IT SERVICES UK LTD,3084449,5,5m Network Cable
Ministry of Justice,HMCTS,29/12/2014,265000-IT & Telecommunications,HZ999-North East Region,ATOS IT SERVICES UK LTD,3084449,25.78,New IPT Mobility account with voicemail account 11-20 Accounts
Ministry of Justice,HMCTS,29/12/2014,265000-IT & Telecommunications,HZ999-North East Region,ATOS IT SERVICES UK LTD,3084449,136.38,Black GoldTouch USB Keyboard
Ministry of Justice,HMCTS,29/12/2014,265000-IT & Telecommunications,HZ999-North East Region,ATOS IT SERVICES UK LTD,3084449,25.78,New IPT Mobility account with voicemail account 1-10 Accounts
Ministry of Justice,HMCTS,29/12/2014,265000-IT & Telecommunications,HZ999-North East Region,ATOS IT SERVICES UK LTD,3084449,25.78,New IPT Mobility account without voicemail 1-10 Accounts
Ministry of Justice,HMCTS,29/12/2014,265000-IT & Telecommunications,HZ999-North East Region,ATOS IT SERVICES UK LTD,3084449,25.78,Fixed IPT Phone Transfer to a new user 1-10 Devices
Ministry of Justice,HMCTS,29/12/2014,265000-IT & Telecommunications,HZ999-North East Region,ATOS IT SERVICES UK LTD,3084449,25.78,Hunt Group 1-10 Instances
Ministry of Justice,HMCTS,29/12/2014,265000-IT & Telecommunications,HZ999-North East Region,ATOS IT SERVICES UK LTD,3084449,25.78,Fixed IPT Phone Change 1-10 Devices
Ministry of Justice,HMCTS,29/12/2014,265000-IT & Telecommunications,HZ999-North East Region,ATOS IT SERVICES UK LTD,3084449,46.22,Request Olympus dictation and transcription software for a user.  Does not include Olympus Digital Professional Dictation Solution - DS-7000
Ministry of Justice,HMCTS,29/12/2014,265000-IT & Telecommunications,HZ999-North East Region,ATOS IT SERVICES UK LTD,3084449,5,5m Network Cable
Ministry of Justice,HMCTS,29/12/2014,265000-IT & Telecommunications,HZ999-North East Region,ATOS IT SERVICES UK LTD,3084449,428.64,Relocation of an IPT Handset or Analogue Extension port within the same site 1-11 devices
Ministry of Justice,HMCTS,29/12/2014,265000-IT & Telecommunications,HZ999-North East Region,ATOS IT SERVICES UK LTD,3084449,51.56,Hunt Group 11-20 Instances
Ministry of Justice,HMCTS,29/12/2014,265000-IT & Telecommunications,HZ999-North East Region,ATOS IT SERVICES UK LTD,3084449,25.78,New IPT Mobility account without voicemail 1-10 Accounts
Ministry of Justice,HMCTS,29/12/2014,265000-IT & Telecommunications,HZ999-North East Region,ATOS IT SERVICES UK LTD,3084449,46,Provision and support of Secure Remote Access (RWSII) Capability
Ministry of Justice,HMCTS,29/12/2014,265000-IT & Telecommunications,HZ999-North East Region,ATOS IT SERVICES UK LTD,3084449,5,10m Network Cable
Ministry of Justice,HMCTS,29/12/2014,265000-IT & Telecommunications,HZ999-North East Region,ATOS IT SERVICES UK LTD,3084449,25.78,Provision of voicemail 1 - 10 Devices
Ministry of Justice,HMCTS,29/12/2014,265000-IT & Telecommunications,HZ999-North East Region,ATOS IT SERVICES UK LTD,3084449,265.63,Dragon Naturally Speaking Professional v10
Ministry of Justice,HMCTS,29/12/2014,265000-IT & Telecommunications,HZ999-North East Region,ATOS IT SERVICES UK LTD,3084449,22.25,Andrea NC-181 headset
Ministry of Justice,HMCTS,29/12/2014,265000-IT & Telecommunications,HZ999-North East Region,ATOS IT SERVICES UK LTD,3084449,360,Auto Attendant - Amend existing Auto Attendant Call Flow
Ministry of Justice,HMCTS,29/12/2014,265000-IT & Telecommunications,HZ999-North East Region,ATOS IT SERVICES UK LTD,3084449,56.64,Diverse 7110 R 12-30 devices
Ministry of Justice,HMCTS,29/12/2014,265000-IT & Telecommunications,SJ999-Scotland,ATOS IT SERVICES UK LTD,3084449,31.31,Ergonomic Keyboard [Microsoft Natural MultiMedia]
Ministry of Justice,HMCTS,29/12/2014,265000-IT & Telecommunications,SJ999-Scotland,ATOS IT SERVICES UK LTD,3084449,257.5,Hunt Group - Complex Amendment
Ministry of Justice,HMCTS,29/12/2014,265000-IT & Telecommunications,SK999-Enforcement,ATOS IT SERVICES UK LTD,3084449,488.99,1 to 5 Devices National Relocation -Printer or MFD (Multi Function Device)
Ministry of Justice,HMCTS,29/12/2014,265000-IT & Telecommunications,SK999-Enforcement,ATOS IT SERVICES UK LTD,3084449,8.51,HP Basic Notebook Carrying Case
Ministry of Justice,HMCTS,29/12/2014,265000-IT & Telecommunications,SK999-Enforcement,ATOS IT SERVICES UK LTD,3084449,11.62,MS Project Professional
Ministry of Justice,HMCTS,29/12/2014,265000-IT & Telecommunications,SK999-Enforcement,ATOS IT SERVICES UK LTD,3084449,11.62,MS Visio Professional
Ministry of Justice,HMCTS,29/12/2014,265000-IT & Telecommunications,SK999-Enforcement,ATOS IT SERVICES UK LTD,3084449,25.78,New IPT Handset 1 - 11 devices
Ministry of Justice,HMCTS,29/12/2014,265000-IT & Telecommunications,SK999-Enforcement,ATOS IT SERVICES UK LTD,3084449,673.1,Plantronics HW251 A Mono Headset 1-11 devices
Ministry of Justice,HMCTS,29/12/2014,265000-IT & Telecommunications,SK999-Enforcement,ATOS IT SERVICES UK LTD,3084449,25.78,Pick Up Groups 1-10 Instances
Ministry of Justice,HMCTS,29/12/2014,265000-IT & Telecommunications,SK999-Enforcement,ATOS IT SERVICES UK LTD,3084449,832.32,1 to 5 Devices Local Relocation (same Authority Premises) -  Printer or MFD
Ministry of Justice,HMCTS,29/12/2014,265000-IT & Telecommunications,SK999-Enforcement,ATOS IT SERVICES UK LTD,3084449,51.56,New IPT Handset 1 - 11 devices
Ministry of Justice,HMCTS,29/12/2014,265000-IT & Telecommunications,SK999-Enforcement,ATOS IT SERVICES UK LTD,3084449,25.78,New IPT Handset 12 - 30 devices
Ministry of Justice,HMCTS,29/12/2014,265000-IT & Telecommunications,SK999-Enforcement,ATOS IT SERVICES UK LTD,3084449,25.78,Fixed IPT Phone Change 1-10 Devices
Ministry of Justice,HMCTS,29/12/2014,265000-IT & Telecommunications,SK999-Enforcement,ATOS IT SERVICES UK LTD,3084449,25.78,Pick Up Groups 1-10 Instances
Ministry of Justice,HMCTS,29/12/2014,265000-IT & Telecommunications,SK999-Enforcement,ATOS IT SERVICES UK LTD,3084449,103.12,New IPT Handset 1 - 11 devices
Ministry of Justice,HMCTS,29/12/2014,265000-IT & Telecommunications,SK999-Enforcement,ATOS IT SERVICES UK LTD,3084449,207.69,Converse 2100 12-30 devices
Ministry of Justice,HMCTS,29/12/2014,265000-IT & Telecommunications,SK999-Enforcement,ATOS IT SERVICES UK LTD,3084449,83.96,Evoluent Vertical Mouse
Ministry of Justice,HMCTS,29/12/2014,265000-IT & Telecommunications,SK999-Enforcement,ATOS IT SERVICES UK LTD,3084449,51.56,Hunt Group 11-20 Instances
Ministry of Justice,HMCTS,29/12/2014,265000-IT & Telecommunications,SK999-Enforcement,ATOS IT SERVICES UK LTD,3084449,25.78,Pick Up Groups 21-50 Instances
Ministry of Justice,HMCTS,29/12/2014,265000-IT & Telecommunications,SK999-Enforcement,ATOS IT SERVICES UK LTD,3084449,25.78,Pick Up Groups 1-10 Instances
Ministry of Justice,HMCTS,29/12/2014,265000-IT & Telecommunications,SK999-Enforcement,ATOS IT SERVICES UK LTD,3084449,488.99,1 to 5 Devices National Relocation -Printer or MFD (Multi Function Device)
Ministry of Justice,HMCTS,29/12/2014,265000-IT & Telecommunications,SK999-Enforcement,ATOS IT SERVICES UK LTD,3084449,111.45,Replace faulty or non-faulty out-of-contract BlackBerry device
Ministry of Justice,HMCTS,29/12/2014,265000-IT & Telecommunications,SK999-Enforcement,ATOS IT SERVICES UK LTD,3084449,51.56,New IPT Handset 1 - 11 devices
Ministry of Justice,HMCTS,29/12/2014,265000-IT & Telecommunications,SK999-Enforcement,ATOS IT SERVICES UK LTD,3084449,417.3,Plantronics HW251 N Mono Headset 12-30 devices
Ministry of Justice,HMCTS,29/12/2014,265000-IT & Telecommunications,SK999-Enforcement,ATOS IT SERVICES UK LTD,3084449,44,Plantronics U10P-S19 Bottom Cable 12-30 devices
Ministry of Justice,HMCTS,29/12/2014,265000-IT & Telecommunications,SK999-Enforcement,ATOS IT SERVICES UK LTD,3084449,22.28,Plantronics Headset Ear Cushions 12-30 devices
Ministry of Justice,HMCTS,16/12/2014,265000-IT & Telecommunications,SL999-Centralised Frontline,ATOS IT SERVICES UK LTD,3070979,"11,959.20",Packaging of RoC URL
Ministry of Justice,HMCTS,16/12/2014,265000-IT & Telecommunications,SL999-Centralised Frontline,ATOS IT SERVICES UK LTD,3070979,"12,617.00",Production of OWA
Ministry of Justice,HMCTS,16/12/2014,265000-IT & Telecommunications,SL999-Centralised Frontline,ATOS IT SERVICES UK LTD,3070979,"2,391.84",Packaging of RoC URL
Ministry of Justice,HMCTS,16/12/2014,265000-IT & Telecommunications,SL999-Centralised Frontline,ATOS IT SERVICES UK LTD,3070979,"2,523.40",Production of OWA
Ministry of Justice,HMCTS,29/12/2014,265000-IT & Telecommunications,SM999-National Business Centres,ATOS IT SERVICES UK LTD,3084449,61.8,Recovery of a redundant IPT handset from site 12-30 devices
Ministry of Justice,HMCTS,29/12/2014,265000-IT & Telecommunications,SM999-National Business Centres,ATOS IT SERVICES UK LTD,3084449,25.78,New IPT Mobility account with voicemail account 11-20 Accounts
Ministry of Justice,HMCTS,29/12/2014,265000-IT & Telecommunications,SM999-National Business Centres,ATOS IT SERVICES UK LTD,3084449,25.78,Hunt Group 1-10 Instances
Ministry of Justice,HMCTS,29/12/2014,265000-IT & Telecommunications,SM999-National Business Centres,ATOS IT SERVICES UK LTD,3084449,25.78,Pick Up Groups 11-20 Instances
Ministry of Justice,HMCTS,29/12/2014,265000-IT & Telecommunications,SM999-National Business Centres,ATOS IT SERVICES UK LTD,3084449,89.12,Plantronics Headset Ear Cushions 1-11 devices
Ministry of Justice,HMCTS,29/12/2014,265000-IT & Telecommunications,SM999-National Business Centres,ATOS IT SERVICES UK LTD,3084449,299.64,Plantronics HW261 N Duo Headset 1-11 devices
Ministry of Justice,HMCTS,29/12/2014,265000-IT & Telecommunications,SM999-National Business Centres,ATOS IT SERVICES UK LTD,3084449,199.76,Plantronics HW261 N Duo Headset 1-11 devices
Ministry of Justice,HMCTS,29/12/2014,265000-IT & Telecommunications,SM999-National Business Centres,ATOS IT SERVICES UK LTD,3084449,199.76,Plantronics HW261 N Duo Headset 12-30 devices
Ministry of Justice,HMCTS,29/12/2014,265000-IT & Telecommunications,SM999-National Business Centres,ATOS IT SERVICES UK LTD,3084449,33.33,Space Saving Mini Keyboard
Ministry of Justice,HMCTS,29/12/2014,265000-IT & Telecommunications,SM999-National Business Centres,ATOS IT SERVICES UK LTD,3084449,40.34,Provision of FHINS access
Ministry of Justice,HMCTS,29/12/2014,265000-IT & Telecommunications,SM999-National Business Centres,ATOS IT SERVICES UK LTD,3084449,18.33,Cherry eVolution WHITE STREAM PS/2 and USB
Ministry of Justice,HMCTS,29/12/2014,265000-IT & Telecommunications,SM999-National Business Centres,ATOS IT SERVICES UK LTD,3084449,5.13,Standard Keyboard
Ministry of Justice,HMCTS,29/12/2014,265000-IT & Telecommunications,SM999-National Business Centres,ATOS IT SERVICES UK LTD,3084449,"1,346.20",Plantronics HW251 A Mono Headset 12-30 devices
Ministry of Justice,HMCTS,29/12/2014,265000-IT & Telecommunications,SM999-National Business Centres,ATOS IT SERVICES UK LTD,3084449,44.56,Plantronics Headset Ear Cushions 12-30 devices
Ministry of Justice,HMCTS,29/12/2014,265000-IT & Telecommunications,SM999-National Business Centres,ATOS IT SERVICES UK LTD,3084449,10.92,Compact Keyboard
Ministry of Justice,HMCTS,29/12/2014,265000-IT & Telecommunications,SM999-National Business Centres,ATOS IT SERVICES UK LTD,3084449,15.14,Mini Keypad
Ministry of Justice,HMCTS,29/12/2014,265000-IT & Telecommunications,SM999-National Business Centres,ATOS IT SERVICES UK LTD,3084449,25.78,Hunt Group - New Default Creation
Ministry of Justice,HMCTS,29/12/2014,265000-IT & Telecommunications,SM999-National Business Centres,ATOS IT SERVICES UK LTD,3084449,33.33,Space Saving Mini Keyboard
Ministry of Justice,HMCTS,09/12/2014,610200-Debtors < 1 Year - VAT,WW000-Balance Sheet,ATOS IT SERVICES UK LTD,3063152,"5,838.20",Computer services supplied to the specification of the recipient
Ministry of Justice,HMCTS,10/12/2014,610200-Debtors < 1 Year - VAT,WW000-Balance Sheet,ATOS IT SERVICES UK LTD,3066299,"11,398.20",Computer services supplied to the specification of the recipient
Ministry of Justice,HMCTS,09/12/2014,610200-Debtors < 1 Year - VAT,WW000-Balance Sheet,ATOS IT SERVICES UK LTD,3063152,"12,361.20",Computer services supplied to the specification of the recipient
Ministry of Justice,HMCTS,29/12/2014,610200-Debtors < 1 Year - VAT,WW000-Balance Sheet,ATOS IT SERVICES UK LTD,3084449,"12,787.93",Computer services supplied to the specification of the recipient
Ministry of Justice,HMCTS,19/12/2014,226000-Court Costs,SL999-Centralised Frontline,B C L BURTON COPELAND#DX 37981,3075388,"33,295.62",Legal fees to solicitors for  the repayment of fees paid by the acquitted defendants
Ministry of Justice,HMCTS,23/12/2014,610400-Debtors <1 year - Prepayments & Accrued Income,CZ999-South East Region,BASILDON BOROUGH COUNCIL,3079397,"37,076.89",Rates payment
Ministry of Justice,HMCTS,12/12/2014,610400-Debtors <1 year - Prepayments & Accrued Income,BZ999-London Region,BERKLEY ESTATES LONDON LTD,3068420,"1,197,279.07",Rent payment
Ministry of Justice,HMCTS,12/12/2014,734000-Provisions - Utilised in year,WW000-Balance Sheet,BIRCHAM DYSON BELL SOLICITORS#TO10305563,3068786,"109,612.49",Judicial Services Award
Ministry of Justice,HMCTS,23/12/2014,610400-Debtors <1 year - Prepayments & Accrued Income,FZ999-Midlands Region,BIRMINGHAM CITY COUNCIL,3079402,"31,057.91",Rates payment
Ministry of Justice,HMCTS,23/12/2014,610400-Debtors <1 year - Prepayments & Accrued Income,FZ999-Midlands Region,BIRMINGHAM CITY COUNCIL,3079402,"46,948.00",Rates payment
Ministry of Justice,HMCTS,23/12/2014,610400-Debtors <1 year - Prepayments & Accrued Income,FZ999-Midlands Region,BIRMINGHAM CITY COUNCIL,3079402,"157,456.39",Rates payment
Ministry of Justice,HMCTS,02/12/2014,610400-Debtors <1 year - Prepayments & Accrued Income,FZ999-Midlands Region,BOND WOLFE ASSETS LTD,3055574,"33,905.70",Rent payment
Ministry of Justice,HMCTS,02/12/2014,610400-Debtors <1 year - Prepayments & Accrued Income,FZ999-Midlands Region,BOND WOLFE ASSETS LTD,3055574,"13,399.05",Service charge payment
Ministry of Justice,HMCTS,02/12/2014,710200-Creditors < 1 year - Trade & Other Creditors,FZ999-Midlands Region,BOND WOLFE ASSETS LTD,3055574,"3,583.27",MOTO occupancy costs
Ministry of Justice,HMCTS,02/12/2014,710200-Creditors < 1 year - Trade & Other Creditors,FZ999-Midlands Region,BOND WOLFE ASSETS LTD,3055574,"9,067.30",MOTO occupancy costs
Ministry of Justice,HMCTS,23/12/2014,610400-Debtors <1 year - Prepayments & Accrued Income,DZ999-South West Region,BOURNEMOUTH BOROUGH COUNCIL,3079412,"42,614.34",Rates payment
Ministry of Justice,HMCTS,23/12/2014,610400-Debtors <1 year - Prepayments & Accrued Income,HZ999-North East Region,BRADFORD METROPOLITAN COUNCIL,3079414,"59,226.71",Rates payment
Ministry of Justice,HMCTS,23/12/2014,610400-Debtors <1 year - Prepayments & Accrued Income,DZ999-South West Region,BRISTOL CITY COUNCIL,3079418,"77,042.88",Rates payment
Ministry of Justice,HMCTS,23/12/2014,610400-Debtors <1 year - Prepayments & Accrued Income,DZ999-South West Region,BRISTOL CITY COUNCIL,3079418,"52,966.98",Rates payment
Ministry of Justice,HMCTS,23/12/2014,610400-Debtors <1 year - Prepayments & Accrued Income,DZ999-South West Region,BRISTOL CITY COUNCIL,3079418,"49,114.84",Rates payment
Ministry of Justice,HMCTS,31/12/2014,261000-Fuel and Utilities,BZ999-London Region,BRITISH GAS BUSINESS,3086064,-0.12,London Region Consolidated Electricity Charges - British Gas 2014/15 (Credit VAT 20%)
Ministry of Justice,HMCTS,31/12/2014,261000-Fuel and Utilities,BZ999-London Region,BRITISH GAS BUSINESS,3086064,"4,697.68",London Region Consolidated Electricity Charges - British Gas 2014/15 (VAT 20%)
Ministry of Justice,HMCTS,31/12/2014,261000-Fuel and Utilities,BZ999-London Region,BRITISH GAS BUSINESS,3086064,"-4,697.68",London Region Consolidated Electricity Charges - British Gas 2014/15 (Credit VAT 20%)
Ministry of Justice,HMCTS,31/12/2014,261000-Fuel and Utilities,BZ999-London Region,BRITISH GAS BUSINESS,3086064,"23,138.16",London Region Consolidated Electricity Charges - British Gas 2014/15
Ministry of Justice,HMCTS,31/12/2014,261000-Fuel and Utilities,BZ999-London Region,BRITISH GAS BUSINESS,3086064,350.24,London Region Consolidated Electricity Charges - British Gas 2014/15
Ministry of Justice,HMCTS,31/12/2014,261000-Fuel and Utilities,BZ999-London Region,BRITISH GAS BUSINESS,3086064,17.51,London Region Consolidated Electricity Charges - British Gas 2014/15 (VAT 5%)
Ministry of Justice,HMCTS,31/12/2014,261000-Fuel and Utilities,BZ999-London Region,BRITISH GAS BUSINESS,3086064,"4,627.63",London Region Consolidated Electricity Charges - British Gas 2014/15 (VAT 20%)
Ministry of Justice,HMCTS,31/12/2014,261000-Fuel and Utilities,BZ999-London Region,BRITISH GAS BUSINESS,3086064,-0.16,London Region Consolidated Electricity Charges - British Gas 2014/15 (Credit VAT 20%)
Ministry of Justice,HMCTS,31/12/2014,261000-Fuel and Utilities,BZ999-London Region,BRITISH GAS BUSINESS,3086064,"23,719.73",London Region Consolidated Electricity Charges - British Gas 2014/15
Ministry of Justice,HMCTS,31/12/2014,261000-Fuel and Utilities,BZ999-London Region,BRITISH GAS BUSINESS,3086064,329.87,London Region Consolidated Electricity Charges - British Gas 2014/15
Ministry of Justice,HMCTS,31/12/2014,261000-Fuel and Utilities,BZ999-London Region,BRITISH GAS BUSINESS,3086064,16.49,London Region Consolidated Electricity Charges - British Gas 2014/15 (VAT 5%)
Ministry of Justice,HMCTS,31/12/2014,261000-Fuel and Utilities,BZ999-London Region,BRITISH GAS BUSINESS,3086064,"4,743.95",London Region Consolidated Electricity Charges - British Gas 2014/15 (VAT 20%)
Ministry of Justice,HMCTS,31/12/2014,261000-Fuel and Utilities,DZ999-South West Region,BRITISH GAS BUSINESS,3086065,-0.15,South West Regional Office (DA170) - British Gas - Account no.: 3053490 - Electricity Consumption costs (various sites) 14/15
Ministry of Justice,HMCTS,31/12/2014,261000-Fuel and Utilities,DZ999-South West Region,BRITISH GAS BUSINESS,3086065,247.91,South West Regional Office (DA170) - British Gas - Account no.: 3053490 - Electricity Consumption costs (various sites) 14/15
Ministry of Justice,HMCTS,31/12/2014,261000-Fuel and Utilities,DZ999-South West Region,BRITISH GAS BUSINESS,3086065,"34,736.39",South West Regional Office (DA170) - British Gas - Account no.: 3053490 - Electricity Consumption costs (various sites) 14/15
Ministry of Justice,HMCTS,31/12/2014,261000-Fuel and Utilities,DZ999-South West Region,BRITISH GAS BUSINESS,3086065,12.4,South West Regional Office (DA170) - British Gas - Account no.: 3053490 - Electricity Consumption costs (various sites) 14/15
Ministry of Justice,HMCTS,31/12/2014,261000-Fuel and Utilities,DZ999-South West Region,BRITISH GAS BUSINESS,3086065,"6,947.28",South West Regional Office (DA170) - British Gas - Account no.: 3053490 - Electricity Consumption costs (various sites) 14/15
Ministry of Justice,HMCTS,31/12/2014,261000-Fuel and Utilities,DZ999-South West Region,BRITISH GAS BUSINESS,3086065,-0.15,South West Regional Office (DA170) - British Gas - Account no.: 3053490 - Electricity Consumption costs (various sites) 14/15
Ministry of Justice,HMCTS,31/12/2014,261000-Fuel and Utilities,DZ999-South West Region,BRITISH GAS BUSINESS,3086065,492.18,South West Regional Office (DA170) - British Gas - Account no.: 3053490 - Electricity Consumption costs (various sites) 14/15
Ministry of Justice,HMCTS,31/12/2014,261000-Fuel and Utilities,DZ999-South West Region,BRITISH GAS BUSINESS,3086065,"34,075.57",South West Regional Office (DA170) - British Gas - Account no.: 3053490 - Electricity Consumption costs (various sites) 14/15
Ministry of Justice,HMCTS,31/12/2014,261000-Fuel and Utilities,DZ999-South West Region,BRITISH GAS BUSINESS,3086065,24.61,South West Regional Office (DA170) - British Gas - Account no.: 3053490 - Electricity Consumption costs (various sites) 14/15
Ministry of Justice,HMCTS,31/12/2014,261000-Fuel and Utilities,DZ999-South West Region,BRITISH GAS BUSINESS,3086065,"6,815.11",South West Regional Office (DA170) - British Gas - Account no.: 3053490 - Electricity Consumption costs (various sites) 14/15
Ministry of Justice,HMCTS,31/12/2014,261000-Fuel and Utilities,EZ999-Wales Region,BRITISH GAS BUSINESS,3086065,-0.13,BGB electricity for  HMCTS Wales 2014/15.
Ministry of Justice,HMCTS,31/12/2014,261000-Fuel and Utilities,EZ999-Wales Region,BRITISH GAS BUSINESS,3086065,119.31,BGB electricity for  HMCTS Wales 2014/15.
Ministry of Justice,HMCTS,31/12/2014,261000-Fuel and Utilities,EZ999-Wales Region,BRITISH GAS BUSINESS,3086065,"22,351.09",BGB electricity for  HMCTS Wales 2014/15.
Ministry of Justice,HMCTS,31/12/2014,261000-Fuel and Utilities,EZ999-Wales Region,BRITISH GAS BUSINESS,3086065,5.97,BGB electricity for  HMCTS Wales 2014/15.
Ministry of Justice,HMCTS,31/12/2014,261000-Fuel and Utilities,EZ999-Wales Region,BRITISH GAS BUSINESS,3086065,"4,470.22",BGB electricity for  HMCTS Wales 2014/15.
Ministry of Justice,HMCTS,31/12/2014,261000-Fuel and Utilities,EZ999-Wales Region,BRITISH GAS BUSINESS,3086065,-0.15,BGB electricity for  HMCTS Wales 2014/15.
Ministry of Justice,HMCTS,31/12/2014,261000-Fuel and Utilities,EZ999-Wales Region,BRITISH GAS BUSINESS,3086065,192.83,BGB electricity for  HMCTS Wales 2014/15.
Ministry of Justice,HMCTS,31/12/2014,261000-Fuel and Utilities,EZ999-Wales Region,BRITISH GAS BUSINESS,3086065,"32,458.15",BGB electricity for  HMCTS Wales 2014/15.
Ministry of Justice,HMCTS,31/12/2014,261000-Fuel and Utilities,EZ999-Wales Region,BRITISH GAS BUSINESS,3086065,9.64,BGB electricity for  HMCTS Wales 2014/15.
Ministry of Justice,HMCTS,31/12/2014,261000-Fuel and Utilities,EZ999-Wales Region,BRITISH GAS BUSINESS,3086065,"6,491.63",BGB electricity for  HMCTS Wales 2014/15.
Ministry of Justice,HMCTS,31/12/2014,261000-Fuel and Utilities,FZ999-Midlands Region,BRITISH GAS BUSINESS,3086065,-0.18,BGB electricity for  HMCTS Midlands 2014/15.
Ministry of Justice,HMCTS,31/12/2014,261000-Fuel and Utilities,FZ999-Midlands Region,BRITISH GAS BUSINESS,3086065,572.37,BGB electricity for  HMCTS Midlands 2014/15.
Ministry of Justice,HMCTS,31/12/2014,261000-Fuel and Utilities,FZ999-Midlands Region,BRITISH GAS BUSINESS,3086065,"25,657.56",BGB electricity for  HMCTS Midlands 2014/15.
Ministry of Justice,HMCTS,31/12/2014,261000-Fuel and Utilities,FZ999-Midlands Region,BRITISH GAS BUSINESS,3086065,28.62,BGB electricity for  HMCTS Midlands 2014/15.
Ministry of Justice,HMCTS,31/12/2014,261000-Fuel and Utilities,FZ999-Midlands Region,BRITISH GAS BUSINESS,3086065,"5,131.51",BGB electricity for  HMCTS Midlands 2014/15.
Ministry of Justice,HMCTS,12/12/2014,610400-Debtors <1 year - Prepayments & Accrued Income,BZ999-London Region,BROADGATE ESTATES LTD,3068440,"2,616,550.00",Rent payment
Ministry of Justice,HMCTS,12/12/2014,610400-Debtors <1 year - Prepayments & Accrued Income,BZ999-London Region,BROADGATE ESTATES LTD,3068440,"287,755.90",Service charge payment
Ministry of Justice,HMCTS,12/12/2014,610400-Debtors <1 year - Prepayments & Accrued Income,BZ999-London Region,BROADGATE ESTATES LTD,3068440,"57,551.18",Service charge payment
Ministry of Justice,HMCTS,12/12/2014,610400-Debtors <1 year - Prepayments & Accrued Income,BZ999-London Region,BROADGATE ESTATES LTD,3068440,"523,310.00",Rent payment
Ministry of Justice,HMCTS,19/12/2014,261000-Fuel and Utilities,BZ999-London Region,BROADGATE ESTATES LTD,3076762,"21,666.89",Electricity Charges for Fetter Lane for the month of October 14
Ministry of Justice,HMCTS,19/12/2014,261000-Fuel and Utilities,BZ999-London Region,BROADGATE ESTATES LTD,3076762,"4,333.38",Electricity Charges for Fetter Lane for the month of October 14 (VAT Element 20%)
Ministry of Justice,HMCTS,16/12/2014,222002-Other Property Costs,FZ999-Midlands Region,BRUNTWOOD,3071043,"45,173.25",Service charge payment
Ministry of Justice,HMCTS,16/12/2014,222002-Other Property Costs,FZ999-Midlands Region,BRUNTWOOD,3071043,"9,034.65",Service charge payment
Ministry of Justice,HMCTS,12/12/2014,265000-IT & Telecommunications,BZ999-London Region,BT TELECOMMUNICATIONS PLC,3068447,-0.01,London Region Consolidated - BT One Bill - 2014/15 (Credit VAT 20%)
Ministry of Justice,HMCTS,12/12/2014,265000-IT & Telecommunications,BZ999-London Region,BT TELECOMMUNICATIONS PLC,3068447,"32,877.14",London Region Consolidated - BT One Bill - 2014/15
Ministry of Justice,HMCTS,12/12/2014,265000-IT & Telecommunications,BZ999-London Region,BT TELECOMMUNICATIONS PLC,3068447,"6,575.43",London Region Consolidated - BT One Bill - 2014/15 (VAT 20%)
Ministry of Justice,HMCTS,23/12/2014,610400-Debtors <1 year - Prepayments & Accrued Income,CZ999-South East Region,CAMBRIDGE CITY COUNCIL,3079423,"26,965.01",Rates payment
Ministry of Justice,HMCTS,16/12/2014,610400-Debtors <1 year - Prepayments & Accrued Income,DZ999-South West Region,CANADA LIFE LTD,3071064,"63,287.67",Rent payment
Ministry of Justice,HMCTS,23/12/2014,610400-Debtors <1 year - Prepayments & Accrued Income,CZ999-South East Region,CANTERBURY CITY COUNCIL,3079425,"40,688.27",Rates payment
Ministry of Justice,HMCTS,30/12/2014,610400-Debtors <1 year - Prepayments & Accrued Income,FZ999-Midlands Region,CAPITA PROPERTY & INFRASTRUCTURE LTD,3084994,"12,300.00",Rent payment
Ministry of Justice,HMCTS,30/12/2014,610400-Debtors <1 year - Prepayments & Accrued Income,FZ999-Midlands Region,CAPITA PROPERTY & INFRASTRUCTURE LTD,3084994,"14,140.28",Service charge payment
Ministry of Justice,HMCTS,23/12/2014,610400-Debtors <1 year - Prepayments & Accrued Income,EZ999-Wales Region,CARDIFF COUNTY COUNCIL,3079426,"37,565.90",Rates payment
Ministry of Justice,HMCTS,23/12/2014,610400-Debtors <1 year - Prepayments & Accrued Income,GZ999-North West Region,CARDIFF COUNTY COUNCIL,3079426,"25,516.46",Rates payment
Ministry of Justice,HMCTS,16/12/2014,610400-Debtors <1 year - Prepayments & Accrued Income,CZ999-South East Region,CBGA ROBSON LLP,3071073,"38,417.50",Rent payment
Ministry of Justice,HMCTS,16/12/2014,610400-Debtors <1 year - Prepayments & Accrued Income,CZ999-South East Region,CBGA ROBSON LLP,3071073,"25,716.89",Service charge payment
Ministry of Justice,HMCTS,16/12/2014,610400-Debtors <1 year - Prepayments & Accrued Income,CZ999-South East Region,CBGA ROBSON LLP,3071073,"5,143.38",Service charge payment
Ministry of Justice,HMCTS,16/12/2014,610400-Debtors <1 year - Prepayments & Accrued Income,CZ999-South East Region,CBGA ROBSON LLP,3071073,"7,683.50",Rent payment
Ministry of Justice,HMCTS,23/12/2014,610400-Debtors <1 year - Prepayments & Accrued Income,BZ999-London Region,CBRE LTD,3081082,"742,005.00",Rent payment
Ministry of Justice,HMCTS,23/12/2014,610400-Debtors <1 year - Prepayments & Accrued Income,BZ999-London Region,CBRE LTD,3081082,"742,005.00",Rent payment
Ministry of Justice,HMCTS,16/12/2014,610400-Debtors <1 year - Prepayments & Accrued Income,EZ999-Wales Region,CBRE LTD,3071074,"13,662.50",Rent payment
Ministry of Justice,HMCTS,16/12/2014,610400-Debtors <1 year - Prepayments & Accrued Income,EZ999-Wales Region,CBRE LTD,3071074,"11,795.00",Service charge payment
Ministry of Justice,HMCTS,16/12/2014,610400-Debtors <1 year - Prepayments & Accrued Income,EZ999-Wales Region,CBRE LTD,3071074,"2,359.00",Service charge payment
Ministry of Justice,HMCTS,16/12/2014,610400-Debtors <1 year - Prepayments & Accrued Income,EZ999-Wales Region,CBRE LTD,3071074,"2,732.50",Rent payment
Ministry of Justice,HMCTS,02/12/2014,610400-Debtors <1 year - Prepayments & Accrued Income,GZ999-North West Region,CBRE LTD,3055625,"29,894.50",Service charge payment
Ministry of Justice,HMCTS,02/12/2014,610400-Debtors <1 year - Prepayments & Accrued Income,GZ999-North West Region,CBRE LTD,3055625,"5,978.90",Service charge payment
Ministry of Justice,HMCTS,02/12/2014,610400-Debtors <1 year - Prepayments & Accrued Income,GZ999-North West Region,CBRE LTD,3055625,"29,852.25",Service charge payment
Ministry of Justice,HMCTS,02/12/2014,610400-Debtors <1 year - Prepayments & Accrued Income,GZ999-North West Region,CBRE LTD,3055625,"5,970.45",Service charge payment
Ministry of Justice,HMCTS,29/12/2014,221000-Property Rent and Rates,SJ999-Scotland,CBRE LTD,3084467,"71,815.80",Rent payment
Ministry of Justice,HMCTS,29/12/2014,222002-Other Property Costs,SJ999-Scotland,CBRE LTD,3084467,"46,019.40",Service charge payment
Ministry of Justice,HMCTS,29/12/2014,221000-Property Rent and Rates,SJ999-Scotland,CBRE LTD,3084467,"108,429.30",Rent payment
Ministry of Justice,HMCTS,29/12/2014,222002-Other Property Costs,SJ999-Scotland,CBRE LTD,3084467,"69,504.90",Service charge payment
Ministry of Justice,HMCTS,02/12/2014,265000-IT & Telecommunications,AP999-HQ - Strategy & Change,CGI IT UK LTD,3055626,"54,301.06",CCN L-R-4269-01 - CGI T&M CCN Tax Expansion Project - Requirements NLE and Test
Ministry of Justice,HMCTS,16/12/2014,264000-Consultancy,AP999-HQ - Strategy & Change,CGI IT UK LTD,3071075,"133,665.00",Consultancy costs Initiation costs for Immigration Act 2014 Implementation Project
Ministry of Justice,HMCTS,16/12/2014,264000-Consultancy,AP999-HQ - Strategy & Change,CGI IT UK LTD,3071075,"26,733.00",Consultancy costs Initiation costs for Immigration Act 2014 Implementation Project
Ministry of Justice,HMCTS,09/12/2014,265000-IT & Telecommunications,AT899-HQ - ICT,CGI IT UK LTD,3063261,"21,618.00","L-R-4224-01 CCN changes to Xhibit/Crest/Darts/Juror/Aramis from TR legislation						"
Ministry of Justice,HMCTS,05/12/2014,265000-IT & Telecommunications,AT899-HQ - ICT,CGI IT UK LTD,3060896,"4,526.20","L-R-4054-01 DARTS Additional Storage					 				"
Ministry of Justice,HMCTS,05/12/2014,265000-IT & Telecommunications,AT899-HQ - ICT,CGI IT UK LTD,3060896,"-4,526.20","L-R-4054-01 DARTS Additional Storage					 				"
Ministry of Justice,HMCTS,05/12/2014,265000-IT & Telecommunications,AT899-HQ - ICT,CGI IT UK LTD,3060896,"6,466.00","L-R-4054-01 DARTS Additional Storage					 				"
Ministry of Justice,HMCTS,05/12/2014,265000-IT & Telecommunications,AT899-HQ - ICT,CGI IT UK LTD,3060896,"16,165.00","L-R-4054-01 DARTS Additional Storage					 				"
Ministry of Justice,HMCTS,05/12/2014,265000-IT & Telecommunications,AT899-HQ - ICT,CGI IT UK LTD,3060896,"1,293.20","L-R-4054-01 DARTS Additional Storage					 				"
Ministry of Justice,HMCTS,05/12/2014,265000-IT & Telecommunications,AT899-HQ - ICT,CGI IT UK LTD,3060896,"3,233.00","L-R-4054-01 DARTS Additional Storage					 				"
Ministry of Justice,HMCTS,03/12/2014,265000-IT & Telecommunications,AT899-HQ - ICT,CGI IT UK LTD,3058444,"51,072.00","L-R-3693-01 Legacy Archiving - M5 Phase 3 Extract Report Approval						 					 						 						 						"
Ministry of Justice,HMCTS,05/12/2014,265000-IT & Telecommunications,BZ999-London Region,CGI IT UK LTD,3060896,"21,179.00","Tax and Land Tribunals - CGI IT UK LTD - CGI PD L-S-04276-01 v05 - L-S-04276-01 v05 Bedford Square Relocation						 					"
Ministry of Justice,HMCTS,09/12/2014,610200-Debtors < 1 Year - VAT,WW000-Balance Sheet,CGI IT UK LTD,3063261,"4,323.60",Computer services supplied to the specification of the recipient
Ministry of Justice,HMCTS,02/12/2014,610200-Debtors < 1 Year - VAT,WW000-Balance Sheet,CGI IT UK LTD,3055626,"10,860.21",Computer services supplied to the specification of the recipient
Ministry of Justice,HMCTS,03/12/2014,610200-Debtors < 1 Year - VAT,WW000-Balance Sheet,CGI IT UK LTD,3058444,"10,214.40",Computer services supplied to the specification of the recipient
Ministry of Justice,HMCTS,05/12/2014,610200-Debtors < 1 Year - VAT,WW000-Balance Sheet,CGI IT UK LTD,3060896,"4,235.80",Computer services supplied to the specification of the recipient
Ministry of Justice,HMCTS,23/12/2014,610400-Debtors <1 year - Prepayments & Accrued Income,CZ999-South East Region,CHELMSFORD BOROUGH COUNCIL,3079431,"33,499.00",Rates payment
Ministry of Justice,HMCTS,23/12/2014,610400-Debtors <1 year - Prepayments & Accrued Income,CZ999-South East Region,CHELMSFORD BOROUGH COUNCIL,3079431,"29,643.00",Rates payment
Ministry of Justice,HMCTS,23/12/2014,610400-Debtors <1 year - Prepayments & Accrued Income,CZ999-South East Region,CHELMSFORD BOROUGH COUNCIL,3079431,"27,233.00",Rates payment
Ministry of Justice,HMCTS,23/12/2014,610400-Debtors <1 year - Prepayments & Accrued Income,FZ999-Midlands Region,CITY OF LINCOLN COUNCIL,3079441,"31,539.43",Rates payment
Ministry of Justice,HMCTS,19/12/2014,221000-Property Rent and Rates,BZ999-London Region,CITY OF LONDON,3076804,"214,306.25",Rent payment
Ministry of Justice,HMCTS,19/12/2014,222002-Other Property Costs,BZ999-London Region,CITY OF LONDON,3076804,"53,788.96",Service charge payment
Ministry of Justice,HMCTS,19/12/2014,222002-Other Property Costs,BZ999-London Region,CITY OF LONDON,3076804,"8,535.41",Service charge payment
Ministry of Justice,HMCTS,19/12/2014,221000-Property Rent and Rates,BZ999-London Region,CITY OF LONDON,3076804,"42,861.25",Rent payment
Ministry of Justice,HMCTS,19/12/2014,222002-Other Property Costs,BZ999-London Region,CITY OF LONDON,3076804,"12,464.87",Service charge payment
Ministry of Justice,HMCTS,19/12/2014,610400-Debtors <1 year - Prepayments & Accrued Income,BZ999-London Region,CITY OF LONDON,3076803,"1,141,500.00",Service charge payment
Ministry of Justice,HMCTS,23/12/2014,610400-Debtors <1 year - Prepayments & Accrued Income,BZ999-London Region,CITY OF LONDON,3079442,"67,736.20",Rates payment
Ministry of Justice,HMCTS,23/12/2014,610400-Debtors <1 year - Prepayments & Accrued Income,BZ999-London Region,CITY OF LONDON,3079442,"372,549.08",Rates payment
Ministry of Justice,HMCTS,23/12/2014,610400-Debtors <1 year - Prepayments & Accrued Income,FZ999-Midlands Region,CITY OF STOKE ON TRENT,3079443,"33,706.26",Rates payment
Ministry of Justice,HMCTS,23/12/2014,610400-Debtors <1 year - Prepayments & Accrued Income,BZ999-London Region,CITY OF WESTMINSTER,3079444,"529,873.00",Rates payment
Ministry of Justice,HMCTS,23/12/2014,610400-Debtors <1 year - Prepayments & Accrued Income,BZ999-London Region,CITY OF WESTMINSTER,3079444,"73,720.21",Rates payment
Ministry of Justice,HMCTS,16/12/2014,610400-Debtors <1 year - Prepayments & Accrued Income,BZ999-London Region,CLSH MANAGEMENT LTD,3071096,"45,000.00",Rent payment
Ministry of Justice,HMCTS,16/12/2014,610400-Debtors <1 year - Prepayments & Accrued Income,BZ999-London Region,CLSH MANAGEMENT LTD,3071096,"9,000.00",Rent payment
Ministry of Justice,HMCTS,09/12/2014,610400-Debtors <1 year - Prepayments & Accrued Income,DZ999-South West Region,CLSH MANAGEMENT LTD,3063285,"42,594.92",Rent payment
Ministry of Justice,HMCTS,16/12/2014,221000-Property Rent and Rates,HZ999-North East Region,CLSH MANAGEMENT LTD,3071096,"113,050.25",Rent payment
Ministry of Justice,HMCTS,16/12/2014,221000-Property Rent and Rates,HZ999-North East Region,CLSH MANAGEMENT LTD,3071096,"22,610.05",Rent payment
Ministry of Justice,HMCTS,09/12/2014,710200-Creditors < 1 year - Trade & Other Creditors,SM999-National Business Centres,CLSH MANAGEMENT LTD,3063285,"2,781.58",Quarterly Rent for South West Region Dec14  to  March 15
Ministry of Justice,HMCTS,23/12/2014,610400-Debtors <1 year - Prepayments & Accrued Income,CZ999-South East Region,COLCHESTER BOROUGH COUNCIL,3079446,"31,298.67",Rates payment
Ministry of Justice,HMCTS,02/12/2014,610400-Debtors <1 year - Prepayments & Accrued Income,HZ999-North East Region,COLENSO PROPERTY SERVICES LLP,3055654,"29,250.00",Rent payment
Ministry of Justice,HMCTS,02/12/2014,610400-Debtors <1 year - Prepayments & Accrued Income,HZ999-North East Region,COLENSO PROPERTY SERVICES LLP,3055654,"5,850.00",Rent payment
Ministry of Justice,HMCTS,16/12/2014,610400-Debtors <1 year - Prepayments & Accrued Income,CZ999-South East Region,COLLIERS INTERNATIONAL,3071098,"186,511.70",Rent payment
Ministry of Justice,HMCTS,16/12/2014,610400-Debtors <1 year - Prepayments & Accrued Income,CZ999-South East Region,COLLIERS INTERNATIONAL,3071098,"44,957.75",Service charge payment
Ministry of Justice,HMCTS,16/12/2014,610400-Debtors <1 year - Prepayments & Accrued Income,CZ999-South East Region,COLLIERS INTERNATIONAL,3071098,"37,302.34",Rent payment
Ministry of Justice,HMCTS,16/12/2014,610400-Debtors <1 year - Prepayments & Accrued Income,CZ999-South East Region,COLLIERS INTERNATIONAL,3071098,"8,991.55",Service charge payment
Ministry of Justice,HMCTS,30/12/2014,221000-Property Rent and Rates,EZ999-Wales Region,COLUMBUS HOUSE PROPERTIES LTD,3085000,"85,625.00",Rent payment
Ministry of Justice,HMCTS,23/12/2014,610400-Debtors <1 year - Prepayments & Accrued Income,GZ999-North West Region,CORK STREET PROPERTIES LTD,3081112,"2,171,284.00",Rent payment
Ministry of Justice,HMCTS,23/12/2014,610400-Debtors <1 year - Prepayments & Accrued Income,GZ999-North West Region,CORK STREET PROPERTIES LTD,3081112,"434,256.80",Rent payment
Ministry of Justice,HMCTS,19/12/2014,261000-Fuel and Utilities,BZ999-London Region,CORONA ENERGY,3076822,594.09,HMCTS London Region - Corona - Consolidated Gas Account 2014/15
Ministry of Justice,HMCTS,19/12/2014,261000-Fuel and Utilities,BZ999-London Region,CORONA ENERGY,3076822,"94,276.86",HMCTS London Region - Corona - Consolidated Gas Account 2014/15
Ministry of Justice,HMCTS,19/12/2014,261000-Fuel and Utilities,BZ999-London Region,CORONA ENERGY,3076822,29.7,HMCTS London Region - Corona - Consolidated Gas Account 2014/15 (VAT 5%)
Ministry of Justice,HMCTS,19/12/2014,261000-Fuel and Utilities,BZ999-London Region,CORONA ENERGY,3076822,"18,855.37",HMCTS London Region - Corona - Consolidated Gas Account 2014/15 (VAT 20%)
Ministry of Justice,HMCTS,19/12/2014,261000-Fuel and Utilities,CZ999-South East Region,CORONA ENERGY,3076822,202.39,SE Region Consolidated - Corona - Gas charges 2014/15 - Replacement for PO 20000173659
Ministry of Justice,HMCTS,19/12/2014,261000-Fuel and Utilities,CZ999-South East Region,CORONA ENERGY,3076822,"86,807.10",SE Region Consolidated - Corona - Gas charges 2014/15 - Replacement for PO 20000173659
Ministry of Justice,HMCTS,19/12/2014,261000-Fuel and Utilities,CZ999-South East Region,CORONA ENERGY,3076822,10.12,SE Region Consolidated - Corona - Gas charges 2014/15 - Replacement for PO 20000173659
Ministry of Justice,HMCTS,19/12/2014,261000-Fuel and Utilities,CZ999-South East Region,CORONA ENERGY,3076822,"17,361.42",SE Region Consolidated - Corona - Gas charges 2014/15 - Replacement for PO 20000173659
Ministry of Justice,HMCTS,31/12/2014,261000-Fuel and Utilities,DZ999-South West Region,CORONA ENERGY,3086084,365.83,SW Finance Office _ Corona Energy _ DA170-222143 _ GAS _ Acct no.:20301400 _ Monthly Consolidated Bill for various sites in the SW Region.
Ministry of Justice,HMCTS,31/12/2014,261000-Fuel and Utilities,DZ999-South West Region,CORONA ENERGY,3086084,"47,927.71",SW Finance Office _ Corona Energy _ DA170-222143 _ GAS _ Acct no.:20301400 _ Monthly Consolidated Bill for various sites in the SW Region.
Ministry of Justice,HMCTS,31/12/2014,261000-Fuel and Utilities,DZ999-South West Region,CORONA ENERGY,3086084,18.29,SW Finance Office _ Corona Energy _ DA170-222143 _ GAS _ Acct no.:20301400 _ Monthly Consolidated Bill for various sites in the SW Region.
Ministry of Justice,HMCTS,31/12/2014,261000-Fuel and Utilities,DZ999-South West Region,CORONA ENERGY,3086084,"9,585.54",SW Finance Office _ Corona Energy _ DA170-222143 _ GAS _ Acct no.:20301400 _ Monthly Consolidated Bill for various sites in the SW Region.
Ministry of Justice,HMCTS,19/12/2014,261000-Fuel and Utilities,EZ999-Wales Region,CORONA ENERGY,3076822,110.6,HMCTS Wales Corona gas consolidated charges 2014/15.
Ministry of Justice,HMCTS,19/12/2014,261000-Fuel and Utilities,EZ999-Wales Region,CORONA ENERGY,3076822,"22,525.10",HMCTS Wales Corona gas consolidated charges 2014/15.
Ministry of Justice,HMCTS,19/12/2014,261000-Fuel and Utilities,EZ999-Wales Region,CORONA ENERGY,3076822,5.53,HMCTS Wales Corona gas consolidated charges 2014/15.
Ministry of Justice,HMCTS,19/12/2014,261000-Fuel and Utilities,EZ999-Wales Region,CORONA ENERGY,3076822,"4,505.02",HMCTS Wales Corona gas consolidated charges 2014/15.
Ministry of Justice,HMCTS,19/12/2014,261000-Fuel and Utilities,FZ999-Midlands Region,CORONA ENERGY,3076822,"71,269.00",Corona Energy gas HMCTS Midlands 2014/15.
Ministry of Justice,HMCTS,19/12/2014,261000-Fuel and Utilities,FZ999-Midlands Region,CORONA ENERGY,3076822,171.16,Corona Energy gas HMCTS Midlands 2014/15.
Ministry of Justice,HMCTS,19/12/2014,261000-Fuel and Utilities,FZ999-Midlands Region,CORONA ENERGY,3076822,8.56,Corona Energy gas HMCTS Midlands 2014/15.
Ministry of Justice,HMCTS,19/12/2014,261000-Fuel and Utilities,FZ999-Midlands Region,CORONA ENERGY,3076822,"14,253.80",Corona Energy gas HMCTS Midlands 2014/15.
Ministry of Justice,HMCTS,19/12/2014,261000-Fuel and Utilities,FZ999-Midlands Region,CORONA ENERGY,3076822,0.01,Corona Energy gas HMCTS Midlands 2014/15.
Ministry of Justice,HMCTS,19/12/2014,261000-Fuel and Utilities,FZ999-Midlands Region,CORONA ENERGY,3076822,"10,445.18",Corona Energy gas HMCTS Midlands 2014/15.
Ministry of Justice,HMCTS,19/12/2014,261000-Fuel and Utilities,FZ999-Midlands Region,CORONA ENERGY,3076822,"22,008.72",Corona Energy gas HMCTS Midlands 2014/15.
Ministry of Justice,HMCTS,19/12/2014,261000-Fuel and Utilities,FZ999-Midlands Region,CORONA ENERGY,3076822,522.26,Corona Energy gas HMCTS Midlands 2014/15.
Ministry of Justice,HMCTS,19/12/2014,261000-Fuel and Utilities,FZ999-Midlands Region,CORONA ENERGY,3076822,"4,401.74",Corona Energy gas HMCTS Midlands 2014/15.
Ministry of Justice,HMCTS,19/12/2014,261000-Fuel and Utilities,GZ999-North West Region,CORONA ENERGY,3076822,"74,970.41",NW Region Consolidated - Gas - Corona 
Ministry of Justice,HMCTS,19/12/2014,261000-Fuel and Utilities,GZ999-North West Region,CORONA ENERGY,3076822,4.7,NW Region Consolidated - Gas - Corona 
Ministry of Justice,HMCTS,19/12/2014,261000-Fuel and Utilities,GZ999-North West Region,CORONA ENERGY,3076822,"14,994.08",NW Region Consolidated - Gas - Corona 
Ministry of Justice,HMCTS,19/12/2014,261000-Fuel and Utilities,GZ999-North West Region,CORONA ENERGY,3076822,-4.7,NW Region Consolidated - Gas - Corona 
Ministry of Justice,HMCTS,19/12/2014,261000-Fuel and Utilities,GZ999-North West Region,CORONA ENERGY,3076822,89.55,NW Region Consolidated - Gas - Corona 
Ministry of Justice,HMCTS,19/12/2014,261000-Fuel and Utilities,GZ999-North West Region,CORONA ENERGY,3076822,4.48,NW Region Consolidated - Gas - Corona 
Ministry of Justice,HMCTS,19/12/2014,261000-Fuel and Utilities,HZ999-North East Region,CORONA ENERGY,3076822,314.34,North East Region Consolidated Gas account
Ministry of Justice,HMCTS,19/12/2014,261000-Fuel and Utilities,HZ999-North East Region,CORONA ENERGY,3076822,"71,274.63",North East Region Consolidated Gas account
Ministry of Justice,HMCTS,19/12/2014,261000-Fuel and Utilities,HZ999-North East Region,CORONA ENERGY,3076822,15.72,North East Region Consolidated Gas account
Ministry of Justice,HMCTS,19/12/2014,261000-Fuel and Utilities,HZ999-North East Region,CORONA ENERGY,3076822,"14,254.93",North East Region Consolidated Gas account
Ministry of Justice,HMCTS,23/12/2014,610400-Debtors <1 year - Prepayments & Accrued Income,FZ999-Midlands Region,COVENTRY CITY COUNCIL,3079454,"26,483.49",Rates payment
Ministry of Justice,HMCTS,23/12/2014,610400-Debtors <1 year - Prepayments & Accrued Income,FZ999-Midlands Region,COVENTRY CITY COUNCIL,3079454,"29,131.84",Rates payment
Ministry of Justice,HMCTS,05/12/2014,221000-Property Rent and Rates,SM999-National Business Centres,CUSHMAN & WAKEFIELD LLP,3060929,"123,580.00",Rent payment
Ministry of Justice,HMCTS,05/12/2014,221000-Property Rent and Rates,SM999-National Business Centres,CUSHMAN & WAKEFIELD LLP,3060929,"24,716.00",Rent payment
Ministry of Justice,HMCTS,12/12/2014,222002-Other Property Costs,AG999-HQ - Estates,DEPARTMENT FOR WORK & PENSIONS (DWP),3615,"44,845.00",PRIME utilities charge Tribunal sites
Ministry of Justice,HMCTS,16/12/2014,222002-Other Property Costs,AG999-HQ - Estates,DEPARTMENT FOR WORK & PENSIONS (DWP),3627,"137,041.88",Rates charges Tribunal sites
Ministry of Justice,HMCTS,16/12/2014,222002-Other Property Costs,AG999-HQ - Estates,DEPARTMENT FOR WORK & PENSIONS (DWP),3627,"743,424.34",PRIME FUP charges Tribunal sites
Ministry of Justice,HMCTS,23/12/2014,610400-Debtors <1 year - Prepayments & Accrued Income,FZ999-Midlands Region,DERBY CITY COUNCIL,3079462,"30,335.63",Rates payment
Ministry of Justice,HMCTS,03/12/2014,262000-SCA Costs,FZ999-Midlands Region,DERBYSHIRE COURTS LTD,3058482,"544,928.88",Derby & Chesterfield - Derbyshire Courts Ltd (SE1 9RD) - Monthly 2014-15 Unitary Charges for Derbyshire
Ministry of Justice,HMCTS,03/12/2014,610200-Debtors < 1 Year - VAT,WW000-Balance Sheet,DERBYSHIRE COURTS LTD,3058482,"108,985.78",Provision under a PFI agreement of accommodation for office or other governmental use
Ministry of Justice,HMCTS,02/12/2014,221000-Property Rent and Rates,BZ999-London Region,DERWENT LONDON,3055718,"430,000.00",Rent payment
Ministry of Justice,HMCTS,02/12/2014,222002-Other Property Costs,BZ999-London Region,DERWENT LONDON,3055718,"60,463.74",Service charge payment
Ministry of Justice,HMCTS,02/12/2014,222002-Other Property Costs,BZ999-London Region,DERWENT LONDON,3055718,"26,972.53",Service charge payment
Ministry of Justice,HMCTS,02/12/2014,221000-Property Rent and Rates,BZ999-London Region,DERWENT LONDON,3055718,"86,000.00",Rent payment
Ministry of Justice,HMCTS,02/12/2014,222002-Other Property Costs,BZ999-London Region,DERWENT LONDON,3055718,"17,487.26",Service charge payment
Ministry of Justice,HMCTS,16/12/2014,222002-Other Property Costs,BZ999-London Region,DTZ DEBENHAM TIE LEUNG,3071163,"282,720.88",Other Government Department occupancy costs
Ministry of Justice,HMCTS,19/12/2014,532000-Tangible GBV - Additions,FZ999-Midlands Region,EC HARRIS LLP,3076879,"46,012.00","Nottingham Magistrates - EC Harris LLP- RIBA Stage C Fees. Preparation of Schedules of Works, Drawings & issue of Tender Documents including sub-consultant fees for Structural Engineer Phase 2-6"
Ministry of Justice,HMCTS,19/12/2014,532000-Tangible GBV - Additions,FZ999-Midlands Region,EC HARRIS LLP,3076879,"9,202.40","Nottingham Magistrates - EC Harris LLP- RIBA Stage C Fees. Preparation of Schedules of Works, Drawings & issue of Tender Documents including sub-consultant fees for Structural Engineer Phase 2-6"
Ministry of Justice,HMCTS,02/12/2014,221000-Property Rent and Rates,DZ999-South West Region,EDDISONS,3055741,"21,936.50",Rent payment
Ministry of Justice,HMCTS,02/12/2014,222002-Other Property Costs,DZ999-South West Region,EDDISONS,3055741,"8,978.55",Service charge payment
Ministry of Justice,HMCTS,02/12/2014,221000-Property Rent and Rates,DZ999-South West Region,EDDISONS,3055741,"4,387.30",Rent payment
Ministry of Justice,HMCTS,02/12/2014,222002-Other Property Costs,DZ999-South West Region,EDDISONS,3055741,"1,795.71",Service charge payment
Ministry of Justice,HMCTS,03/12/2014,261000-Fuel and Utilities,BZ999-London Region,EDF ENERGY LTD,3058494,"50,741.28",EDF Energy Ltd - Electricity Costs for RCJ.
Ministry of Justice,HMCTS,03/12/2014,261000-Fuel and Utilities,BZ999-London Region,EDF ENERGY LTD,3058494,"10,148.26",EDF Energy Ltd - Electricity Costs for RCJ. (VAT 20%)
Ministry of Justice,HMCTS,12/12/2014,261000-Fuel and Utilities,BZ999-London Region,EDF ENERGY LTD,3068541,"45,645.14",EDF Energy Ltd - Electricity Costs for RCJ.
Ministry of Justice,HMCTS,12/12/2014,261000-Fuel and Utilities,BZ999-London Region,EDF ENERGY LTD,3068541,"9,129.03",EDF Energy Ltd - Electricity Costs for RCJ. (VAT 20%)
Ministry of Justice,HMCTS,09/12/2014,261000-Fuel and Utilities,GZ999-North West Region,EDF ENERGY LTD,3063360,"26,080.74",Manchester CJC - Electricity - EDF
Ministry of Justice,HMCTS,09/12/2014,261000-Fuel and Utilities,GZ999-North West Region,EDF ENERGY LTD,3063360,"5,216.15",Manchester CJC - Electricity - EDF
Ministry of Justice,HMCTS,03/12/2014,262000-SCA Costs,DZ999-South West Region,ENTERPRISE CIVIC BUILDINGS LIMITED,3058498,"278,658.02",Exeter - Enterprise Civic Buildings  Ltd (W1S 1TD) - Monthly 2014-15 Unitary Charges for Exeter PFI
Ministry of Justice,HMCTS,03/12/2014,610200-Debtors < 1 Year - VAT,WW000-Balance Sheet,ENTERPRISE CIVIC BUILDINGS LIMITED,3058498,"55,731.60",Provision under a PFI agreement of accommodation for office or other governmental use
Ministry of Justice,HMCTS,23/12/2014,610400-Debtors <1 year - Prepayments & Accrued Income,DZ999-South West Region,EXETER CITY COUNCIL,3079477,"45,021.93",Rates payment
Ministry of Justice,HMCTS,29/12/2014,221000-Property Rent and Rates,BZ999-London Region,FERNEX LTD,3084502,"165,150.00",Rent payment
Ministry of Justice,HMCTS,19/12/2014,610400-Debtors <1 year - Prepayments & Accrued Income,DZ999-South West Region,FI REAL ESTATE MANAGEMENT,3077502,"25,682.00",Service charge payment
Ministry of Justice,HMCTS,19/12/2014,610400-Debtors <1 year - Prepayments & Accrued Income,DZ999-South West Region,FI REAL ESTATE MANAGEMENT,3077502,"47,125.00",Rent payment
Ministry of Justice,HMCTS,19/12/2014,610400-Debtors <1 year - Prepayments & Accrued Income,DZ999-South West Region,FI REAL ESTATE MANAGEMENT,3077502,"9,425.00",Rent payment
Ministry of Justice,HMCTS,19/12/2014,610400-Debtors <1 year - Prepayments & Accrued Income,DZ999-South West Region,FI REAL ESTATE MANAGEMENT,3077502,"5,136.40",Service charge payment
Ministry of Justice,HMCTS,19/12/2014,222003-CIS Labour TFM Estates,EZ999-Wales Region,G4S FACILITIES MANAGEMENT (UK) LTD,3076915,"12,573.38",Wales - G4S - Internal Maintenance
Ministry of Justice,HMCTS,19/12/2014,222003-CIS Labour TFM Estates,EZ999-Wales Region,G4S FACILITIES MANAGEMENT (UK) LTD,3076915,"57,883.88",Wales - G4S - Mechanical & Electrical
Ministry of Justice,HMCTS,19/12/2014,222003-CIS Labour TFM Estates,EZ999-Wales Region,G4S FACILITIES MANAGEMENT (UK) LTD,3076915,"5,961.10",Wales - G4S - Grounds Maintenance
Ministry of Justice,HMCTS,19/12/2014,222003-CIS Labour TFM Estates,EZ999-Wales Region,G4S FACILITIES MANAGEMENT (UK) LTD,3076915,"42,355.97",Wales - G4S - Management Costs
Ministry of Justice,HMCTS,19/12/2014,222003-CIS Labour TFM Estates,EZ999-Wales Region,G4S FACILITIES MANAGEMENT (UK) LTD,3076915,535.44,Wales - G4S - Security
Ministry of Justice,HMCTS,19/12/2014,222003-CIS Labour TFM Estates,EZ999-Wales Region,G4S FACILITIES MANAGEMENT (UK) LTD,3076915,"67,611.33",Wales - G4S - Cleaning
Ministry of Justice,HMCTS,19/12/2014,222003-CIS Labour TFM Estates,EZ999-Wales Region,G4S FACILITIES MANAGEMENT (UK) LTD,3076915,"12,129.51",Wales - G4S - Waste Disposal
Ministry of Justice,HMCTS,19/12/2014,222003-CIS Labour TFM Estates,EZ999-Wales Region,G4S FACILITIES MANAGEMENT (UK) LTD,3076915,564.66,Wales - G4S - Catering
Ministry of Justice,HMCTS,19/12/2014,222003-CIS Labour TFM Estates,EZ999-Wales Region,G4S FACILITIES MANAGEMENT (UK) LTD,3076915,529.03,Wales - G4S - Cleaning
Ministry of Justice,HMCTS,19/12/2014,222003-CIS Labour TFM Estates,EZ999-Wales Region,G4S FACILITIES MANAGEMENT (UK) LTD,3076915,"13,291.58",Wales - G4S - Management
Ministry of Justice,HMCTS,19/12/2014,222003-CIS Labour TFM Estates,EZ999-Wales Region,G4S FACILITIES MANAGEMENT (UK) LTD,3076915,"76,765.46",Wales - G4S - Mechanical & Electrical
Ministry of Justice,HMCTS,19/12/2014,222003-CIS Labour TFM Estates,EZ999-Wales Region,G4S FACILITIES MANAGEMENT (UK) LTD,3076915,"7,134.54",Wales - G4S - Management Costs
Ministry of Justice,HMCTS,19/12/2014,222003-CIS Labour TFM Estates,EZ999-Wales Region,G4S FACILITIES MANAGEMENT (UK) LTD,3076915,"18,361.77",Wales - G4S - Internal Maintenance
Ministry of Justice,HMCTS,16/12/2014,222003-CIS Labour TFM Estates,FZ999-Midlands Region,G4S FACILITIES MANAGEMENT (UK) LTD,3071212,0.01,Shrewsbury Magistrates' - G4S - Emergency Lighting
Ministry of Justice,HMCTS,16/12/2014,222003-CIS Labour TFM Estates,FZ999-Midlands Region,G4S FACILITIES MANAGEMENT (UK) LTD,3071212,"50,957.46",Shrewsbury Magistrates' - G4S - Emergency Lighting
Ministry of Justice,HMCTS,16/12/2014,222003-CIS Labour TFM Estates,FZ999-Midlands Region,G4S FACILITIES MANAGEMENT (UK) LTD,3071212,"10,191.49",Shrewsbury Magistrates' - G4S - Emergency Lighting
Ministry of Justice,HMCTS,23/12/2014,222003-CIS Labour TFM Estates,FZ999-Midlands Region,G4S FACILITIES MANAGEMENT (UK) LTD,3081199,"8,548.04",Grounds Maintenance
Ministry of Justice,HMCTS,23/12/2014,222003-CIS Labour TFM Estates,FZ999-Midlands Region,G4S FACILITIES MANAGEMENT (UK) LTD,3081199,"151,210.93",M&E Repair & Maintenance
Ministry of Justice,HMCTS,23/12/2014,222003-CIS Labour TFM Estates,FZ999-Midlands Region,G4S FACILITIES MANAGEMENT (UK) LTD,3081199,"27,220.35",Internal Repair and Maintenance
Ministry of Justice,HMCTS,23/12/2014,222003-CIS Labour TFM Estates,FZ999-Midlands Region,G4S FACILITIES MANAGEMENT (UK) LTD,3081199,"103,255.72",Management Costs
Ministry of Justice,HMCTS,29/12/2014,222003-CIS Labour TFM Estates,FZ999-Midlands Region,G4S FACILITIES MANAGEMENT (UK) LTD,3084506,"1,571.75",Security
Ministry of Justice,HMCTS,29/12/2014,222003-CIS Labour TFM Estates,FZ999-Midlands Region,G4S FACILITIES MANAGEMENT (UK) LTD,3084506,"177,698.24",Cleaning
Ministry of Justice,HMCTS,29/12/2014,222003-CIS Labour TFM Estates,FZ999-Midlands Region,G4S FACILITIES MANAGEMENT (UK) LTD,3084506,"20,835.22",Waste Disposal
Ministry of Justice,HMCTS,29/12/2014,222003-CIS Labour TFM Estates,FZ999-Midlands Region,G4S FACILITIES MANAGEMENT (UK) LTD,3084506,607.25,Catering
Ministry of Justice,HMCTS,29/12/2014,222003-CIS Labour TFM Estates,FZ999-Midlands Region,G4S FACILITIES MANAGEMENT (UK) LTD,3084506,"1,340.97",Pest & Vermin
Ministry of Justice,HMCTS,29/12/2014,222003-CIS Labour TFM Estates,FZ999-Midlands Region,G4S FACILITIES MANAGEMENT (UK) LTD,3084506,"31,800.42",Management Costs
Ministry of Justice,HMCTS,23/12/2014,222003-CIS Labour TFM Estates,FZ999-Midlands Region,G4S FACILITIES MANAGEMENT (UK) LTD,3081199,"20,811.65",Security
Ministry of Justice,HMCTS,23/12/2014,222003-CIS Labour TFM Estates,FZ999-Midlands Region,G4S FACILITIES MANAGEMENT (UK) LTD,3081199,"6,134.84",Cleaning
Ministry of Justice,HMCTS,23/12/2014,222003-CIS Labour TFM Estates,FZ999-Midlands Region,G4S FACILITIES MANAGEMENT (UK) LTD,3081199,166,Pest & Vermin
Ministry of Justice,HMCTS,23/12/2014,222003-CIS Labour TFM Estates,FZ999-Midlands Region,G4S FACILITIES MANAGEMENT (UK) LTD,3081199,"2,075.47",Management Costs
Ministry of Justice,HMCTS,23/12/2014,222003-CIS Labour TFM Estates,FZ999-Midlands Region,G4S FACILITIES MANAGEMENT (UK) LTD,3081199,560.42,Security
Ministry of Justice,HMCTS,23/12/2014,222003-CIS Labour TFM Estates,FZ999-Midlands Region,G4S FACILITIES MANAGEMENT (UK) LTD,3081199,"2,477.40",Grounds Maintenance
Ministry of Justice,HMCTS,23/12/2014,222003-CIS Labour TFM Estates,FZ999-Midlands Region,G4S FACILITIES MANAGEMENT (UK) LTD,3081199,"64,373.63",M&E Repair & Maintenance
Ministry of Justice,HMCTS,23/12/2014,222003-CIS Labour TFM Estates,FZ999-Midlands Region,G4S FACILITIES MANAGEMENT (UK) LTD,3081199,"16,542.52",Internal Repair & Maintenance
Ministry of Justice,HMCTS,23/12/2014,222003-CIS Labour TFM Estates,FZ999-Midlands Region,G4S FACILITIES MANAGEMENT (UK) LTD,3081199,"6,254.52",Management Costs
Ministry of Justice,HMCTS,17/12/2014,222003-CIS Labour TFM Estates,GZ999-North West Region,G4S FACILITIES MANAGEMENT (UK) LTD,3074546,"185,275.47",TFM Annual Fixed Internal Maint Service & M&E
Ministry of Justice,HMCTS,17/12/2014,222003-CIS Labour TFM Estates,GZ999-North West Region,G4S FACILITIES MANAGEMENT (UK) LTD,3074546,"11,764.59",TFM Annual Grounds Maintenance
Ministry of Justice,HMCTS,17/12/2014,222003-CIS Labour TFM Estates,GZ999-North West Region,G4S FACILITIES MANAGEMENT (UK) LTD,3074546,"99,835.56",TFM Annual Management Costs
Ministry of Justice,HMCTS,17/12/2014,222003-CIS Labour TFM Estates,GZ999-North West Region,G4S FACILITIES MANAGEMENT (UK) LTD,3074546,658.76,TFM Annual Fixed Security
Ministry of Justice,HMCTS,17/12/2014,222003-CIS Labour TFM Estates,GZ999-North West Region,G4S FACILITIES MANAGEMENT (UK) LTD,3074546,"178,626.59",TFM Annual Fixed Cleaning
Ministry of Justice,HMCTS,17/12/2014,222003-CIS Labour TFM Estates,GZ999-North West Region,G4S FACILITIES MANAGEMENT (UK) LTD,3074546,"19,457.08",TFM Annual Fixed Waste Disposal
Ministry of Justice,HMCTS,17/12/2014,222003-CIS Labour TFM Estates,GZ999-North West Region,G4S FACILITIES MANAGEMENT (UK) LTD,3074546,174.43,TFM Annual Fixed Catering
Ministry of Justice,HMCTS,17/12/2014,222003-CIS Labour TFM Estates,GZ999-North West Region,G4S FACILITIES MANAGEMENT (UK) LTD,3074546,796.2,TFM Annual Fixed Pest & Vermin
Ministry of Justice,HMCTS,17/12/2014,222003-CIS Labour TFM Estates,GZ999-North West Region,G4S FACILITIES MANAGEMENT (UK) LTD,3074546,"28,960.15",TFM Annual Fixed Management
Ministry of Justice,HMCTS,17/12/2014,222003-CIS Labour TFM Estates,GZ999-North West Region,G4S FACILITIES MANAGEMENT (UK) LTD,3074546,"97,020.57",Internal Maintenance and M&E
Ministry of Justice,HMCTS,17/12/2014,222003-CIS Labour TFM Estates,GZ999-North West Region,G4S FACILITIES MANAGEMENT (UK) LTD,3074546,"7,276.54",Management Costs
Ministry of Justice,HMCTS,17/12/2014,222003-CIS Labour TFM Estates,GZ999-North West Region,G4S FACILITIES MANAGEMENT (UK) LTD,3074546,"27,985.04",Security
Ministry of Justice,HMCTS,17/12/2014,222003-CIS Labour TFM Estates,GZ999-North West Region,G4S FACILITIES MANAGEMENT (UK) LTD,3074546,"1,870.00",Cleaning
Ministry of Justice,HMCTS,17/12/2014,222003-CIS Labour TFM Estates,GZ999-North West Region,G4S FACILITIES MANAGEMENT (UK) LTD,3074546,"1,942.40",Waste
Ministry of Justice,HMCTS,17/12/2014,222003-CIS Labour TFM Estates,GZ999-North West Region,G4S FACILITIES MANAGEMENT (UK) LTD,3074546,"1,197.00",Pest & Vermin
Ministry of Justice,HMCTS,17/12/2014,222003-CIS Labour TFM Estates,GZ999-North West Region,G4S FACILITIES MANAGEMENT (UK) LTD,3074546,"2,474.58",Management Costs
Ministry of Justice,HMCTS,19/12/2014,222003-CIS Labour TFM Estates,GZ999-North West Region,G4S FACILITIES MANAGEMENT (UK) LTD,3076915,"77,762.80",Wirral Magistrates - G4S - Asbestos abatement works - Our Ref: TO-NW-14-15-1153
Ministry of Justice,HMCTS,17/12/2014,222003-CIS Labour TFM Estates,HZ999-North East Region,G4S FACILITIES MANAGEMENT (UK) LTD,3074546,"171,014.77",TFM Annual  Fixed Internal Maint Service and M&E
Ministry of Justice,HMCTS,17/12/2014,222003-CIS Labour TFM Estates,HZ999-North East Region,G4S FACILITIES MANAGEMENT (UK) LTD,3074546,"9,720.85",TFM Annual Grounds Maintenance
Ministry of Justice,HMCTS,17/12/2014,222003-CIS Labour TFM Estates,HZ999-North East Region,G4S FACILITIES MANAGEMENT (UK) LTD,3074546,"106,379.22",TFM Annual Management costs
Ministry of Justice,HMCTS,17/12/2014,222003-CIS Labour TFM Estates,HZ999-North East Region,G4S FACILITIES MANAGEMENT (UK) LTD,3074546,861.34,TFM Annual  Fixed Security
Ministry of Justice,HMCTS,17/12/2014,222003-CIS Labour TFM Estates,HZ999-North East Region,G4S FACILITIES MANAGEMENT (UK) LTD,3074546,"165,777.32",TFM Annual Fixed Cleaning
Ministry of Justice,HMCTS,17/12/2014,222003-CIS Labour TFM Estates,HZ999-North East Region,G4S FACILITIES MANAGEMENT (UK) LTD,3074546,"36,832.78",TFM Annual Fixed Waste Disposal
Ministry of Justice,HMCTS,17/12/2014,222003-CIS Labour TFM Estates,HZ999-North East Region,G4S FACILITIES MANAGEMENT (UK) LTD,3074546,202.82,TFM Annual Fixed Catering
Ministry of Justice,HMCTS,17/12/2014,222003-CIS Labour TFM Estates,HZ999-North East Region,G4S FACILITIES MANAGEMENT (UK) LTD,3074546,187.87,TFM Annual Fixed Pest & Vermin
Ministry of Justice,HMCTS,17/12/2014,222003-CIS Labour TFM Estates,HZ999-North East Region,G4S FACILITIES MANAGEMENT (UK) LTD,3074546,"31,996.68",TFM Annual Fixed Management Costs
Ministry of Justice,HMCTS,17/12/2014,222003-CIS Labour TFM Estates,HZ999-North East Region,G4S FACILITIES MANAGEMENT (UK) LTD,3074546,"95,971.12",Internal Maintenance and M&E
Ministry of Justice,HMCTS,17/12/2014,222003-CIS Labour TFM Estates,HZ999-North East Region,G4S FACILITIES MANAGEMENT (UK) LTD,3074546,231,Grounds Maintenance
Ministry of Justice,HMCTS,17/12/2014,222003-CIS Labour TFM Estates,HZ999-North East Region,G4S FACILITIES MANAGEMENT (UK) LTD,3074546,"7,215.16",Management Costs
Ministry of Justice,HMCTS,17/12/2014,222003-CIS Labour TFM Estates,HZ999-North East Region,G4S FACILITIES MANAGEMENT (UK) LTD,3074546,"18,536.86",Security
Ministry of Justice,HMCTS,17/12/2014,222003-CIS Labour TFM Estates,HZ999-North East Region,G4S FACILITIES MANAGEMENT (UK) LTD,3074546,"4,038.34",Cleaning
Ministry of Justice,HMCTS,17/12/2014,222003-CIS Labour TFM Estates,HZ999-North East Region,G4S FACILITIES MANAGEMENT (UK) LTD,3074546,"2,565.40",Waste
Ministry of Justice,HMCTS,17/12/2014,222003-CIS Labour TFM Estates,HZ999-North East Region,G4S FACILITIES MANAGEMENT (UK) LTD,3074546,"1,080.00",Pest & Vermin
Ministry of Justice,HMCTS,17/12/2014,222003-CIS Labour TFM Estates,HZ999-North East Region,G4S FACILITIES MANAGEMENT (UK) LTD,3074546,"1,966.54",Management Costs
Ministry of Justice,HMCTS,19/12/2014,222003-CIS Labour TFM Estates,HZ999-North East Region,G4S FACILITIES MANAGEMENT (UK) LTD,3076915,"22,742.67",Newcastle Upon Tyne Combined - G4S - TO-NE-14-15-1034 Install emergency lighting battery system
Ministry of Justice,HMCTS,17/12/2014,610200-Debtors < 1 Year - VAT,WW000-Balance Sheet,G4S FACILITIES MANAGEMENT (UK) LTD,3074546,"59,375.12",Estate Management Services
Ministry of Justice,HMCTS,17/12/2014,610200-Debtors < 1 Year - VAT,WW000-Balance Sheet,G4S FACILITIES MANAGEMENT (UK) LTD,3074546,"45,734.65",Estate Management Services
Ministry of Justice,HMCTS,17/12/2014,610200-Debtors < 1 Year - VAT,WW000-Balance Sheet,G4S FACILITIES MANAGEMENT (UK) LTD,3074546,"20,859.42",Estate Management Services
Ministry of Justice,HMCTS,17/12/2014,610200-Debtors < 1 Year - VAT,WW000-Balance Sheet,G4S FACILITIES MANAGEMENT (UK) LTD,3074546,"7,093.81",Estate Management Services
Ministry of Justice,HMCTS,17/12/2014,610200-Debtors < 1 Year - VAT,WW000-Balance Sheet,G4S FACILITIES MANAGEMENT (UK) LTD,3074546,"57,422.97",Estate Management Services
Ministry of Justice,HMCTS,17/12/2014,610200-Debtors < 1 Year - VAT,WW000-Balance Sheet,G4S FACILITIES MANAGEMENT (UK) LTD,3074546,"47,171.76",Estate Management Services
Ministry of Justice,HMCTS,17/12/2014,610200-Debtors < 1 Year - VAT,WW000-Balance Sheet,G4S FACILITIES MANAGEMENT (UK) LTD,3074546,"20,683.46",Estate Management Services
Ministry of Justice,HMCTS,17/12/2014,610200-Debtors < 1 Year - VAT,WW000-Balance Sheet,G4S FACILITIES MANAGEMENT (UK) LTD,3074546,-0.01,Estate Management Services
Ministry of Justice,HMCTS,17/12/2014,610200-Debtors < 1 Year - VAT,WW000-Balance Sheet,G4S FACILITIES MANAGEMENT (UK) LTD,3074546,"5,637.43",Estate Management Services
Ministry of Justice,HMCTS,19/12/2014,610200-Debtors < 1 Year - VAT,WW000-Balance Sheet,G4S FACILITIES MANAGEMENT (UK) LTD,3076915,"23,754.87",Estate Management Services
Ministry of Justice,HMCTS,19/12/2014,610200-Debtors < 1 Year - VAT,WW000-Balance Sheet,G4S FACILITIES MANAGEMENT (UK) LTD,3076915,-0.01,Estate Management Services
Ministry of Justice,HMCTS,19/12/2014,610200-Debtors < 1 Year - VAT,WW000-Balance Sheet,G4S FACILITIES MANAGEMENT (UK) LTD,3076915,"18,932.31",Estate Management Services
Ministry of Justice,HMCTS,19/12/2014,610200-Debtors < 1 Year - VAT,WW000-Balance Sheet,G4S FACILITIES MANAGEMENT (UK) LTD,3076915,"20,930.65",Estate Management Services
Ministry of Justice,HMCTS,19/12/2014,610200-Debtors < 1 Year - VAT,WW000-Balance Sheet,G4S FACILITIES MANAGEMENT (UK) LTD,3076915,"-3,672.35",Estate Management Services
Ministry of Justice,HMCTS,19/12/2014,610200-Debtors < 1 Year - VAT,WW000-Balance Sheet,G4S FACILITIES MANAGEMENT (UK) LTD,3076915,-478.3,Estate Management Services
Ministry of Justice,HMCTS,19/12/2014,610200-Debtors < 1 Year - VAT,WW000-Balance Sheet,G4S FACILITIES MANAGEMENT (UK) LTD,3076915,"3,672.35",Estate Management Services
Ministry of Justice,HMCTS,19/12/2014,610200-Debtors < 1 Year - VAT,WW000-Balance Sheet,G4S FACILITIES MANAGEMENT (UK) LTD,3076915,0.01,Estate Management Services
Ministry of Justice,HMCTS,19/12/2014,610200-Debtors < 1 Year - VAT,WW000-Balance Sheet,G4S FACILITIES MANAGEMENT (UK) LTD,3076915,"4,548.54",Estate Management Services
Ministry of Justice,HMCTS,19/12/2014,610200-Debtors < 1 Year - VAT,WW000-Balance Sheet,G4S FACILITIES MANAGEMENT (UK) LTD,3076915,"15,552.56",Estate Management Services
Ministry of Justice,HMCTS,23/12/2014,610200-Debtors < 1 Year - VAT,WW000-Balance Sheet,G4S FACILITIES MANAGEMENT (UK) LTD,3081199,"58,047.01",Estate Management Services
Ministry of Justice,HMCTS,23/12/2014,610200-Debtors < 1 Year - VAT,WW000-Balance Sheet,G4S FACILITIES MANAGEMENT (UK) LTD,3081199,-0.01,Estate Management Services
Ministry of Justice,HMCTS,29/12/2014,610200-Debtors < 1 Year - VAT,WW000-Balance Sheet,G4S FACILITIES MANAGEMENT (UK) LTD,3084506,"46,770.78",Estate Management Services
Ministry of Justice,HMCTS,23/12/2014,610200-Debtors < 1 Year - VAT,WW000-Balance Sheet,G4S FACILITIES MANAGEMENT (UK) LTD,3081199,"5,949.67",Estate Management Services
Ministry of Justice,HMCTS,23/12/2014,610200-Debtors < 1 Year - VAT,WW000-Balance Sheet,G4S FACILITIES MANAGEMENT (UK) LTD,3081199,"17,929.61",Estate Management Services
Ministry of Justice,HMCTS,16/12/2014,610400-Debtors <1 year - Prepayments & Accrued Income,CZ999-South East Region,GDPP,3071222,"59,125.00",Rent payment
Ministry of Justice,HMCTS,16/12/2014,610400-Debtors <1 year - Prepayments & Accrued Income,CZ999-South East Region,GDPP,3071222,"11,825.00",Rent payment
Ministry of Justice,HMCTS,05/12/2014,610400-Debtors <1 year - Prepayments & Accrued Income,CZ999-South East Region,GOOD HARVEST GROUP LTD,3061018,"41,080.00",Rent payment
Ministry of Justice,HMCTS,05/12/2014,610400-Debtors <1 year - Prepayments & Accrued Income,CZ999-South East Region,GOOD HARVEST GROUP LTD,3061018,"8,216.00",Rent payment
Ministry of Justice,HMCTS,30/12/2014,266000-Judicial Costs,AG999-HQ - Estates,GROUND TRANSPORT LTD,3085025,"28,304.18",Various Judges' Lodgings - Ground Transport Ltd - Judicial Car Provision 2014/15 Replaces PO 20000173460
Ministry of Justice,HMCTS,30/12/2014,610200-Debtors < 1 Year - VAT,WW000-Balance Sheet,GROUND TRANSPORT LTD,3085025,"5,660.84",Passenger Transport Services
Ministry of Justice,HMCTS,12/12/2014,222001-Maintenance,AG999-HQ - Estates,GVA GRIMLEY LTD T/A GVA,3068589,"60,000.00",MOJ - GVA Grimley -  Identify the quantity of residential units that could be reasonably accomodated from each property on schedule provided.- TO-NW-14-15-1459
Ministry of Justice,HMCTS,12/12/2014,222001-Maintenance,AG999-HQ - Estates,GVA GRIMLEY LTD T/A GVA,3068589,"12,000.00",MOJ - GVA Grimley -  Identify the quantity of residential units that could be reasonably accomodated from each property on schedule provided.- TO-NW-14-15-1459
Ministry of Justice,HMCTS,02/12/2014,221000-Property Rent and Rates,DZ999-South West Region,GVA GRIMLEY LTD T/A GVA,3055815,"25,250.00",Rent payment
Ministry of Justice,HMCTS,02/12/2014,222002-Other Property Costs,DZ999-South West Region,GVA GRIMLEY LTD T/A GVA,3055815,"10,494.00",Service charge payment
Ministry of Justice,HMCTS,02/12/2014,222002-Other Property Costs,DZ999-South West Region,GVA GRIMLEY LTD T/A GVA,3055815,"2,098.80",Service charge payment
Ministry of Justice,HMCTS,02/12/2014,221000-Property Rent and Rates,DZ999-South West Region,GVA GRIMLEY LTD T/A GVA,3055815,"5,050.00",Rent payment
Ministry of Justice,HMCTS,23/12/2014,262000-SCA Costs,FZ999-Midlands Region,H & W COURTS LIMITED,3081229,"518,740.87",Hereford & Worcester - H & W Courts Ltd - Monthly 2014-15 Unitary Charges for H&W PFI
Ministry of Justice,HMCTS,23/12/2014,610200-Debtors < 1 Year - VAT,WW000-Balance Sheet,H & W COURTS LIMITED,3081229,"103,748.17",Provision under a PFI agreement of accommodation for office or other governmental use
Ministry of Justice,HMCTS,29/12/2014,130001-Other Income,SM999-National Business Centres,H CHARLESWORTH & CO LTD#AQ50180174,3084580,"55,549.77",Repayment of erroneous payment by customer
Ministry of Justice,HMCTS,09/12/2014,221000-Property Rent and Rates,FZ999-Midlands Region,HELIX PROPERTIES,3063464,"21,830.60",Rent payment
Ministry of Justice,HMCTS,09/12/2014,221000-Property Rent and Rates,FZ999-Midlands Region,HELIX PROPERTIES,3063464,"4,366.12",Rent payment
Ministry of Justice,HMCTS,03/12/2014,532000-Tangible GBV - Additions,AG999-HQ - Estates,HENRY BOOT CONSTRUCTION LTD,3058541,"54,073.40",CIS Labour - Liverpool Judges Lodgings - Remodelling and conversion work
Ministry of Justice,HMCTS,03/12/2014,532000-Tangible GBV - Additions,AG999-HQ - Estates,HENRY BOOT CONSTRUCTION LTD,3058541,"10,814.68",CIS Labour - Liverpool Judges Lodgings - Remodelling and conversion work
Ministry of Justice,HMCTS,03/12/2014,532000-Tangible GBV - Additions,GZ999-North West Region,HENRY BOOT CONSTRUCTION LTD,3058541,"69,171.39",CIS Labour - Manchester (Alexandra House) ETS - Henry Boot Construction Ltd - Replace Boilers
Ministry of Justice,HMCTS,03/12/2014,532000-Tangible GBV - Additions,GZ999-North West Region,HENRY BOOT CONSTRUCTION LTD,3058541,"13,834.28",CIS Labour - Manchester (Alexandra House) ETS - Henry Boot Construction Ltd - Replace Boilers
Ministry of Justice,HMCTS,16/12/2014,222002-Other Property Costs,AG999-HQ - Estates,HMRC,3628,"643,331.46",Other Government Department occupancy costs
Ministry of Justice,HMCTS,17/12/2014,223000-Other Expenditure,SL999-Centralised Frontline,HOME OFFICE,3632,"32,134.00",Information Search Services
Ministry of Justice,HMCTS,19/12/2014,223000-Other Expenditure,SL999-Centralised Frontline,HOME OFFICE,3637,"71,799.00",Information Search Services
Ministry of Justice,HMCTS,02/12/2014,265000-IT & Telecommunications,FC999-Centrally Managed Costs by F&G,HOME OFFICE IT,3576,"24,575.00","HOIT Testing Services - FeeAccount Application Delivery & UAT April - June 2014						"
Ministry of Justice,HMCTS,02/12/2014,610200-Debtors < 1 Year - VAT,WW000-Balance Sheet,HOME OFFICE IT,3576,"4,915.00",Computer services supplied to the specification of the recipient
Ministry of Justice,HMCTS,23/12/2014,610400-Debtors <1 year - Prepayments & Accrued Income,HZ999-North East Region,HULL CITY COUNCIL,3079495,"33,465.50",Rates payment
Ministry of Justice,HMCTS,23/12/2014,610400-Debtors <1 year - Prepayments & Accrued Income,CZ999-South East Region,HUNTINGDONSHIRE DISTRICT COUNCIL,3079496,"26,242.73",Rates payment
Ministry of Justice,HMCTS,09/12/2014,610400-Debtors <1 year - Prepayments & Accrued Income,GZ999-North West Region,HURSTWOOD PROPERTIES (R) LTD,3063493,"33,354.62",Service charge payment
Ministry of Justice,HMCTS,09/12/2014,610400-Debtors <1 year - Prepayments & Accrued Income,GZ999-North West Region,HURSTWOOD PROPERTIES (R) LTD,3063493,"6,670.93",Service charge payment
Ministry of Justice,HMCTS,12/12/2014,610400-Debtors <1 year - Prepayments & Accrued Income,GZ999-North West Region,HURSTWOOD PROPERTIES (R) LTD,3068623,600,Rent payment
Ministry of Justice,HMCTS,12/12/2014,610400-Debtors <1 year - Prepayments & Accrued Income,GZ999-North West Region,HURSTWOOD PROPERTIES (R) LTD,3068623,"63,775.75",Service charge payment
Ministry of Justice,HMCTS,12/12/2014,610400-Debtors <1 year - Prepayments & Accrued Income,GZ999-North West Region,HURSTWOOD PROPERTIES (R) LTD,3068623,120,Rent payment
Ministry of Justice,HMCTS,12/12/2014,610400-Debtors <1 year - Prepayments & Accrued Income,GZ999-North West Region,HURSTWOOD PROPERTIES (R) LTD,3068623,"12,755.15",Service charge payment
Ministry of Justice,HMCTS,05/12/2014,262000-SCA Costs,BZ999-London Region,IRON MOUNTAIN UK LTD,3061085,"218,156.65",Long term record storage
Ministry of Justice,HMCTS,05/12/2014,610200-Debtors < 1 Year - VAT,WW000-Balance Sheet,IRON MOUNTAIN UK LTD,3061085,"43,631.33",Provision under a PFI agreement of accommodation for office or other governmental use
Ministry of Justice,HMCTS,02/12/2014,532000-Tangible GBV - Additions,DZ999-South West Region,ISG CONSTRUCTION LTD,3055892,"66,790.00",CIS Labour - Plymouth Combined Court - ISG CONSTRUCTION LTD - capital maintenance works (SAA)
Ministry of Justice,HMCTS,02/12/2014,532000-Tangible GBV - Additions,DZ999-South West Region,ISG CONSTRUCTION LTD,3055892,"-66,790.00",CIS Labour - Plymouth Combined Court - ISG CONSTRUCTION LTD - capital maintenance works (SAA)
Ministry of Justice,HMCTS,02/12/2014,532000-Tangible GBV - Additions,DZ999-South West Region,ISG CONSTRUCTION LTD,3055892,"2,700.00",CIS Labour - Plymouth Combined Court - ISG CONSTRUCTION LTD - capital maintenance works (SAA)
Ministry of Justice,HMCTS,02/12/2014,532000-Tangible GBV - Additions,DZ999-South West Region,ISG CONSTRUCTION LTD,3055892,"2,100.00",CIS Labour - Plymouth Magistrates' Court - ISG CONSTRUCTION LTD - capital maintenance works (SAA)
Ministry of Justice,HMCTS,02/12/2014,532000-Tangible GBV - Additions,DZ999-South West Region,ISG CONSTRUCTION LTD,3055892,"329,150.00",CIS Labour - Truro Magistrates' Court - ISG CONSTRUCTION LTD - capital maintenance works (SAA)
Ministry of Justice,HMCTS,02/12/2014,532000-Tangible GBV - Additions,DZ999-South West Region,ISG CONSTRUCTION LTD,3055892,540,CIS Labour - Plymouth Combined Court - ISG CONSTRUCTION LTD - capital maintenance works (SAA)
Ministry of Justice,HMCTS,02/12/2014,532000-Tangible GBV - Additions,DZ999-South West Region,ISG CONSTRUCTION LTD,3055892,420,CIS Labour - Plymouth Combined Court - ISG CONSTRUCTION LTD - capital maintenance works (SAA)
Ministry of Justice,HMCTS,02/12/2014,532000-Tangible GBV - Additions,DZ999-South West Region,ISG CONSTRUCTION LTD,3055892,"65,830.00",CIS Labour - Truro Magistrates' Court - ISG CONSTRUCTION LTD - capital maintenance works (SAA)
Ministry of Justice,HMCTS,19/12/2014,532000-Tangible GBV - Additions,EZ999-Wales Region,ISG CONSTRUCTION LTD,3077005,"205,307.63",CIS Labour - Llanelli Magistrates Court - ISG Construction - Asbestos Removal & Integration
Ministry of Justice,HMCTS,19/12/2014,532000-Tangible GBV - Additions,EZ999-Wales Region,ISG CONSTRUCTION LTD,3077005,"41,061.53",CIS Labour - Llanelli Magistrates Court - ISG Construction - Asbestos Removal & Integration
Ministry of Justice,HMCTS,19/12/2014,222001-Maintenance,EZ999-Wales Region,ISG CONSTRUCTION LTD,3077005,"166,341.41","CIS Labour - HMCTS WALES -  ISG CONSTRUCTION - Building works, preliminaries, OH&P and contingency"
Ministry of Justice,HMCTS,19/12/2014,222001-Maintenance,EZ999-Wales Region,ISG CONSTRUCTION LTD,3077005,"33,268.28","CIS Labour - HMCTS WALES -  ISG CONSTRUCTION - Building works, preliminaries, OH&P and contingency"
Ministry of Justice,HMCTS,30/12/2014,222001-Maintenance,EZ999-Wales Region,ISG CONSTRUCTION LTD,3085040,"146,694.57","CIS Labour - HMCTS WALES -  ISG CONSTRUCTION - Building works, preliminaries, OH&P and contingency"
Ministry of Justice,HMCTS,30/12/2014,222001-Maintenance,EZ999-Wales Region,ISG CONSTRUCTION LTD,3085040,"29,338.91","CIS Labour - HMCTS WALES -  ISG CONSTRUCTION - Building works, preliminaries, OH&P and contingency"
Ministry of Justice,HMCTS,09/12/2014,222001-Maintenance,HZ999-North East Region,ISG CONSTRUCTION LTD,3063502,"67,313.06",Leeds Magistrates' - ISG Construction Ltd - Building works to accommodate NE RSU
Ministry of Justice,HMCTS,09/12/2014,610200-Debtors < 1 Year - VAT,WW000-Balance Sheet,ISG CONSTRUCTION LTD,3063502,"31,034.30","Maintenance, non-structural repair and cleaning of buildings"
Ministry of Justice,HMCTS,09/12/2014,610200-Debtors < 1 Year - VAT,WW000-Balance Sheet,ISG CONSTRUCTION LTD,3063502,"-31,034.30","Maintenance, non-structural repair and cleaning of buildings"
Ministry of Justice,HMCTS,09/12/2014,610200-Debtors < 1 Year - VAT,WW000-Balance Sheet,ISG CONSTRUCTION LTD,3063502,"13,462.61","Maintenance, non-structural repair and cleaning of buildings"
Ministry of Justice,HMCTS,29/12/2014,532000-Tangible GBV - Additions,DZ999-South West Region,JACOBS UK LTD,3084529,"23,966.62",Aldershot Magistrates - JACOBS ENGINEERING - Court integration of County Court & Tribumal Hearings - Designer/Technical Adviser
Ministry of Justice,HMCTS,29/12/2014,532000-Tangible GBV - Additions,DZ999-South West Region,JACOBS UK LTD,3084529,"4,793.32",Aldershot Magistrates - JACOBS ENGINEERING - Court integration of County Court & Tribumal Hearings - Designer/Technical Adviser
Ministry of Justice,HMCTS,16/12/2014,610400-Debtors <1 year - Prepayments & Accrued Income,BZ999-London Region,JAMES ANDREW RSW,3071322,"230,786.75",Rent payment
Ministry of Justice,HMCTS,16/12/2014,610400-Debtors <1 year - Prepayments & Accrued Income,BZ999-London Region,JAMES ANDREW RSW,3071322,"46,157.35",Rent payment
Ministry of Justice,HMCTS,19/12/2014,610400-Debtors <1 year - Prepayments & Accrued Income,BZ999-London Region,JOHN & SANDRA JOSEPH,3077017,"108,525.00",Rent payment
Ministry of Justice,HMCTS,19/12/2014,610400-Debtors <1 year - Prepayments & Accrued Income,BZ999-London Region,JOHN & SANDRA JOSEPH,3077017,"21,705.00",Rent payment
Ministry of Justice,HMCTS,16/12/2014,222001-Maintenance,AG999-HQ - Estates,JONES LANG LASALLE LTD,3071335,"63,450.00",HMCTS HQ - Jones Lang LaSalle - Advice on potential for residential building across estate
Ministry of Justice,HMCTS,16/12/2014,222001-Maintenance,AG999-HQ - Estates,JONES LANG LASALLE LTD,3071335,"12,690.00",HMCTS HQ - Jones Lang LaSalle - Advice on potential for residential building across estate
Ministry of Justice,HMCTS,19/12/2014,221000-Property Rent and Rates,BZ999-London Region,JONES LANG LASALLE LTD,3077021,"490,306.00",Rent payment
Ministry of Justice,HMCTS,19/12/2014,221000-Property Rent and Rates,BZ999-London Region,JONES LANG LASALLE LTD,3077021,"98,061.20",Rent payment
Ministry of Justice,HMCTS,19/12/2014,610400-Debtors <1 year - Prepayments & Accrued Income,DZ999-South West Region,JONES LANG LASALLE LTD,3077022,"528,125.00",Rent payment
Ministry of Justice,HMCTS,19/12/2014,610400-Debtors <1 year - Prepayments & Accrued Income,DZ999-South West Region,JONES LANG LASALLE LTD,3077022,"105,625.00",Rent payment
Ministry of Justice,HMCTS,05/12/2014,610400-Debtors <1 year - Prepayments & Accrued Income,FZ999-Midlands Region,JONES LANG LASALLE LTD,3061098,"213,814.55",Rent payment
Ministry of Justice,HMCTS,05/12/2014,610400-Debtors <1 year - Prepayments & Accrued Income,FZ999-Midlands Region,JONES LANG LASALLE LTD,3061098,"42,762.91",Rent payment
Ministry of Justice,HMCTS,12/12/2014,610400-Debtors <1 year - Prepayments & Accrued Income,FZ999-Midlands Region,JONES LANG LASALLE LTD,3068644,"1,054,275.25",Rent payment
Ministry of Justice,HMCTS,12/12/2014,610400-Debtors <1 year - Prepayments & Accrued Income,FZ999-Midlands Region,JONES LANG LASALLE LTD,3068644,"63,912.84",Service charge payment
Ministry of Justice,HMCTS,12/12/2014,610400-Debtors <1 year - Prepayments & Accrued Income,FZ999-Midlands Region,JONES LANG LASALLE LTD,3068644,"12,782.57",Service charge payment
Ministry of Justice,HMCTS,12/12/2014,610400-Debtors <1 year - Prepayments & Accrued Income,FZ999-Midlands Region,JONES LANG LASALLE LTD,3068644,"210,855.05",Rent payment
Ministry of Justice,HMCTS,02/12/2014,222002-Other Property Costs,HZ999-North East Region,JONES LANG LASALLE LTD,3055916,"21,817.50",Service charge payment
Ministry of Justice,HMCTS,02/12/2014,222002-Other Property Costs,HZ999-North East Region,JONES LANG LASALLE LTD,3055916,"4,363.50",Service charge payment
Ministry of Justice,HMCTS,02/12/2014,222002-Other Property Costs,HZ999-North East Region,JONES LANG LASALLE LTD,3055916,"24,137.50",Service charge payment
Ministry of Justice,HMCTS,02/12/2014,222002-Other Property Costs,HZ999-North East Region,JONES LANG LASALLE LTD,3055916,"4,827.50",Service charge payment
Ministry of Justice,HMCTS,09/12/2014,211000-Judicial Salaries - Salaried,FC999-Centrally Managed Costs by F&G,JUDICIAL PENSIONS SCHEME,3607,"2,757,119.97",Payment to Paymaster for Lower Judiciary Pension payment
Ministry of Justice,HMCTS,09/12/2014,211000-Judicial Salaries - Salaried,FC999-Centrally Managed Costs by F&G,JUDICIAL PENSIONS SCHEME,3607,"3,353,194.68",Payment to Paymaster for Higher Judiciary Pension payment
Ministry of Justice,HMCTS,23/12/2014,532000-Tangible GBV - Additions,HZ999-North East Region,KARDEX SYSTEMS (UK) LTD,3081307,"58,028.33",Newcastle Combined Court Centre - Kardex Systems (UK) Ltd - Removal of 3 no existing Kardex Lektriever 115 Carousel Systems and installation of 3 No new 120 Carousel Systems
Ministry of Justice,HMCTS,23/12/2014,532000-Tangible GBV - Additions,HZ999-North East Region,KARDEX SYSTEMS (UK) LTD,3081307,"11,605.67",Newcastle Combined Court Centre - Kardex Systems (UK) Ltd - Removal of 3 no existing Kardex Lektriever 115 Carousel Systems and installation of 3 No new 120 Carousel Systems
Ministry of Justice,HMCTS,05/12/2014,221000-Property Rent and Rates,BZ999-London Region,LAMBERT SMITH HAMPTON,3061125,"70,375.00",Rent payment
Ministry of Justice,HMCTS,05/12/2014,222002-Other Property Costs,BZ999-London Region,LAMBERT SMITH HAMPTON,3061125,"34,361.14",Service charge payment
Ministry of Justice,HMCTS,05/12/2014,221000-Property Rent and Rates,BZ999-London Region,LAMBERT SMITH HAMPTON,3061125,"14,075.00",Rent payment
Ministry of Justice,HMCTS,05/12/2014,222002-Other Property Costs,BZ999-London Region,LAMBERT SMITH HAMPTON,3061125,"6,872.23",Service charge payment
Ministry of Justice,HMCTS,02/12/2014,221000-Property Rent and Rates,BZ999-London Region,LAMBERT SMITH HAMPTON,3055949,"18,962.50",Rent payment
Ministry of Justice,HMCTS,02/12/2014,222002-Other Property Costs,BZ999-London Region,LAMBERT SMITH HAMPTON,3055949,"9,090.46",Service charge payment
Ministry of Justice,HMCTS,02/12/2014,221000-Property Rent and Rates,BZ999-London Region,LAMBERT SMITH HAMPTON,3055949,"3,792.50",Rent payment
Ministry of Justice,HMCTS,02/12/2014,222002-Other Property Costs,BZ999-London Region,LAMBERT SMITH HAMPTON,3055949,"1,818.09",Service charge payment
Ministry of Justice,HMCTS,02/12/2014,610400-Debtors <1 year - Prepayments & Accrued Income,GZ999-North West Region,LAMBERT SMITH HAMPTON,3055948,"17,750.00",Rent payment
Ministry of Justice,HMCTS,02/12/2014,610400-Debtors <1 year - Prepayments & Accrued Income,GZ999-North West Region,LAMBERT SMITH HAMPTON,3055948,"7,557.68",Service charge payment
Ministry of Justice,HMCTS,02/12/2014,610400-Debtors <1 year - Prepayments & Accrued Income,GZ999-North West Region,LAMBERT SMITH HAMPTON,3055948,"1,511.54",Service charge payment
Ministry of Justice,HMCTS,02/12/2014,610400-Debtors <1 year - Prepayments & Accrued Income,GZ999-North West Region,LAMBERT SMITH HAMPTON,3055948,"3,550.00",Rent payment
Ministry of Justice,HMCTS,09/12/2014,222002-Other Property Costs,HZ999-North East Region,LAND SECURITIES PROPERTIES LTD,3063541,"23,759.72",Service charge payment
Ministry of Justice,HMCTS,09/12/2014,222002-Other Property Costs,HZ999-North East Region,LAND SECURITIES PROPERTIES LTD,3063541,"4,751.94",Service charge payment
Ministry of Justice,HMCTS,12/12/2014,221000-Property Rent and Rates,HZ999-North East Region,LAND SECURITIES PROPERTIES LTD,3068677,"79,314.81",Rent payment
Ministry of Justice,HMCTS,12/12/2014,221000-Property Rent and Rates,HZ999-North East Region,LAND SECURITIES PROPERTIES LTD,3068677,"15,862.96",Rent payment
Ministry of Justice,HMCTS,19/12/2014,221000-Property Rent and Rates,HZ999-North East Region,LANDA ASSET MANAGEMENT PLC,3077051,"113,500.00",Rent payment
Ministry of Justice,HMCTS,19/12/2014,222002-Other Property Costs,HZ999-North East Region,LANDA ASSET MANAGEMENT PLC,3077051,"33,085.00",Service charge payment
Ministry of Justice,HMCTS,19/12/2014,221000-Property Rent and Rates,HZ999-North East Region,LANDA ASSET MANAGEMENT PLC,3077051,"22,700.00",Rent payment
Ministry of Justice,HMCTS,19/12/2014,222002-Other Property Costs,HZ999-North East Region,LANDA ASSET MANAGEMENT PLC,3077051,"6,617.00",Service charge payment
Ministry of Justice,HMCTS,12/12/2014,221000-Property Rent and Rates,SM999-National Business Centres,LEE BARON LTD (CHARTERED SURVEYORS),3068684,"26,619.32",Rent payment
Ministry of Justice,HMCTS,12/12/2014,221000-Property Rent and Rates,SM999-National Business Centres,LEE BARON LTD (CHARTERED SURVEYORS),3068684,"25,133.26",Rent payment
Ministry of Justice,HMCTS,12/12/2014,221000-Property Rent and Rates,SM999-National Business Centres,LEE BARON LTD (CHARTERED SURVEYORS),3068684,"26,653.76",Rent payment
Ministry of Justice,HMCTS,12/12/2014,221000-Property Rent and Rates,SM999-National Business Centres,LEE BARON LTD (CHARTERED SURVEYORS),3068684,"25,955.11",Rent payment
Ministry of Justice,HMCTS,12/12/2014,221000-Property Rent and Rates,SM999-National Business Centres,LEE BARON LTD (CHARTERED SURVEYORS),3068684,"26,880.00",Rent payment
Ministry of Justice,HMCTS,12/12/2014,221000-Property Rent and Rates,SM999-National Business Centres,LEE BARON LTD (CHARTERED SURVEYORS),3068684,"5,376.00",Rent payment
Ministry of Justice,HMCTS,23/12/2014,610400-Debtors <1 year - Prepayments & Accrued Income,HZ999-North East Region,LEEDS CITY COUNCIL,3079504,"69,820.11",Rates payment
Ministry of Justice,HMCTS,23/12/2014,610400-Debtors <1 year - Prepayments & Accrued Income,HZ999-North East Region,LEEDS CITY COUNCIL,3079504,"53,930.02",Rates payment
Ministry of Justice,HMCTS,23/12/2014,610400-Debtors <1 year - Prepayments & Accrued Income,FZ999-Midlands Region,LEICESTER CITY COUNCIL,3079505,"34,428.54",Rates payment
Ministry of Justice,HMCTS,23/12/2014,610400-Debtors <1 year - Prepayments & Accrued Income,FZ999-Midlands Region,LEICESTER CITY COUNCIL,3079505,"26,483.49",Rates payment
Ministry of Justice,HMCTS,17/12/2014,265000-IT & Telecommunications,FC999-Centrally Managed Costs by F&G,LIBERATA UK LTD,3074628,"99,129.00","Verification Testing Complete (Signed off solution)						 						 						 						"
Ministry of Justice,HMCTS,17/12/2014,265000-IT & Telecommunications,FC999-Centrally Managed Costs by F&G,LIBERATA UK LTD,3074628,"19,825.80","Verification Testing Complete (Signed off solution)						 						 						 						"
Ministry of Justice,HMCTS,23/12/2014,610400-Debtors <1 year - Prepayments & Accrued Income,GZ999-North West Region,LIVERPOOL CITY COUNCIL,3079507,"139,640.22",Rates payment
Ministry of Justice,HMCTS,23/12/2014,610400-Debtors <1 year - Prepayments & Accrued Income,GZ999-North West Region,LIVERPOOL CITY COUNCIL,3079507,"77,524.40",Rates payment
Ministry of Justice,HMCTS,12/12/2014,610400-Debtors <1 year - Prepayments & Accrued Income,GZ999-North West Region,LONDON & CAPITAL PROPERTIES LTD,3068692,"129,745.98",Rent payment
Ministry of Justice,HMCTS,12/12/2014,610400-Debtors <1 year - Prepayments & Accrued Income,GZ999-North West Region,LONDON & CAPITAL PROPERTIES LTD,3068692,"25,949.19",Rent payment
Ministry of Justice,HMCTS,12/12/2014,610400-Debtors <1 year - Prepayments & Accrued Income,GZ999-North West Region,LONDON & CAPITAL PROPERTIES LTD,3068692,"96,716.32",Rent payment
Ministry of Justice,HMCTS,12/12/2014,610400-Debtors <1 year - Prepayments & Accrued Income,GZ999-North West Region,LONDON & CAPITAL PROPERTIES LTD,3068692,"19,343.26",Rent payment
Ministry of Justice,HMCTS,12/12/2014,610400-Debtors <1 year - Prepayments & Accrued Income,GZ999-North West Region,LONDON & CAPITAL PROPERTIES LTD,3068692,"126,133.71",Rent payment
Ministry of Justice,HMCTS,12/12/2014,610400-Debtors <1 year - Prepayments & Accrued Income,GZ999-North West Region,LONDON & CAPITAL PROPERTIES LTD,3068692,"25,226.74",Rent payment
Ministry of Justice,HMCTS,09/12/2014,610400-Debtors <1 year - Prepayments & Accrued Income,GZ999-North West Region,LONDON & CAPITAL PROPERTIES LTD,3063564,"130,264.02",Rent payment
Ministry of Justice,HMCTS,09/12/2014,610400-Debtors <1 year - Prepayments & Accrued Income,GZ999-North West Region,LONDON & CAPITAL PROPERTIES LTD,3063564,"26,052.80",Rent payment
Ministry of Justice,HMCTS,02/12/2014,221000-Property Rent and Rates,FZ999-Midlands Region,LONDON & SCOTTISH PROPERTY MANAGEMENT LTD,3055972,"62,500.00",Rent payment
Ministry of Justice,HMCTS,02/12/2014,222002-Other Property Costs,FZ999-Midlands Region,LONDON & SCOTTISH PROPERTY MANAGEMENT LTD,3055972,"3,983.40",Service charge payment
Ministry of Justice,HMCTS,02/12/2014,221000-Property Rent and Rates,FZ999-Midlands Region,LONDON & SCOTTISH PROPERTY MANAGEMENT LTD,3055972,"12,500.00",Rent payment
Ministry of Justice,HMCTS,02/12/2014,222002-Other Property Costs,FZ999-Midlands Region,LONDON & SCOTTISH PROPERTY MANAGEMENT LTD,3055972,796.68,Service charge payment
Ministry of Justice,HMCTS,02/12/2014,221000-Property Rent and Rates,FZ999-Midlands Region,LONDON & SCOTTISH PROPERTY MANAGEMENT LTD,3055973,"143,625.00",Rent payment
Ministry of Justice,HMCTS,02/12/2014,221000-Property Rent and Rates,FZ999-Midlands Region,LONDON & SCOTTISH PROPERTY MANAGEMENT LTD,3055973,"28,725.00",Rent payment
Ministry of Justice,HMCTS,23/12/2014,610400-Debtors <1 year - Prepayments & Accrued Income,BZ999-London Region,LONDON BOROUGH OF BRENT,3079510,"39,618.34",Rates payment
Ministry of Justice,HMCTS,23/12/2014,610400-Debtors <1 year - Prepayments & Accrued Income,BZ999-London Region,LONDON BOROUGH OF BROMLEY,3079511,"33,600.37",Rates payment
Ministry of Justice,HMCTS,23/12/2014,610400-Debtors <1 year - Prepayments & Accrued Income,BZ999-London Region,LONDON BOROUGH OF CAMDEN,3079512,"170,509.32",Rates payment
Ministry of Justice,HMCTS,23/12/2014,610400-Debtors <1 year - Prepayments & Accrued Income,BZ999-London Region,LONDON BOROUGH OF CAMDEN,3079512,"32,848.12",Rates payment
Ministry of Justice,HMCTS,23/12/2014,610400-Debtors <1 year - Prepayments & Accrued Income,BZ999-London Region,LONDON BOROUGH OF CAMDEN,3079512,"42,125.83",Rates payment
Ministry of Justice,HMCTS,23/12/2014,610400-Debtors <1 year - Prepayments & Accrued Income,BZ999-London Region,LONDON BOROUGH OF CAMDEN,3079512,"61,684.25",Rates payment
Ministry of Justice,HMCTS,23/12/2014,610400-Debtors <1 year - Prepayments & Accrued Income,BZ999-London Region,LONDON BOROUGH OF CROYDON,3079513,"75,726.20",Rates payment
Ministry of Justice,HMCTS,23/12/2014,610400-Debtors <1 year - Prepayments & Accrued Income,BZ999-London Region,LONDON BOROUGH OF CROYDON,3079513,"33,349.62",Rates payment
Ministry of Justice,HMCTS,23/12/2014,610400-Debtors <1 year - Prepayments & Accrued Income,BZ999-London Region,LONDON BOROUGH OF GREENWICH,3079516,"81,242.68",Rates payment
Ministry of Justice,HMCTS,23/12/2014,610400-Debtors <1 year - Prepayments & Accrued Income,BZ999-London Region,LONDON BOROUGH OF HAMMERSMITH & FULHAM,3079517,"53,512.00",Rates payment
Ministry of Justice,HMCTS,23/12/2014,610400-Debtors <1 year - Prepayments & Accrued Income,BZ999-London Region,LONDON BOROUGH OF HARINGEY,3079518,"59,678.26",Rates payment
Ministry of Justice,HMCTS,23/12/2014,610400-Debtors <1 year - Prepayments & Accrued Income,BZ999-London Region,LONDON BOROUGH OF HARROW,3079519,"51,403.54",Rates payment
Ministry of Justice,HMCTS,23/12/2014,610400-Debtors <1 year - Prepayments & Accrued Income,BZ999-London Region,LONDON BOROUGH OF HOUNSLOW,3079522,"65,194.74",Rates payment
Ministry of Justice,HMCTS,23/12/2014,610400-Debtors <1 year - Prepayments & Accrued Income,BZ999-London Region,LONDON BOROUGH OF ISLINGTON,3079523,"54,718.00",Rates payment
Ministry of Justice,HMCTS,23/12/2014,610400-Debtors <1 year - Prepayments & Accrued Income,BZ999-London Region,LONDON BOROUGH OF ISLINGTON,3079523,"51,706.00",Rates payment
Ministry of Justice,HMCTS,23/12/2014,610400-Debtors <1 year - Prepayments & Accrued Income,BZ999-London Region,LONDON BOROUGH OF MERTON,3079525,"25,325.65",Rates payment
Ministry of Justice,HMCTS,23/12/2014,610400-Debtors <1 year - Prepayments & Accrued Income,BZ999-London Region,LONDON BOROUGH OF NEWHAM,3079526,"33,885.00",Rates payment
Ministry of Justice,HMCTS,23/12/2014,610400-Debtors <1 year - Prepayments & Accrued Income,BZ999-London Region,LONDON BOROUGH OF REDBRIDGE,3079527,"49,397.55",Rates payment
Ministry of Justice,HMCTS,23/12/2014,610400-Debtors <1 year - Prepayments & Accrued Income,BZ999-London Region,LONDON BOROUGH OF SOUTHWARK,3079529,"48,645.31",Rates payment
Ministry of Justice,HMCTS,23/12/2014,610400-Debtors <1 year - Prepayments & Accrued Income,BZ999-London Region,LONDON BOROUGH OF SOUTHWARK,3079529,"115,344.54",Rates payment
Ministry of Justice,HMCTS,23/12/2014,610400-Debtors <1 year - Prepayments & Accrued Income,BZ999-London Region,LONDON BOROUGH OF SOUTHWARK,3079529,"93,278.63",Rates payment
Ministry of Justice,HMCTS,23/12/2014,610400-Debtors <1 year - Prepayments & Accrued Income,BZ999-London Region,LONDON BOROUGH OF SOUTHWARK,3079529,"29,860.27",Rates payment
Ministry of Justice,HMCTS,23/12/2014,610400-Debtors <1 year - Prepayments & Accrued Income,BZ999-London Region,LONDON BOROUGH OF TOWER HAMLETS,3079530,"46,388.52",Rates payment
Ministry of Justice,HMCTS,09/12/2014,610400-Debtors <1 year - Prepayments & Accrued Income,DZ999-South West Region,LONDONDERRY ADMINISTRATIVE SERVICES,3063565,"30,937.50",Rent payment
Ministry of Justice,HMCTS,09/12/2014,610400-Debtors <1 year - Prepayments & Accrued Income,DZ999-South West Region,LONDONDERRY ADMINISTRATIVE SERVICES,3063565,"6,187.50",Rent payment
Ministry of Justice,HMCTS,23/12/2014,610400-Debtors <1 year - Prepayments & Accrued Income,CZ999-South East Region,LUTON BOROUGH COUNCIL,3079532,"35,150.81",Rates payment
Ministry of Justice,HMCTS,12/12/2014,610400-Debtors <1 year - Prepayments & Accrued Income,HZ999-North East Region,M J MAPP LTD,3068697,"66,250.00",Rent payment
Ministry of Justice,HMCTS,12/12/2014,610400-Debtors <1 year - Prepayments & Accrued Income,HZ999-North East Region,M J MAPP LTD,3068697,"23,986.50",Service charge payment
Ministry of Justice,HMCTS,12/12/2014,610400-Debtors <1 year - Prepayments & Accrued Income,HZ999-North East Region,M J MAPP LTD,3068697,"13,250.00",Rent payment
Ministry of Justice,HMCTS,12/12/2014,610400-Debtors <1 year - Prepayments & Accrued Income,HZ999-North East Region,M J MAPP LTD,3068697,"4,797.30",Service charge payment
Ministry of Justice,HMCTS,23/12/2014,610400-Debtors <1 year - Prepayments & Accrued Income,CZ999-South East Region,MAIDSTONE BOROUGH COUNCIL,3079533,"64,041.89",Rates payment
Ministry of Justice,HMCTS,23/12/2014,610400-Debtors <1 year - Prepayments & Accrued Income,GZ999-North West Region,MANCHESTER CITY COUNCIL,3079534,"58,263.68",Rates payment
Ministry of Justice,HMCTS,23/12/2014,610400-Debtors <1 year - Prepayments & Accrued Income,GZ999-North West Region,MANCHESTER CITY COUNCIL,3079534,"28,650.32",Rates payment
Ministry of Justice,HMCTS,23/12/2014,610400-Debtors <1 year - Prepayments & Accrued Income,GZ999-North West Region,MANCHESTER CITY COUNCIL,3079534,"57,300.64",Rates payment
Ministry of Justice,HMCTS,23/12/2014,610400-Debtors <1 year - Prepayments & Accrued Income,GZ999-North West Region,MANCHESTER CITY COUNCIL,3079534,"25,761.21",Rates payment
Ministry of Justice,HMCTS,23/12/2014,610400-Debtors <1 year - Prepayments & Accrued Income,GZ999-North West Region,MANCHESTER CITY COUNCIL,3079534,"252,796.95",Rates payment
Ministry of Justice,HMCTS,05/12/2014,221000-Property Rent and Rates,BZ999-London Region,MAPELEY STEPS CONTRACTOR LTD,3061162,"50,842.00",Rent payment
Ministry of Justice,HMCTS,05/12/2014,222002-Other Property Costs,BZ999-London Region,MAPELEY STEPS CONTRACTOR LTD,3061162,"9,821.75",Service charge payment
Ministry of Justice,HMCTS,05/12/2014,221000-Property Rent and Rates,BZ999-London Region,MAPELEY STEPS CONTRACTOR LTD,3061162,"10,168.40",Rent payment
Ministry of Justice,HMCTS,05/12/2014,222002-Other Property Costs,BZ999-London Region,MAPELEY STEPS CONTRACTOR LTD,3061162,"1,964.35",Service charge payment
Ministry of Justice,HMCTS,23/12/2014,221000-Property Rent and Rates,GZ999-North West Region,MARDAN NORWICH LTD,259458,"120,000.00",Rent payment
Ministry of Justice,HMCTS,23/12/2014,221000-Property Rent and Rates,GZ999-North West Region,MARDAN NORWICH LTD,259458,"24,000.00",Rent payment
Ministry of Justice,HMCTS,31/12/2014,610200-Debtors < 1 Year - VAT,WW000-Balance Sheet,MARSTON GROUP LTD,3086155,"25,757.63",Debt Collection
Ministry of Justice,HMCTS,12/12/2014,610200-Debtors < 1 Year - VAT,WW000-Balance Sheet,MARSTON GROUP LTD,3068707,"38,062.17",Debt Collection
Ministry of Justice,HMCTS,12/12/2014,610200-Debtors < 1 Year - VAT,WW000-Balance Sheet,MARSTON GROUP LTD,3068707,"35,486.23",Debt Collection
Ministry of Justice,HMCTS,12/12/2014,610200-Debtors < 1 Year - VAT,WW000-Balance Sheet,MARSTON GROUP LTD,3068707,"31,206.72",Debt Collection
Ministry of Justice,HMCTS,12/12/2014,610200-Debtors < 1 Year - VAT,WW000-Balance Sheet,MARSTON GROUP LTD,3068707,"30,290.56",Debt Collection
Ministry of Justice,HMCTS,31/12/2014,610200-Debtors < 1 Year - VAT,WW000-Balance Sheet,MARSTON GROUP LTD,3086155,"29,789.19",Debt Collection
Ministry of Justice,HMCTS,12/12/2014,610200-Debtors < 1 Year - VAT,WW000-Balance Sheet,MARSTON GROUP LTD,3068707,"47,626.85",Debt Collection
Ministry of Justice,HMCTS,31/12/2014,610200-Debtors < 1 Year - VAT,WW000-Balance Sheet,MARSTON GROUP LTD,3086155,"28,946.05",Debt Collection
Ministry of Justice,HMCTS,12/12/2014,610200-Debtors < 1 Year - VAT,WW000-Balance Sheet,MARSTON GROUP LTD,3068707,"42,547.83",Debt Collection
Ministry of Justice,HMCTS,31/12/2014,610200-Debtors < 1 Year - VAT,WW000-Balance Sheet,MARSTON GROUP LTD,3086155,"37,006.03",Debt Collection
Ministry of Justice,HMCTS,19/12/2014,610400-Debtors <1 year - Prepayments & Accrued Income,CZ999-South East Region,MERCHANT PLACE PROPERTY PARTNERSHIP 36,3077104,"249,031.00",Rent payment
Ministry of Justice,HMCTS,19/12/2014,610400-Debtors <1 year - Prepayments & Accrued Income,CZ999-South East Region,MERCHANT PLACE PROPERTY PARTNERSHIP 36,3077104,"49,806.20",Rent payment
Ministry of Justice,HMCTS,19/12/2014,226000-Court Costs,SL999-Centralised Frontline,MESSRS BUXTON RYAN & CO#DX 47909,258741,"76,244.89",Legal fees to solicitors for  the repayment of fees paid by the acquitted defendants
Ministry of Justice,HMCTS,19/12/2014,311200-Criminal Legal Aid,SL999-Centralised Frontline,MESSRS DASS SOLICITORS#DX 13006,3075446,"94,293.94",Legal fees to solicitors for the repayment of costs to parties after gaining legal aid and represenation order
Ministry of Justice,HMCTS,19/12/2014,311200-Criminal Legal Aid,SL999-Centralised Frontline,MESSRS DAVID PHILLIPS & PARTNERS#DX 18806,3075447,"31,026.83",Legal fees to solicitors for the repayment of costs to parties after gaining legal aid and represenation order
Ministry of Justice,HMCTS,19/12/2014,311200-Criminal Legal Aid,SL999-Centralised Frontline,MESSRS EBR ATTRIDGE#DX 80713,3075451,"49,795.64",Legal fees to solicitors for the repayment of costs to parties after gaining legal aid and represenation order
Ministry of Justice,HMCTS,05/12/2014,226000-Court Costs,SL999-Centralised Frontline,MESSRS EDWARD HAYES LLP#DX 432,252279,"448,593.59",Legal fees to solicitors for  the repayment of fees paid by the acquitted defendants
Ministry of Justice,HMCTS,19/12/2014,311200-Criminal Legal Aid,SL999-Centralised Frontline,MESSRS FRISBY & CO#DX 14564,3075465,"48,778.43",Legal fees to solicitors for the repayment of costs to parties after gaining legal aid and represenation order
Ministry of Justice,HMCTS,19/12/2014,226000-Court Costs,SL999-Centralised Frontline,MESSRS HASAN SOLICITORS#DX 18665,258833,"75,231.79",Legal fees to solicitors for  the repayment of fees paid by the acquitted defendants
Ministry of Justice,HMCTS,05/12/2014,311200-Criminal Legal Aid,SL999-Centralised Frontline,MESSRS JBR MORGAN#DX 10806,252350,"28,418.94",Legal fees to solicitors for the repayment of costs to parties after gaining legal aid and represenation order
Ministry of Justice,HMCTS,05/12/2014,226000-Court Costs,SL999-Centralised Frontline,MESSRS NEUMANS LLP# DX 490,252429,"56,136.48",Legal fees to solicitors for  the repayment of fees paid by the acquitted defendants
Ministry of Justice,HMCTS,19/12/2014,311200-Criminal Legal Aid,SL999-Centralised Frontline,MESSRS TUCKERS#DX 14451,3075567,"29,790.68",Legal fees to solicitors for the repayment of costs to parties after gaining legal aid and represenation order
Ministry of Justice,HMCTS,23/12/2014,610400-Debtors <1 year - Prepayments & Accrued Income,HZ999-North East Region,MIDDLESBROUGH COUNCIL,3079540,"67,894.04",Rates payment
Ministry of Justice,HMCTS,23/12/2014,610400-Debtors <1 year - Prepayments & Accrued Income,HZ999-North East Region,MIDDLESBROUGH COUNCIL,3079540,"32,020.95",Rates payment
Ministry of Justice,HMCTS,19/12/2014,222003-CIS Labour TFM Estates,BZ999-London Region,MITIE JUSTICE LTD,3077119,"51,570.07",Security
Ministry of Justice,HMCTS,19/12/2014,222003-CIS Labour TFM Estates,BZ999-London Region,MITIE JUSTICE LTD,3077119,"6,279.48",Cleaning
Ministry of Justice,HMCTS,19/12/2014,222003-CIS Labour TFM Estates,BZ999-London Region,MITIE JUSTICE LTD,3077119,"1,144.58",Waste Disposal
Ministry of Justice,HMCTS,19/12/2014,222003-CIS Labour TFM Estates,BZ999-London Region,MITIE JUSTICE LTD,3077119,"17,070.32",Internal Moves
Ministry of Justice,HMCTS,12/12/2014,222003-CIS Labour TFM Estates,BZ999-London Region,MITIE JUSTICE LTD,3068733,"51,944.44",CIS Labour - Edmonton County Court - Mitie Justice - Hire of scaffolding.
Ministry of Justice,HMCTS,23/12/2014,532000-Tangible GBV - Additions,BZ999-London Region,MITIE JUSTICE LTD,3081413,"75,523.50",CIS Labour - RCJ - Mitie Justice - LED Lighting Installation (SD Project) LN-14-15-1621 - Phase 3
Ministry of Justice,HMCTS,23/12/2014,532000-Tangible GBV - Additions,BZ999-London Region,MITIE JUSTICE LTD,3081413,"15,104.70",CIS Labour - RCJ - Mitie Justice - LED Lighting Installation (SD Project) LN-14-15-1621 - Phase 3
Ministry of Justice,HMCTS,23/12/2014,532000-Tangible GBV - Additions,BZ999-London Region,MITIE JUSTICE LTD,3081413,"37,760.00",CIS Labour - RCJ - Mitie Justice - LED Lighting Installation (SD Project) LN-14-15-1620 - Phase 1
Ministry of Justice,HMCTS,23/12/2014,532000-Tangible GBV - Additions,BZ999-London Region,MITIE JUSTICE LTD,3081413,"7,552.00",CIS Labour - RCJ - Mitie Justice - LED Lighting Installation (SD Project) LN-14-15-1620 - Phase 1
Ministry of Justice,HMCTS,19/12/2014,222003-CIS Labour TFM Estates,BZ999-London Region,MITIE JUSTICE LTD,3077119,"56,123.05",Security
Ministry of Justice,HMCTS,19/12/2014,222003-CIS Labour TFM Estates,BZ999-London Region,MITIE JUSTICE LTD,3077119,"1,215.97",Cleaning
Ministry of Justice,HMCTS,19/12/2014,222003-CIS Labour TFM Estates,BZ999-London Region,MITIE JUSTICE LTD,3077119,"2,168.29",Waste Disposal
Ministry of Justice,HMCTS,19/12/2014,222003-CIS Labour TFM Estates,BZ999-London Region,MITIE JUSTICE LTD,3077119,"7,495.50",Pest & Vermin
Ministry of Justice,HMCTS,19/12/2014,222003-CIS Labour TFM Estates,BZ999-London Region,MITIE JUSTICE LTD,3077119,"17,919.27",Internal Moves
Ministry of Justice,HMCTS,29/12/2014,222003-CIS Labour TFM Estates,BZ999-London Region,MITIE JUSTICE LTD,3084557,"35,112.66",Security
Ministry of Justice,HMCTS,29/12/2014,222003-CIS Labour TFM Estates,BZ999-London Region,MITIE JUSTICE LTD,3084557,"44,569.49",Internal Repairs & Maintenance
Ministry of Justice,HMCTS,29/12/2014,222003-CIS Labour TFM Estates,BZ999-London Region,MITIE JUSTICE LTD,3084557,"241,869.31",M&E Maintenance
Ministry of Justice,HMCTS,29/12/2014,222003-CIS Labour TFM Estates,BZ999-London Region,MITIE JUSTICE LTD,3084557,"24,454.21",Grounds Maintenance
Ministry of Justice,HMCTS,29/12/2014,222003-CIS Labour TFM Estates,BZ999-London Region,MITIE JUSTICE LTD,3084557,"148,826.76",Management
Ministry of Justice,HMCTS,02/12/2014,222003-CIS Labour TFM Estates,CZ999-South East Region,MITIE JUSTICE LTD,3056038,"32,254.51",Security
Ministry of Justice,HMCTS,02/12/2014,222003-CIS Labour TFM Estates,CZ999-South East Region,MITIE JUSTICE LTD,3056038,"6,697.83",Waste Disposal
Ministry of Justice,HMCTS,02/12/2014,222003-CIS Labour TFM Estates,CZ999-South East Region,MITIE JUSTICE LTD,3056038,"1,000.00",Pest Control
Ministry of Justice,HMCTS,02/12/2014,222003-CIS Labour TFM Estates,CZ999-South East Region,MITIE JUSTICE LTD,3056038,"5,885.85",Internal Moves
Ministry of Justice,HMCTS,17/12/2014,222003-CIS Labour TFM Estates,CZ999-South East Region,MITIE JUSTICE LTD,3074659,"22,400.58",CIS Labour - Worthing Magistrates - Mitie Justice -  Remedial works to Court 4 Air Conditioning system
Ministry of Justice,HMCTS,17/12/2014,532000-Tangible GBV - Additions,CZ999-South East Region,MITIE JUSTICE LTD,3074659,"26,391.28",CIS Labour - Luton Magistrates - Mitie Justice - FRA Remedial works
Ministry of Justice,HMCTS,17/12/2014,532000-Tangible GBV - Additions,CZ999-South East Region,MITIE JUSTICE LTD,3074659,"5,278.26",CIS Labour - Luton Magistrates - Mitie Justice - FRA Remedial works
Ministry of Justice,HMCTS,16/12/2014,222003-CIS Labour TFM Estates,CZ999-South East Region,MITIE JUSTICE LTD,3071456,"41,225.96",CIS Labour - Watford Magistrates Court - Mitie Justice Ltd - FRA & emergency lighting works
Ministry of Justice,HMCTS,29/12/2014,532000-Tangible GBV - Additions,CZ999-South East Region,MITIE JUSTICE LTD,3084557,"32,084.38",CIS Labour - St. Albans Magistrates' Court - Mitie Justice - FRA & Security works following CPIG assessment
Ministry of Justice,HMCTS,29/12/2014,532000-Tangible GBV - Additions,CZ999-South East Region,MITIE JUSTICE LTD,3084557,"6,416.88",CIS Labour - St. Albans Magistrates' Court - Mitie Justice - FRA & Security works following CPIG assessment
Ministry of Justice,HMCTS,16/12/2014,532000-Tangible GBV - Additions,CZ999-South East Region,MITIE JUSTICE LTD,3071456,"34,421.13",CIS Labour - Basildon Combined - MITIE JUSTICE - Installation of LED Lighting
Ministry of Justice,HMCTS,16/12/2014,532000-Tangible GBV - Additions,CZ999-South East Region,MITIE JUSTICE LTD,3071456,"6,884.23",CIS Labour - Basildon Combined - MITIE JUSTICE - Installation of LED Lighting
Ministry of Justice,HMCTS,17/12/2014,222003-CIS Labour TFM Estates,CZ999-South East Region,MITIE JUSTICE LTD,3074659,"29,551.72",Internal Repair & Maintenance
Ministry of Justice,HMCTS,17/12/2014,222003-CIS Labour TFM Estates,CZ999-South East Region,MITIE JUSTICE LTD,3074659,"161,517.70",M&E Repair & Maintenance
Ministry of Justice,HMCTS,17/12/2014,222003-CIS Labour TFM Estates,CZ999-South East Region,MITIE JUSTICE LTD,3074659,"21,293.70",Grounds Maintenance
Ministry of Justice,HMCTS,17/12/2014,222003-CIS Labour TFM Estates,CZ999-South East Region,MITIE JUSTICE LTD,3074659,"90,041.78",Management Costs
Ministry of Justice,HMCTS,16/12/2014,222003-CIS Labour TFM Estates,CZ999-South East Region,MITIE JUSTICE LTD,3071456,"496,637.84",Security
Ministry of Justice,HMCTS,16/12/2014,222003-CIS Labour TFM Estates,CZ999-South East Region,MITIE JUSTICE LTD,3071456,"182,219.95",Cleaning
Ministry of Justice,HMCTS,16/12/2014,222003-CIS Labour TFM Estates,CZ999-South East Region,MITIE JUSTICE LTD,3071456,"51,606.82",Waste Disposal
Ministry of Justice,HMCTS,16/12/2014,222003-CIS Labour TFM Estates,CZ999-South East Region,MITIE JUSTICE LTD,3071456,"5,491.17",Catering - Lease Contracts
Ministry of Justice,HMCTS,16/12/2014,222003-CIS Labour TFM Estates,CZ999-South East Region,MITIE JUSTICE LTD,3071456,791.37,Pest Control
Ministry of Justice,HMCTS,16/12/2014,222003-CIS Labour TFM Estates,CZ999-South East Region,MITIE JUSTICE LTD,3071456,"15,056.20",Management Costs
Ministry of Justice,HMCTS,23/12/2014,222003-CIS Labour TFM Estates,CZ999-South East Region,MITIE JUSTICE LTD,3081413,"23,915.63",Internal Repair & Maintenance
Ministry of Justice,HMCTS,23/12/2014,222003-CIS Labour TFM Estates,CZ999-South East Region,MITIE JUSTICE LTD,3081413,"47,702.68",M&E Repair & Maintenance
Ministry of Justice,HMCTS,29/12/2014,222003-CIS Labour TFM Estates,CZ999-South East Region,MITIE JUSTICE LTD,3084557,"33,871.26",Security
Ministry of Justice,HMCTS,29/12/2014,222003-CIS Labour TFM Estates,CZ999-South East Region,MITIE JUSTICE LTD,3084557,"3,426.12",Waste Disposal
Ministry of Justice,HMCTS,29/12/2014,222003-CIS Labour TFM Estates,CZ999-South East Region,MITIE JUSTICE LTD,3084557,"9,944.00",Pest Control
Ministry of Justice,HMCTS,29/12/2014,222003-CIS Labour TFM Estates,CZ999-South East Region,MITIE JUSTICE LTD,3084557,358.94,Internal Moves
Ministry of Justice,HMCTS,09/12/2014,222003-CIS Labour TFM Estates,DZ999-South West Region,MITIE JUSTICE LTD,3063619,"20,292.13","CIS Labour - TFM Works Package B, South West Region - Hard Services (Fixed) - Internal Repair & Maintenance"
Ministry of Justice,HMCTS,09/12/2014,222003-CIS Labour TFM Estates,DZ999-South West Region,MITIE JUSTICE LTD,3063619,"117,626.36","CIS Labour - TFM Works Package B, South West Region - Hard Services (Fixed) - M&E Repair & Maintenance"
Ministry of Justice,HMCTS,09/12/2014,222003-CIS Labour TFM Estates,DZ999-South West Region,MITIE JUSTICE LTD,3063619,"10,060.68","CIS Labour - TFM Works Package B, South West Region - Hard Services (Fixed) - Grounds Maintenance"
Ministry of Justice,HMCTS,09/12/2014,222003-CIS Labour TFM Estates,DZ999-South West Region,MITIE JUSTICE LTD,3063619,"67,090.39","CIS Labour - TFM Works Package B, South West Region - Hard Services (Fixed) - Management Costs"
Ministry of Justice,HMCTS,12/12/2014,222003-CIS Labour TFM Estates,DZ999-South West Region,MITIE JUSTICE LTD,3068733,"23,276.82","CIS Labour - TFM Works Package B, South West Region - Hard Services (Variable) - Internal Repair & Maintenance"
Ministry of Justice,HMCTS,12/12/2014,222003-CIS Labour TFM Estates,DZ999-South West Region,MITIE JUSTICE LTD,3068733,"10,673.86","CIS Labour - TFM Works Package B, South West Region - Hard Services (Variable) - M&E Repair & Maintenance"
Ministry of Justice,HMCTS,12/12/2014,222003-CIS Labour TFM Estates,DZ999-South West Region,MITIE JUSTICE LTD,3068733,"5,511.42","CIS Labour - TFM Works Package B, South West Region - Hard Services (Variable) - Grounds Maintenance"
Ministry of Justice,HMCTS,16/12/2014,222003-CIS Labour TFM Estates,DZ999-South West Region,MITIE JUSTICE LTD,3071456,"42,989.73","CIS Labour - TFM Works Package B, South West Region - Soft Services (Variable) - Security"
Ministry of Justice,HMCTS,16/12/2014,222003-CIS Labour TFM Estates,DZ999-South West Region,MITIE JUSTICE LTD,3071456,386.88,"CIS Labour - TFM Works Package B, South West Region - Soft Services (Variable) - Cleaning"
Ministry of Justice,HMCTS,16/12/2014,222003-CIS Labour TFM Estates,DZ999-South West Region,MITIE JUSTICE LTD,3071456,"1,053.60","CIS Labour - TFM Works Package B, South West Region - Soft Services (Variable) - Waste Disposal"
Ministry of Justice,HMCTS,17/12/2014,222003-CIS Labour TFM Estates,DZ999-South West Region,MITIE JUSTICE LTD,3074659,"223,480.93","CIS Labour - TFM Works Package B, South West Region - Soft Services (Fixed) - Security"
Ministry of Justice,HMCTS,17/12/2014,222003-CIS Labour TFM Estates,DZ999-South West Region,MITIE JUSTICE LTD,3074659,"111,826.95","CIS Labour - TFM Works Package B, South West Region - Soft Services (Fixed) - Cleaning"
Ministry of Justice,HMCTS,17/12/2014,222003-CIS Labour TFM Estates,DZ999-South West Region,MITIE JUSTICE LTD,3074659,"23,785.79","CIS Labour - TFM Works Package B, South West Region - Soft Services (Fixed) - Waste Disposal"
Ministry of Justice,HMCTS,17/12/2014,222003-CIS Labour TFM Estates,DZ999-South West Region,MITIE JUSTICE LTD,3074659,"2,320.75","CIS Labour - TFM Works Package B, South West Region - Soft Services (Fixed) - Catering - Lease Contracts"
Ministry of Justice,HMCTS,17/12/2014,222003-CIS Labour TFM Estates,DZ999-South West Region,MITIE JUSTICE LTD,3074659,"2,159.20","CIS Labour - TFM Works Package B, South West Region - Soft Services (Fixed) - Pest Control"
Ministry of Justice,HMCTS,17/12/2014,222003-CIS Labour TFM Estates,DZ999-South West Region,MITIE JUSTICE LTD,3074659,"7,430.82","CIS Labour - TFM Works Package B, South West Region - Soft Services (Fixed) - Management Costs"
Ministry of Justice,HMCTS,31/12/2014,222003-CIS Labour TFM Estates,DZ999-South West Region,MITIE JUSTICE LTD,3086265,"42,989.73","CIS Labour - TFM Works Package B, South West Region - Soft Services (Variable) - Security"
Ministry of Justice,HMCTS,31/12/2014,222003-CIS Labour TFM Estates,DZ999-South West Region,MITIE JUSTICE LTD,3086265,386.88,"CIS Labour - TFM Works Package B, South West Region - Soft Services (Variable) - Cleaning"
Ministry of Justice,HMCTS,31/12/2014,222003-CIS Labour TFM Estates,DZ999-South West Region,MITIE JUSTICE LTD,3086265,"1,053.60","CIS Labour - TFM Works Package B, South West Region - Soft Services (Variable) - Waste Disposal"
Ministry of Justice,HMCTS,29/12/2014,222003-CIS Labour TFM Estates,DZ999-South West Region,MITIE JUSTICE LTD,3084557,"23,160.72",CIS Labour - Bristol Crown Court - Mitie Justice - Canteen facilitation works
Ministry of Justice,HMCTS,30/12/2014,222003-CIS Labour TFM Estates,DZ999-South West Region,MITIE JUSTICE LTD,3085058,"7,530.09","CIS Labour - TFM Works Package B, South West Region - Hard Services (Fixed) - Internal Repair & Maintenance"
Ministry of Justice,HMCTS,30/12/2014,222003-CIS Labour TFM Estates,DZ999-South West Region,MITIE JUSTICE LTD,3085058,"15,003.08","CIS Labour - TFM Works Package B, South West Region - Hard Services (Fixed) - M&E Repair & Maintenance"
Ministry of Justice,HMCTS,30/12/2014,222003-CIS Labour TFM Estates,DZ999-South West Region,MITIE JUSTICE LTD,3085058,"2,482.12","CIS Labour - TFM Works Package B, South West Region - Hard Services (Fixed) - Grounds Maintenance"
Ministry of Justice,HMCTS,30/12/2014,222003-CIS Labour TFM Estates,DZ999-South West Region,MITIE JUSTICE LTD,3085058,"117,218.53","CIS Labour - TFM Works Package B, South West Region - Hard Services (Fixed) - Management Costs"
Ministry of Justice,HMCTS,19/12/2014,610200-Debtors < 1 Year - VAT,WW000-Balance Sheet,MITIE JUSTICE LTD,3077119,"15,212.89",Estate Management Services
Ministry of Justice,HMCTS,19/12/2014,610200-Debtors < 1 Year - VAT,WW000-Balance Sheet,MITIE JUSTICE LTD,3077119,"-3,414.06",Estate Management Services
Ministry of Justice,HMCTS,19/12/2014,610200-Debtors < 1 Year - VAT,WW000-Balance Sheet,MITIE JUSTICE LTD,3077119,"3,414.06",Estate Management Services
Ministry of Justice,HMCTS,02/12/2014,610200-Debtors < 1 Year - VAT,WW000-Balance Sheet,MITIE JUSTICE LTD,3056038,"9,167.64",Estate Management Services
Ministry of Justice,HMCTS,12/12/2014,610200-Debtors < 1 Year - VAT,WW000-Balance Sheet,MITIE JUSTICE LTD,3068733,"10,388.89",Estate Management Services
Ministry of Justice,HMCTS,09/12/2014,610200-Debtors < 1 Year - VAT,WW000-Balance Sheet,MITIE JUSTICE LTD,3063619,"43,013.91",Estate Management Services
Ministry of Justice,HMCTS,12/12/2014,610200-Debtors < 1 Year - VAT,WW000-Balance Sheet,MITIE JUSTICE LTD,3068733,"7,892.42",Estate Management Services
Ministry of Justice,HMCTS,16/12/2014,610200-Debtors < 1 Year - VAT,WW000-Balance Sheet,MITIE JUSTICE LTD,3071456,"8,886.04",Estate Management Services
Ministry of Justice,HMCTS,17/12/2014,610200-Debtors < 1 Year - VAT,WW000-Balance Sheet,MITIE JUSTICE LTD,3074659,"4,480.12",Estate Management Services
Ministry of Justice,HMCTS,16/12/2014,610200-Debtors < 1 Year - VAT,WW000-Balance Sheet,MITIE JUSTICE LTD,3071456,"8,245.19",Estate Management Services
Ministry of Justice,HMCTS,17/12/2014,610200-Debtors < 1 Year - VAT,WW000-Balance Sheet,MITIE JUSTICE LTD,3074659,"60,480.98",Estate Management Services
Ministry of Justice,HMCTS,16/12/2014,610200-Debtors < 1 Year - VAT,WW000-Balance Sheet,MITIE JUSTICE LTD,3071456,"150,360.67",Estate Management Services
Ministry of Justice,HMCTS,19/12/2014,610200-Debtors < 1 Year - VAT,WW000-Balance Sheet,MITIE JUSTICE LTD,3077119,"16,984.42",Estate Management Services
Ministry of Justice,HMCTS,19/12/2014,610200-Debtors < 1 Year - VAT,WW000-Balance Sheet,MITIE JUSTICE LTD,3077119,"-3,583.85",Estate Management Services
Ministry of Justice,HMCTS,19/12/2014,610200-Debtors < 1 Year - VAT,WW000-Balance Sheet,MITIE JUSTICE LTD,3077119,"3,583.91",Estate Management Services
Ministry of Justice,HMCTS,19/12/2014,610200-Debtors < 1 Year - VAT,WW000-Balance Sheet,MITIE JUSTICE LTD,3077119,"-3,583.91",Estate Management Services
Ministry of Justice,HMCTS,19/12/2014,610200-Debtors < 1 Year - VAT,WW000-Balance Sheet,MITIE JUSTICE LTD,3077119,"3,583.85",Estate Management Services
Ministry of Justice,HMCTS,17/12/2014,610200-Debtors < 1 Year - VAT,WW000-Balance Sheet,MITIE JUSTICE LTD,3074659,"74,200.89",Estate Management Services
Ministry of Justice,HMCTS,31/12/2014,610200-Debtors < 1 Year - VAT,WW000-Balance Sheet,MITIE JUSTICE LTD,3086265,"8,886.04",Estate Management Services
Ministry of Justice,HMCTS,23/12/2014,610200-Debtors < 1 Year - VAT,WW000-Balance Sheet,MITIE JUSTICE LTD,3081413,"14,323.66",Estate Management Services
Ministry of Justice,HMCTS,29/12/2014,610200-Debtors < 1 Year - VAT,WW000-Balance Sheet,MITIE JUSTICE LTD,3084557,"9,520.06",Estate Management Services
Ministry of Justice,HMCTS,29/12/2014,610200-Debtors < 1 Year - VAT,WW000-Balance Sheet,MITIE JUSTICE LTD,3084557,0.01,Estate Management Services
Ministry of Justice,HMCTS,29/12/2014,610200-Debtors < 1 Year - VAT,WW000-Balance Sheet,MITIE JUSTICE LTD,3084557,-71.79,Estate Management Services
Ministry of Justice,HMCTS,29/12/2014,610200-Debtors < 1 Year - VAT,WW000-Balance Sheet,MITIE JUSTICE LTD,3084557,71.79,Estate Management Services
Ministry of Justice,HMCTS,29/12/2014,610200-Debtors < 1 Year - VAT,WW000-Balance Sheet,MITIE JUSTICE LTD,3084557,"4,632.14",Estate Management Services
Ministry of Justice,HMCTS,29/12/2014,610200-Debtors < 1 Year - VAT,WW000-Balance Sheet,MITIE JUSTICE LTD,3084557,"7,022.53",Estate Management Services
Ministry of Justice,HMCTS,29/12/2014,610200-Debtors < 1 Year - VAT,WW000-Balance Sheet,MITIE JUSTICE LTD,3084557,"91,943.95",Estate Management Services
Ministry of Justice,HMCTS,30/12/2014,610200-Debtors < 1 Year - VAT,WW000-Balance Sheet,MITIE JUSTICE LTD,3085058,"28,446.76",Estate Management Services
Ministry of Justice,HMCTS,09/12/2014,262000-SCA Costs,CZ999-South East Region,MODERN COURTS (EAST ANGLIA) LTD,3063620,"403,506.77",Ipswich & Cambridge - Modern Courts (East Anglia) Ltd (BR8 7AG) - Monthly 2014-15 Unitary Charges for East Anglia PFI
Ministry of Justice,HMCTS,09/12/2014,610200-Debtors < 1 Year - VAT,WW000-Balance Sheet,MODERN COURTS (EAST ANGLIA) LTD,3063620,"80,701.35",Provision under a PFI agreement of accommodation for office or other governmental use
Ministry of Justice,HMCTS,12/12/2014,262000-SCA Costs,HZ999-North East Region,MODERN COURTS (HUMBERSIDE) LTD,3068734,"372,035.67","Beverley, Hull & Bridlington - Modern Courts (Humberside) Ltd (BR8 7AG) - Unitary Charges for Humberside PFI - Monthly"
Ministry of Justice,HMCTS,12/12/2014,610200-Debtors < 1 Year - VAT,WW000-Balance Sheet,MODERN COURTS (HUMBERSIDE) LTD,3068734,"74,407.13",Provision under a PFI agreement of accommodation for office or other governmental use
Ministry of Justice,HMCTS,12/12/2014,610400-Debtors <1 year - Prepayments & Accrued Income,HZ999-North East Region,MPS2 LTD,3068746,"39,875.00",Rent payment
Ministry of Justice,HMCTS,12/12/2014,610400-Debtors <1 year - Prepayments & Accrued Income,HZ999-North East Region,MPS2 LTD,3068746,"7,975.00",Rent payment
Ministry of Justice,HMCTS,19/12/2014,311200-Criminal Legal Aid,SL999-Centralised Frontline,MR T FORTE#DX 485,259092,"26,775.00",Legal fees to solicitors for the repayment of costs to parties after gaining legal aid and represenation order
Ministry of Justice,HMCTS,10/12/2014,223000-Other Expenditure,HZ999-North East Region,NATIONAL OFFENDERS MANAGEMENT SERVICE (NOMS),3609,"53,931.66",HMCTS national furniture costs - November 2014
Ministry of Justice,HMCTS,05/12/2014,610300-Debtors < 1 Year - Deposits & Advances,GZ999-North West Region,NEOPOST LTD,3061233,"124,150.00","weekly franking machine re-credits for HMCTS, MOJ and LAA"
Ministry of Justice,HMCTS,12/12/2014,610300-Debtors < 1 Year - Deposits & Advances,GZ999-North West Region,NEOPOST LTD,3068760,"123,710.00","weekly franking machine re-credits for HMCTS, MOJ and LAA"
Ministry of Justice,HMCTS,29/12/2014,610300-Debtors < 1 Year - Deposits & Advances,GZ999-North West Region,NEOPOST LTD,3084576,"146,694.00","weekly franking machine re-credits for HMCTS, MOJ and LAA"
Ministry of Justice,HMCTS,29/12/2014,610300-Debtors < 1 Year - Deposits & Advances,GZ999-North West Region,NEOPOST LTD,3084576,"128,250.00","weekly franking machine re-credits for HMCTS, MOJ and LAA"
Ministry of Justice,HMCTS,23/12/2014,610400-Debtors <1 year - Prepayments & Accrued Income,HZ999-North East Region,NEWCASTLE UPON TYNE CITY COUNCIL,3079547,"71,264.66",Rates payment
Ministry of Justice,HMCTS,09/12/2014,610400-Debtors <1 year - Prepayments & Accrued Income,EZ999-Wales Region,NINE ASSET MANAGEMENT LTD,3063650,"60,686.50",Rent payment
Ministry of Justice,HMCTS,09/12/2014,610400-Debtors <1 year - Prepayments & Accrued Income,EZ999-Wales Region,NINE ASSET MANAGEMENT LTD,3063650,"21,699.59",Service charge payment
Ministry of Justice,HMCTS,09/12/2014,610400-Debtors <1 year - Prepayments & Accrued Income,EZ999-Wales Region,NINE ASSET MANAGEMENT LTD,3063650,"4,339.92",Service charge payment
Ministry of Justice,HMCTS,09/12/2014,610400-Debtors <1 year - Prepayments & Accrued Income,EZ999-Wales Region,NINE ASSET MANAGEMENT LTD,3063650,"12,137.30",Rent payment
Ministry of Justice,HMCTS,23/12/2014,610400-Debtors <1 year - Prepayments & Accrued Income,DZ999-South West Region,NORTH SOMERSET COUNCIL,3079552,"36,836.13",Rates payment
Ministry of Justice,HMCTS,23/12/2014,610400-Debtors <1 year - Prepayments & Accrued Income,FZ999-Midlands Region,NORTHAMPTON BOROUGH COUNCIL,3079554,"40,929.03",Rates payment
Ministry of Justice,HMCTS,23/12/2014,610400-Debtors <1 year - Prepayments & Accrued Income,CZ999-South East Region,NORWICH CITY COUNCIL,3079556,"31,780.19",Rates payment
Ministry of Justice,HMCTS,23/12/2014,610400-Debtors <1 year - Prepayments & Accrued Income,FZ999-Midlands Region,NOTTINGHAM CITY COUNCIL,3079557,"38,762.20",Rates payment
Ministry of Justice,HMCTS,23/12/2014,610400-Debtors <1 year - Prepayments & Accrued Income,FZ999-Midlands Region,NOTTINGHAM CITY COUNCIL,3079557,"74,635.29",Rates payment
Ministry of Justice,HMCTS,03/12/2014,610400-Debtors <1 year - Prepayments & Accrued Income,GZ999-North West Region,OAKLAWN,3058661,"26,818.88",Rent payment
Ministry of Justice,HMCTS,03/12/2014,610400-Debtors <1 year - Prepayments & Accrued Income,GZ999-North West Region,OAKLAWN,3058661,"5,363.77",Rent payment
Ministry of Justice,HMCTS,19/12/2014,221000-Property Rent and Rates,BZ999-London Region,ORBIT PROPERTY MANAGEMENT,3077256,"182,449.38",Rent payment
Ministry of Justice,HMCTS,19/12/2014,222002-Other Property Costs,BZ999-London Region,ORBIT PROPERTY MANAGEMENT,3077256,"59,514.99",Service charge payment
Ministry of Justice,HMCTS,19/12/2014,222002-Other Property Costs,BZ999-London Region,ORBIT PROPERTY MANAGEMENT,3077256,"11,903.00",Service charge payment
Ministry of Justice,HMCTS,19/12/2014,221000-Property Rent and Rates,BZ999-London Region,ORBIT PROPERTY MANAGEMENT,3077256,"36,489.88",Rent payment
Ministry of Justice,HMCTS,02/12/2014,610400-Debtors <1 year - Prepayments & Accrued Income,CZ999-South East Region,OSPREY HOUSE (MANAGEMENT) LTD,3056173,"44,150.00",Service charge payment
Ministry of Justice,HMCTS,02/12/2014,610400-Debtors <1 year - Prepayments & Accrued Income,CZ999-South East Region,OSPREY HOUSE (MANAGEMENT) LTD,3056173,"8,830.00",Service charge payment
Ministry of Justice,HMCTS,09/12/2014,610400-Debtors <1 year - Prepayments & Accrued Income,CZ999-South East Region,OSPREY HOUSE (MANAGEMENT) LTD,3063731,"89,731.00",Rent payment
Ministry of Justice,HMCTS,09/12/2014,610400-Debtors <1 year - Prepayments & Accrued Income,CZ999-South East Region,OSPREY HOUSE (MANAGEMENT) LTD,3063731,"17,946.20",Rent payment
Ministry of Justice,HMCTS,23/12/2014,610400-Debtors <1 year - Prepayments & Accrued Income,CZ999-South East Region,OXFORD CITY COUNCIL,3079560,"29,854.12",Rates payment
Ministry of Justice,HMCTS,10/12/2014,262000-SCA Costs,HZ999-North East Region,PALECASTLE LTD,3066670,"102,256.36",Sheffield - Palecastle Ltd  (WA14 2EX) - Unitary Charges for Sheffield PFI - Monthly
Ministry of Justice,HMCTS,10/12/2014,610200-Debtors < 1 Year - VAT,WW000-Balance Sheet,PALECASTLE LTD,3066670,"20,451.27",Provision under a PFI agreement of accommodation for office or other governmental use
Ministry of Justice,HMCTS,02/12/2014,610400-Debtors <1 year - Prepayments & Accrued Income,GZ999-North West Region,PJD PROPERTY MANAGEMENT LTD,3056204,"56,750.00",Rent payment
Ministry of Justice,HMCTS,02/12/2014,610400-Debtors <1 year - Prepayments & Accrued Income,GZ999-North West Region,PJD PROPERTY MANAGEMENT LTD,3056204,"11,350.00",Rent payment
Ministry of Justice,HMCTS,23/12/2014,610400-Debtors <1 year - Prepayments & Accrued Income,DZ999-South West Region,POLICE AND CRIME COMMISSIONER FOR GLOUCESTERSHIRE,3081587,"27,956.00",Rates payment
Ministry of Justice,HMCTS,23/12/2014,610400-Debtors <1 year - Prepayments & Accrued Income,DZ999-South West Region,PORTSMOUTH CITY COUNCIL,3079564,"41,892.07",Rates payment
Ministry of Justice,HMCTS,23/12/2014,610400-Debtors <1 year - Prepayments & Accrued Income,GZ999-North West Region,PRESTON CITY COUNCIL,3079566,"37,567.56",Rates payment
Ministry of Justice,HMCTS,10/12/2014,610400-Debtors <1 year - Prepayments & Accrued Income,CZ999-South East Region,RAINHAM PROPERTIES LTD,3066693,"31,250.00",Rent payment
Ministry of Justice,HMCTS,10/12/2014,610400-Debtors <1 year - Prepayments & Accrued Income,CZ999-South East Region,RAINHAM PROPERTIES LTD,3066693,"6,250.00",Rent payment
Ministry of Justice,HMCTS,12/12/2014,610400-Debtors <1 year - Prepayments & Accrued Income,DZ999-South West Region,RATCLIFFES,3068818,"77,613.75",Rent payment
Ministry of Justice,HMCTS,12/12/2014,610400-Debtors <1 year - Prepayments & Accrued Income,DZ999-South West Region,RATCLIFFES,3068818,"15,522.75",Rent payment
Ministry of Justice,HMCTS,23/12/2014,610400-Debtors <1 year - Prepayments & Accrued Income,CZ999-South East Region,READING BOROUGH COUNCIL,3079567,"40,479.64",Rates payment
Ministry of Justice,HMCTS,23/12/2014,610400-Debtors <1 year - Prepayments & Accrued Income,HZ999-North East Region,ROTHERHAM METROPOLITAN BOROUGH COUNCIL,3079573,"27,928.04",Rates payment
Ministry of Justice,HMCTS,23/12/2014,610400-Debtors <1 year - Prepayments & Accrued Income,BZ999-London Region,ROYAL BOROUGH OF KINGSTON UPON THAMES,3079574,"96,789.11",Rates payment
Ministry of Justice,HMCTS,03/12/2014,223001-Printing Postage and Office expenditure,CZ999-South East Region,ROYAL MAIL GROUP PLC,3058710,"40,993.69",SE Regional Mail variable charges - Royal Mail 2014/15- Account number 166289000 - Replaces PO 20000173034
Ministry of Justice,HMCTS,03/12/2014,223001-Printing Postage and Office expenditure,CZ999-South East Region,ROYAL MAIL GROUP PLC,3058710,"1,189.48",SE Regional Mail variable charges - Royal Mail 2014/15- Account number 166289000 - Replaces PO 20000173034
Ministry of Justice,HMCTS,02/12/2014,223001-Printing Postage and Office expenditure,FZ999-Midlands Region,ROYAL MAIL GROUP PLC,3056266,"194,378.05",Royal Mail. HMCTS Fixed charges Dec-Nov. Consolidated one-bill.
Ministry of Justice,HMCTS,05/12/2014,223001-Printing Postage and Office expenditure,HZ999-North East Region,ROYAL MAIL GROUP PLC,3061374,444.57,North East Region consolidated account - Variable service
Ministry of Justice,HMCTS,05/12/2014,223001-Printing Postage and Office expenditure,HZ999-North East Region,ROYAL MAIL GROUP PLC,3061374,"1,430.40",North East Region consolidated account - Variable service
Ministry of Justice,HMCTS,05/12/2014,223001-Printing Postage and Office expenditure,HZ999-North East Region,ROYAL MAIL GROUP PLC,3061374,"173,998.55",North East Region consolidated account - Variable service
Ministry of Justice,HMCTS,02/12/2014,610200-Debtors < 1 Year - VAT,WW000-Balance Sheet,ROYAL MAIL GROUP PLC,3056266,"38,875.79","Collection, Delivery and Distribution Services"
Ministry of Justice,HMCTS,03/12/2014,610200-Debtors < 1 Year - VAT,WW000-Balance Sheet,ROYAL MAIL GROUP PLC,3058710,"8,198.73","Collection, Delivery and Distribution Services"
Ministry of Justice,HMCTS,05/12/2014,610200-Debtors < 1 Year - VAT,WW000-Balance Sheet,ROYAL MAIL GROUP PLC,3061374,"34,799.75","Collection, Delivery and Distribution Services"
Ministry of Justice,HMCTS,23/12/2014,222001-Maintenance,BZ999-London Region,RTS COMMUNICATIONS,3081642,"22,845.00",Audio refit of five courts as per quotation
Ministry of Justice,HMCTS,23/12/2014,610200-Debtors < 1 Year - VAT,WW000-Balance Sheet,RTS COMMUNICATIONS,3081642,"4,569.00","Maintenance, non-structural repair and cleaning of buildings"
Ministry of Justice,HMCTS,02/12/2014,610400-Debtors <1 year - Prepayments & Accrued Income,HZ999-North East Region,SANDERSON WEATHERALL,3056272,"20,306.25",Rent payment
Ministry of Justice,HMCTS,02/12/2014,610400-Debtors <1 year - Prepayments & Accrued Income,HZ999-North East Region,SANDERSON WEATHERALL,3056272,"4,966.50",Service charge payment
Ministry of Justice,HMCTS,02/12/2014,610400-Debtors <1 year - Prepayments & Accrued Income,HZ999-North East Region,SANDERSON WEATHERALL,3056272,"4,061.25",Rent payment
Ministry of Justice,HMCTS,02/12/2014,610400-Debtors <1 year - Prepayments & Accrued Income,HZ999-North East Region,SANDERSON WEATHERALL,3056272,993.3,Service charge payment
Ministry of Justice,HMCTS,02/12/2014,221000-Property Rent and Rates,BZ999-London Region,SAVILLS (UK) LTD,3056280,"104,687.75",Rent payment
Ministry of Justice,HMCTS,02/12/2014,221000-Property Rent and Rates,BZ999-London Region,SAVILLS (UK) LTD,3056280,"20,937.55",Rent payment
Ministry of Justice,HMCTS,02/12/2014,221000-Property Rent and Rates,BZ999-London Region,SAVILLS (UK) LTD,3056280,"57,981.50",Rent payment
Ministry of Justice,HMCTS,02/12/2014,221000-Property Rent and Rates,BZ999-London Region,SAVILLS (UK) LTD,3056280,"11,596.30",Rent payment
Ministry of Justice,HMCTS,02/12/2014,221000-Property Rent and Rates,CZ999-South East Region,SAVILLS (UK) LTD,3056281,"24,500.00",Rent payment
Ministry of Justice,HMCTS,02/12/2014,222002-Other Property Costs,CZ999-South East Region,SAVILLS (UK) LTD,3056281,"13,245.23",Service charge payment
Ministry of Justice,HMCTS,02/12/2014,221000-Property Rent and Rates,CZ999-South East Region,SAVILLS (UK) LTD,3056281,"4,900.00",Rent payment
Ministry of Justice,HMCTS,02/12/2014,222002-Other Property Costs,CZ999-South East Region,SAVILLS (UK) LTD,3056281,"2,649.05",Service charge payment
Ministry of Justice,HMCTS,02/12/2014,610400-Debtors <1 year - Prepayments & Accrued Income,EZ999-Wales Region,SAVILLS (UK) LTD,3056280,"71,170.16",Rent payment
Ministry of Justice,HMCTS,02/12/2014,610400-Debtors <1 year - Prepayments & Accrued Income,EZ999-Wales Region,SAVILLS (UK) LTD,3056280,"14,234.03",Rent payment
Ministry of Justice,HMCTS,02/12/2014,610400-Debtors <1 year - Prepayments & Accrued Income,GZ999-North West Region,SAVILLS (UK) LTD,3056280,"109,403.75",Rent payment
Ministry of Justice,HMCTS,02/12/2014,610400-Debtors <1 year - Prepayments & Accrued Income,GZ999-North West Region,SAVILLS (UK) LTD,3056280,"21,880.75",Rent payment
Ministry of Justice,HMCTS,16/12/2014,610400-Debtors <1 year - Prepayments & Accrued Income,EZ999-Wales Region,SCOTTS PROPERTY LLP,3071616,"33,750.00",Rent payment
Ministry of Justice,HMCTS,16/12/2014,610400-Debtors <1 year - Prepayments & Accrued Income,EZ999-Wales Region,SCOTTS PROPERTY LLP,3071616,"6,750.00",Rent payment
Ministry of Justice,HMCTS,16/12/2014,262000-SCA Costs,DZ999-South West Region,SERVICES SUPPORT (AVON & SOMERSET) LTD,3071623,"701,778.90",Worle Area Office / Bristol - Services Support (Avon & Somerset) Ltd - Unitary Charges for Worle & Bristol PFI - Monthly
Ministry of Justice,HMCTS,16/12/2014,610200-Debtors < 1 Year - VAT,WW000-Balance Sheet,SERVICES SUPPORT (AVON & SOMERSET) LTD,3071623,"140,355.78",Provision under a PFI agreement of accommodation for office or other governmental use
Ministry of Justice,HMCTS,23/12/2014,610400-Debtors <1 year - Prepayments & Accrued Income,HZ999-North East Region,SHEFFIELD CITY COUNCIL,3079583,"88,117.79",Rates payment
Ministry of Justice,HMCTS,23/12/2014,610400-Debtors <1 year - Prepayments & Accrued Income,HZ999-North East Region,SHEFFIELD CITY COUNCIL,3079583,"29,304.19",Rates payment
Ministry of Justice,HMCTS,02-Dec-14,223701-External Solicitors Fees (Advice),AV338-Enforcement PVP project,SLAUGHTER & MAY,200766,"109,413.04",Legal fees to solicitors
Ministry of Justice,HMCTS,08-Dec-14,223701-External Solicitors Fees (Advice),AV338-Enforcement PVP project,SLAUGHTER & MAY,200883,"143,866.76",Legal fees to solicitors
Ministry of Justice,HMCTS,12/12/2014,610400-Debtors <1 year - Prepayments & Accrued Income,GZ999-North West Region,SMITH & SONS,3068873,"24,295.47",Service charge payment
Ministry of Justice,HMCTS,12/12/2014,610400-Debtors <1 year - Prepayments & Accrued Income,GZ999-North West Region,SMITH & SONS,3068873,"4,859.09",Service charge payment
Ministry of Justice,HMCTS,23/12/2014,610400-Debtors <1 year - Prepayments & Accrued Income,DZ999-South West Region,SOUTHAMPTON CITY COUNCIL,3079598,"34,428.54",Rates payment
Ministry of Justice,HMCTS,23/12/2014,610400-Debtors <1 year - Prepayments & Accrued Income,DZ999-South West Region,SOUTHAMPTON CITY COUNCIL,3079598,"41,892.07",Rates payment
Ministry of Justice,HMCTS,23/12/2014,610400-Debtors <1 year - Prepayments & Accrued Income,CZ999-South East Region,ST ALBANS CITY & DISTRICT COUNCIL,3079601,"36,113.85",Rates payment
Ministry of Justice,HMCTS,23/12/2014,610400-Debtors <1 year - Prepayments & Accrued Income,FZ999-Midlands Region,STAFFORD BOROUGH COUNCIL,3079604,"27,446.53",Rates payment
Ministry of Justice,HMCTS,12/12/2014,610400-Debtors <1 year - Prepayments & Accrued Income,DZ999-South West Region,STANDARD LIFE INVESTMENTS,3068883,"236,756.00",Rent payment
Ministry of Justice,HMCTS,12/12/2014,610400-Debtors <1 year - Prepayments & Accrued Income,DZ999-South West Region,STANDARD LIFE INVESTMENTS,3068883,"47,351.20",Rent payment
Ministry of Justice,HMCTS,09/12/2014,221000-Property Rent and Rates,HZ999-North East Region,STANDARD LIFE INVESTMENTS,3063869,"39,203.75",Rent payment
Ministry of Justice,HMCTS,09/12/2014,221000-Property Rent and Rates,HZ999-North East Region,STANDARD LIFE INVESTMENTS,3063869,"7,840.75",Rent payment
Ministry of Justice,HMCTS,09/12/2014,221000-Property Rent and Rates,HZ999-North East Region,STANDARD LIFE INVESTMENTS,3063869,"35,537.50",Rent payment
Ministry of Justice,HMCTS,09/12/2014,221000-Property Rent and Rates,HZ999-North East Region,STANDARD LIFE INVESTMENTS,3063869,"7,107.50",Rent payment
Ministry of Justice,HMCTS,09/12/2014,610400-Debtors <1 year - Prepayments & Accrued Income,CZ999-South East Region,SUFFOLKLIFE,3063883,"32,593.00",Rent payment
Ministry of Justice,HMCTS,16/12/2014,610400-Debtors <1 year - Prepayments & Accrued Income,DZ999-South West Region,SWANSTON HOLDINGS,3071669,"26,500.00",Rent payment
Ministry of Justice,HMCTS,16/12/2014,610400-Debtors <1 year - Prepayments & Accrued Income,DZ999-South West Region,SWANSTON HOLDINGS,3071669,"5,300.00",Rent payment
Ministry of Justice,HMCTS,05/12/2014,734000-Provisions - Utilised in year,WW000-Balance Sheet,TERENCE ST J MILLETT SOLICITORS#TI12105560,3061311,"109,577.11",Judicial Services Award
Ministry of Justice,HMCTS,05/12/2014,261000-Fuel and Utilities,BZ999-London Region,THAMES WATER UTILITIES LTD,3061420,"44,601.28",HMCS London Region Consolidated - Water Costs - Thames Water
Ministry of Justice,HMCTS,16/12/2014,221000-Property Rent and Rates,SM999-National Business Centres,TLG LLC,3071697,"66,635.26",Rent payment
Ministry of Justice,HMCTS,16/12/2014,221000-Property Rent and Rates,SM999-National Business Centres,TLG LLC,3071697,"13,327.05",Rent payment
Ministry of Justice,HMCTS,16/12/2014,265000-IT & Telecommunications,AP999-HQ - Strategy & Change,TRUSTMARQUE SOLUTIONS LTD,3071705,"40,200.00","Provision of Index Server as per attached quote/specification	(BHAP305E194_02102014							 )					"
Ministry of Justice,HMCTS,16/12/2014,265000-IT & Telecommunications,AP999-HQ - Strategy & Change,TRUSTMARQUE SOLUTIONS LTD,3071705,"8,040.00","Provision of Index Server as per attached quote/specification	(BHAP305E194_02102014							 )					"
Ministry of Justice,HMCTS,02-Dec-14,223702-Treasury Solicitors Fees for Advice,SL601-Centrally managed budgets,TSOL (TREASURY SOLICITORS),410969,"71,194.08",Tsols costs
Ministry of Justice,HMCTS,09-Dec-14,223702-Treasury Solicitors Fees for Advice,SL601-Centrally managed budgets,TSOL (TREASURY SOLICITORS),411773,"51,560.28",Tsols costs
Ministry of Justice,HMCTS,03/12/2014,262000-SCA Costs,GZ999-North West Region,UK COURT SERVICES (MANCHESTER) LTD,3058752,"517,138.29",Manchester - UK Court Services LTD (WR12 7LJ) - Unitary Charges for Manchester PFI - Monthly
Ministry of Justice,HMCTS,03/12/2014,610200-Debtors < 1 Year - VAT,WW000-Balance Sheet,UK COURT SERVICES (MANCHESTER) LTD,3058752,"103,427.66",Provision under a PFI agreement of accommodation for office or other governmental use
Ministry of Justice,HMCTS,19/12/2014,222002-Other Property Costs,SM999-National Business Centres,UKI CHARITABLE FOUNDATION,3077439,"33,300.00",Service charge payment
Ministry of Justice,HMCTS,19/12/2014,222002-Other Property Costs,SM999-National Business Centres,UKI CHARITABLE FOUNDATION,3077439,"14,700.00",Service charge payment
Ministry of Justice,HMCTS,19/12/2014,222002-Other Property Costs,SM999-National Business Centres,UKI CHARITABLE FOUNDATION,3077439,"6,660.00",Service charge payment
Ministry of Justice,HMCTS,19/12/2014,222002-Other Property Costs,SM999-National Business Centres,UKI CHARITABLE FOUNDATION,3077439,"2,940.00",Service charge payment
Ministry of Justice,HMCTS,10/12/2014,222001-Maintenance,AG999-HQ - Estates,VALUATION OFFICE AGENCY,3612,"50,592.00",MOJ Estate - Valuation Office Agency - 102 Petty France Estate Valuations 2014/15
Ministry of Justice,HMCTS,10/12/2014,222001-Maintenance,AG999-HQ - Estates,VALUATION OFFICE AGENCY,3612,"10,118.40",MOJ Estate - Valuation Office Agency - 102 Petty France Estate Valuations 2014/15
Ministry of Justice,HMCTS,23/12/2014,610400-Debtors <1 year - Prepayments & Accrued Income,EZ999-Wales Region,VINE PROPERTY MANAGEMENT,3081743,"22,100.00",Rent payment
Ministry of Justice,HMCTS,23/12/2014,610400-Debtors <1 year - Prepayments & Accrued Income,EZ999-Wales Region,VINE PROPERTY MANAGEMENT,3081743,"4,420.00",Rent payment
Ministry of Justice,HMCTS,23/12/2014,610400-Debtors <1 year - Prepayments & Accrued Income,EZ999-Wales Region,VINE PROPERTY MANAGEMENT,3081743,"25,400.00",Rent payment
Ministry of Justice,HMCTS,23/12/2014,610400-Debtors <1 year - Prepayments & Accrued Income,EZ999-Wales Region,VINE PROPERTY MANAGEMENT,3081743,"5,080.00",Rent payment
Ministry of Justice,HMCTS,23/12/2014,610400-Debtors <1 year - Prepayments & Accrued Income,EZ999-Wales Region,VINE PROPERTY MANAGEMENT,3081743,"22,100.00",Rent payment
Ministry of Justice,HMCTS,23/12/2014,610400-Debtors <1 year - Prepayments & Accrued Income,EZ999-Wales Region,VINE PROPERTY MANAGEMENT,3081743,"4,420.00",Rent payment
Ministry of Justice,HMCTS,23/12/2014,610400-Debtors <1 year - Prepayments & Accrued Income,EZ999-Wales Region,VINE PROPERTY MANAGEMENT,3081743,"25,400.00",Rent payment
Ministry of Justice,HMCTS,23/12/2014,610400-Debtors <1 year - Prepayments & Accrued Income,EZ999-Wales Region,VINE PROPERTY MANAGEMENT,3081743,"5,080.00",Rent payment
Ministry of Justice,HMCTS,03/12/2014,532000-Tangible GBV - Additions,FZ999-Midlands Region,VODAFONE CORPORATE LTD,3058761,"38,144.03",Telford Magistrates - Vodafone - Prison Video Link
Ministry of Justice,HMCTS,03/12/2014,265000-IT & Telecommunications,FZ999-Midlands Region,VODAFONE CORPORATE LTD,3058761,"10,655.04",Telford Magistrates - Vodafone - PVL Line Rental
Ministry of Justice,HMCTS,03/12/2014,532000-Tangible GBV - Additions,FZ999-Midlands Region,VODAFONE CORPORATE LTD,3058761,"7,628.80",Telford Magistrates - Vodafone - Prison Video Link
Ministry of Justice,HMCTS,03/12/2014,265000-IT & Telecommunications,FZ999-Midlands Region,VODAFONE CORPORATE LTD,3058761,"2,131.01",Telford Magistrates - Vodafone - PVL Line Rental
Ministry of Justice,HMCTS,05/12/2014,532000-Tangible GBV - Additions,FZ999-Midlands Region,VODAFONE CORPORATE LTD,3061449,"13,757.67",Leicester Crown - Vodafone - Prison Video Link
Ministry of Justice,HMCTS,05/12/2014,532000-Tangible GBV - Additions,FZ999-Midlands Region,VODAFONE CORPORATE LTD,3061449,"-13,757.67",Leicester Crown - Vodafone - Prison Video Link
Ministry of Justice,HMCTS,05/12/2014,532000-Tangible GBV - Additions,FZ999-Midlands Region,VODAFONE CORPORATE LTD,3061449,"56,915.24",Leicester Crown - Vodafone - Prison Video Link
Ministry of Justice,HMCTS,05/12/2014,265000-IT & Telecommunications,FZ999-Midlands Region,VODAFONE CORPORATE LTD,3061449,"11,873.12",Leicester Crown - Vodafone - PVL Line Rental
Ministry of Justice,HMCTS,05/12/2014,532000-Tangible GBV - Additions,FZ999-Midlands Region,VODAFONE CORPORATE LTD,3061449,"11,383.05",Leicester Crown - Vodafone - Prison Video Link
Ministry of Justice,HMCTS,05/12/2014,265000-IT & Telecommunications,FZ999-Midlands Region,VODAFONE CORPORATE LTD,3061449,"2,374.62",Leicester Crown - Vodafone - PVL Line Rental
